Publisher Label,Publisher URI,"Directorate code","Directorate","Service code","Service","Revenue or capital code","Revenue capital","Cost centre","Cost centre description","Bvsub Category","Bvsub description","Bvsum code","Bvsum description","Account code","Account description","Transaction No","Period","Transaction Date","Amount","Classification code","Classification description","Supplier ID","Supplier description","Company registration number","Company registration number Uri","VAT registration number"
"London Borough of Redbridge","http://opendatacommunities.org/doc/london-borough-council/redbridge","5BGFHOUSING","General Fund Housing","5CHOMELESS","Homelessness","REV","Revenue","R5630","HAC Temporary Accomodation","05-THIRD","Third Party Payments","05H","Private contractors","6912","Bed & Breakfast Charges","3739870","202402",25/04/2023 00:00:00,3130.6,"80170","Travel Agents and Holiday Companies","REDACTED DATA","CLICK TRAVEL LTD","3770815","http://opencorporates.com/companies/gb/3770815","799566639"
"London Borough of Redbridge","http://opendatacommunities.org/doc/london-borough-council/redbridge","5BGFHOUSING","General Fund Housing","5CHOMELESS","Homelessness","REV","Revenue","R5630","HAC Temporary Accomodation","05-THIRD","Third Party Payments","05H","Private contractors","6912","Bed & Breakfast Charges","3739870","202402",20/04/2023 00:00:00,3,"80170","Travel Agents and Holiday Companies","REDACTED DATA","CLICK TRAVEL LTD","3770815","http://opencorporates.com/companies/gb/3770815","799566639"
"London Borough of Redbridge","http://opendatacommunities.org/doc/london-borough-council/redbridge","5BGFHOUSING","General Fund Housing","5CHOMELESS","Homelessness","REV","Revenue","R5630","HAC Temporary Accomodation","05-THIRD","Third Party Payments","05H","Private contractors","6912","Bed & Breakfast Charges","3739870","202402",20/04/2023 00:00:00,879.89,"80170","Travel Agents and Holiday Companies","REDACTED DATA","CLICK TRAVEL LTD","3770815","http://opencorporates.com/companies/gb/3770815","799566639"
"London Borough of Redbridge","http://opendatacommunities.org/doc/london-borough-council/redbridge","5BGFHOUSING","General Fund Housing","5CHOMELESS","Homelessness","REV","Revenue","R5630","HAC Temporary Accomodation","05-THIRD","Third Party Payments","05H","Private contractors","6912","Bed & Breakfast Charges","3739870","202402",28/04/2023 00:00:00,3375.6,"80170","Travel Agents and Holiday Companies","REDACTED DATA","CLICK TRAVEL LTD","3770815","http://opencorporates.com/companies/gb/3770815","799566639"
"London Borough of Redbridge","http://opendatacommunities.org/doc/london-borough-council/redbridge","5BGFHOUSING","General Fund Housing","5CHOMELESS","Homelessness","REV","Revenue","R5630","HAC Temporary Accomodation","05-THIRD","Third Party Payments","05H","Private contractors","6912","Bed & Breakfast Charges","3739870","202402",27/03/2023 00:00:00,2277.51,"80170","Travel Agents and Holiday Companies","REDACTED DATA","CLICK TRAVEL LTD","3770815","http://opencorporates.com/companies/gb/3770815","799566639"
"London Borough of Redbridge","http://opendatacommunities.org/doc/london-borough-council/redbridge","5BGFHOUSING","General Fund Housing","5CHOMELESS","Homelessness","REV","Revenue","R5630","HAC Temporary Accomodation","05-THIRD","Third Party Payments","05H","Private contractors","6912","Bed & Breakfast Charges","3739870","202402",06/04/2023 00:00:00,1966.43,"80170","Travel Agents and Holiday Companies","REDACTED DATA","CLICK TRAVEL LTD","3770815","http://opencorporates.com/companies/gb/3770815","799566639"
"London Borough of Redbridge","http://opendatacommunities.org/doc/london-borough-council/redbridge","5BGFHOUSING","General Fund Housing","5CHOMELESS","Homelessness","REV","Revenue","R5630","HAC Temporary Accomodation","05-THIRD","Third Party Payments","05H","Private contractors","6912","Bed & Breakfast Charges","3739870","202402",13/04/2023 00:00:00,1200.04,"80170","Travel Agents and Holiday Companies","REDACTED DATA","CLICK TRAVEL LTD","3770815","http://opencorporates.com/companies/gb/3770815","799566639"
"London Borough of Redbridge","http://opendatacommunities.org/doc/london-borough-council/redbridge","5BGFHOUSING","General Fund Housing","5CHOMELESS","Homelessness","REV","Revenue","R5630","HAC Temporary Accomodation","05-THIRD","Third Party Payments","05H","Private contractors","6912","Bed & Breakfast Charges","3739870","202402",27/04/2023 00:00:00,1728.1,"80170","Travel Agents and Holiday Companies","REDACTED DATA","CLICK TRAVEL LTD","3770815","http://opencorporates.com/companies/gb/3770815","799566639"
"London Borough of Redbridge","http://opendatacommunities.org/doc/london-borough-council/redbridge","5BGFHOUSING","General Fund Housing","5CHOMELESS","Homelessness","REV","Revenue","R5630","HAC Temporary Accomodation","05-THIRD","Third Party Payments","05H","Private contractors","6912","Bed & Breakfast Charges","3739870","202402",30/03/2023 00:00:00,1133.05,"80170","Travel Agents and Holiday Companies","REDACTED DATA","CLICK TRAVEL LTD","3770815","http://opencorporates.com/companies/gb/3770815","799566639"
"London Borough of Redbridge","http://opendatacommunities.org/doc/london-borough-council/redbridge","5BGFHOUSING","General Fund Housing","5CHOMELESS","Homelessness","REV","Revenue","R5630","HAC Temporary Accomodation","05-THIRD","Third Party Payments","05H","Private contractors","6912","Bed & Breakfast Charges","3739870","202402",24/04/2023 00:00:00,1210.72,"80170","Travel Agents and Holiday Companies","REDACTED DATA","CLICK TRAVEL LTD","3770815","http://opencorporates.com/companies/gb/3770815","799566639"
"London Borough of Redbridge","http://opendatacommunities.org/doc/london-borough-council/redbridge","5BGFHOUSING","General Fund Housing","5CHOMELESS","Homelessness","REV","Revenue","R5630","HAC Temporary Accomodation","05-THIRD","Third Party Payments","05H","Private contractors","6912","Bed & Breakfast Charges","3739870","202402",25/04/2023 00:00:00,10.6,"80170","Travel Agents and Holiday Companies","REDACTED DATA","CLICK TRAVEL LTD","3770815","http://opencorporates.com/companies/gb/3770815","799566639"
"London Borough of Redbridge","http://opendatacommunities.org/doc/london-borough-council/redbridge","5BGFHOUSING","General Fund Housing","5CHOMELESS","Homelessness","REV","Revenue","R5630","HAC Temporary Accomodation","05-THIRD","Third Party Payments","05H","Private contractors","6912","Bed & Breakfast Charges","3739870","202402",30/03/2023 00:00:00,2400.1,"80170","Travel Agents and Holiday Companies","REDACTED DATA","CLICK TRAVEL LTD","3770815","http://opencorporates.com/companies/gb/3770815","799566639"
"London Borough of Redbridge","http://opendatacommunities.org/doc/london-borough-council/redbridge","9BNONBVO","Outside the BVACOP Objective Structure","9CNONBVO","Outside the BVACOP Objective Structure","REV","Revenue","R0026","Collection Fund","05-THIRD","Third Party Payments","05E","Government departments","6752","GLA Council Tax � Precepts","60521666","202402",01/05/2023 00:00:00,3870337.47,"48583","Local Government","REDACTED DATA","GREATER LONDON AUTHORITY","",,"GB743811731"
"London Borough of Redbridge","http://opendatacommunities.org/doc/london-borough-council/redbridge","5BGFHOUSING","General Fund Housing","5CHOMELESS","Homelessness","REV","Revenue","R5630","HAC Temporary Accomodation","05-THIRD","Third Party Payments","05H","Private contractors","6900","Nightly Let Plus Charges","3740518","202402",03/05/2023 00:00:00,1863,"31230","Employment and Recruitment Agencies","REDACTED DATA","ACCESS UK LTD T/AS ADAM","2343760","http://opencorporates.com/companies/gb/2343760","GB 108 2213 56"
"London Borough of Redbridge","http://opendatacommunities.org/doc/london-borough-council/redbridge","5BGFHOUSING","General Fund Housing","5CHOMELESS","Homelessness","REV","Revenue","R5630","HAC Temporary Accomodation","05-THIRD","Third Party Payments","05H","Private contractors","6900","Nightly Let Plus Charges","3740518","202402",03/05/2023 00:00:00,0,"31230","Employment and Recruitment Agencies","REDACTED DATA","ACCESS UK LTD T/AS ADAM","2343760","http://opencorporates.com/companies/gb/2343760","GB 108 2213 56"
"London Borough of Redbridge","http://opendatacommunities.org/doc/london-borough-council/redbridge","5BGFHOUSING","General Fund Housing","5CHOMELESS","Homelessness","REV","Revenue","R5630","HAC Temporary Accomodation","05-THIRD","Third Party Payments","05H","Private contractors","6900","Nightly Let Plus Charges","3740518","202402",03/05/2023 00:00:00,855,"31230","Employment and Recruitment Agencies","REDACTED DATA","ACCESS UK LTD T/AS ADAM","2343760","http://opencorporates.com/companies/gb/2343760","GB 108 2213 56"
"London Borough of Redbridge","http://opendatacommunities.org/doc/london-borough-council/redbridge","5BGFHOUSING","General Fund Housing","5CHOMELESS","Homelessness","REV","Revenue","R5630","HAC Temporary Accomodation","05-THIRD","Third Party Payments","05H","Private contractors","6900","Nightly Let Plus Charges","3740518","202402",03/05/2023 00:00:00,0,"31230","Employment and Recruitment Agencies","REDACTED DATA","ACCESS UK LTD T/AS ADAM","2343760","http://opencorporates.com/companies/gb/2343760","GB 108 2213 56"
"London Borough of Redbridge","http://opendatacommunities.org/doc/london-borough-council/redbridge","5BGFHOUSING","General Fund Housing","5CHOMELESS","Homelessness","REV","Revenue","R5630","HAC Temporary Accomodation","05-THIRD","Third Party Payments","05H","Private contractors","6900","Nightly Let Plus Charges","3740518","202402",03/05/2023 00:00:00,855,"31230","Employment and Recruitment Agencies","REDACTED DATA","ACCESS UK LTD T/AS ADAM","2343760","http://opencorporates.com/companies/gb/2343760","GB 108 2213 56"
"London Borough of Redbridge","http://opendatacommunities.org/doc/london-borough-council/redbridge","5BGFHOUSING","General Fund Housing","5CHOMELESS","Homelessness","REV","Revenue","R5630","HAC Temporary Accomodation","05-THIRD","Third Party Payments","05H","Private contractors","6900","Nightly Let Plus Charges","3740518","202402",03/05/2023 00:00:00,0,"31230","Employment and Recruitment Agencies","REDACTED DATA","ACCESS UK LTD T/AS ADAM","2343760","http://opencorporates.com/companies/gb/2343760","GB 108 2213 56"
"London Borough of Redbridge","http://opendatacommunities.org/doc/london-borough-council/redbridge","5BGFHOUSING","General Fund Housing","5CHOMELESS","Homelessness","REV","Revenue","R5630","HAC Temporary Accomodation","05-THIRD","Third Party Payments","05H","Private contractors","6900","Nightly Let Plus Charges","3740518","202402",03/05/2023 00:00:00,855,"31230","Employment and Recruitment Agencies","REDACTED DATA","ACCESS UK LTD T/AS ADAM","2343760","http://opencorporates.com/companies/gb/2343760","GB 108 2213 56"
"London Borough of Redbridge","http://opendatacommunities.org/doc/london-borough-council/redbridge","5BGFHOUSING","General Fund Housing","5CHOMELESS","Homelessness","REV","Revenue","R5630","HAC Temporary Accomodation","05-THIRD","Third Party Payments","05H","Private contractors","6900","Nightly Let Plus Charges","3740518","202402",03/05/2023 00:00:00,0,"31230","Employment and Recruitment Agencies","REDACTED DATA","ACCESS UK LTD T/AS ADAM","2343760","http://opencorporates.com/companies/gb/2343760","GB 108 2213 56"
"London Borough of Redbridge","http://opendatacommunities.org/doc/london-borough-council/redbridge","5BGFHOUSING","General Fund Housing","5CHOMELESS","Homelessness","REV","Revenue","R5630","HAC Temporary Accomodation","05-THIRD","Third Party Payments","05H","Private contractors","6900","Nightly Let Plus Charges","3740518","202402",03/05/2023 00:00:00,1417.5,"31230","Employment and Recruitment Agencies","REDACTED DATA","ACCESS UK LTD T/AS ADAM","2343760","http://opencorporates.com/companies/gb/2343760","GB 108 2213 56"
"London Borough of Redbridge","http://opendatacommunities.org/doc/london-borough-council/redbridge","5BGFHOUSING","General Fund Housing","5CHOMELESS","Homelessness","REV","Revenue","R5630","HAC Temporary Accomodation","05-THIRD","Third Party Payments","05H","Private contractors","6900","Nightly Let Plus Charges","3740518","202402",03/05/2023 00:00:00,0,"31230","Employment and Recruitment Agencies","REDACTED DATA","ACCESS UK LTD T/AS ADAM","2343760","http://opencorporates.com/companies/gb/2343760","GB 108 2213 56"
"London Borough of Redbridge","http://opendatacommunities.org/doc/london-borough-council/redbridge","5BGFHOUSING","General Fund Housing","5CHOMELESS","Homelessness","REV","Revenue","R5630","HAC Temporary Accomodation","05-THIRD","Third Party Payments","05H","Private contractors","6900","Nightly Let Plus Charges","3740518","202402",03/05/2023 00:00:00,855,"31230","Employment and Recruitment Agencies","REDACTED DATA","ACCESS UK LTD T/AS ADAM","2343760","http://opencorporates.com/companies/gb/2343760","GB 108 2213 56"
"London Borough of Redbridge","http://opendatacommunities.org/doc/london-borough-council/redbridge","5BGFHOUSING","General Fund Housing","5CHOMELESS","Homelessness","REV","Revenue","R5630","HAC Temporary Accomodation","05-THIRD","Third Party Payments","05H","Private contractors","6900","Nightly Let Plus Charges","3740518","202402",03/05/2023 00:00:00,0,"31230","Employment and Recruitment Agencies","REDACTED DATA","ACCESS UK LTD T/AS ADAM","2343760","http://opencorporates.com/companies/gb/2343760","GB 108 2213 56"
"London Borough of Redbridge","http://opendatacommunities.org/doc/london-borough-council/redbridge","5BGFHOUSING","General Fund Housing","5CHOMELESS","Homelessness","REV","Revenue","R5630","HAC Temporary Accomodation","05-THIRD","Third Party Payments","05H","Private contractors","6900","Nightly Let Plus Charges","3740518","202402",03/05/2023 00:00:00,855,"31230","Employment and Recruitment Agencies","REDACTED DATA","ACCESS UK LTD T/AS ADAM","2343760","http://opencorporates.com/companies/gb/2343760","GB 108 2213 56"
"London Borough of Redbridge","http://opendatacommunities.org/doc/london-borough-council/redbridge","5BGFHOUSING","General Fund Housing","5CHOMELESS","Homelessness","REV","Revenue","R5630","HAC Temporary Accomodation","05-THIRD","Third Party Payments","05H","Private contractors","6900","Nightly Let Plus Charges","3740518","202402",03/05/2023 00:00:00,0,"31230","Employment and Recruitment Agencies","REDACTED DATA","ACCESS UK LTD T/AS ADAM","2343760","http://opencorporates.com/companies/gb/2343760","GB 108 2213 56"
"London Borough of Redbridge","http://opendatacommunities.org/doc/london-borough-council/redbridge","5BGFHOUSING","General Fund Housing","5CHOMELESS","Homelessness","REV","Revenue","R5630","HAC Temporary Accomodation","05-THIRD","Third Party Payments","05H","Private contractors","6900","Nightly Let Plus Charges","3740518","202402",03/05/2023 00:00:00,0,"31230","Employment and Recruitment Agencies","REDACTED DATA","ACCESS UK LTD T/AS ADAM","2343760","http://opencorporates.com/companies/gb/2343760","GB 108 2213 56"
"London Borough of Redbridge","http://opendatacommunities.org/doc/london-borough-council/redbridge","5BGFHOUSING","General Fund Housing","5CHOMELESS","Homelessness","REV","Revenue","R5630","HAC Temporary Accomodation","05-THIRD","Third Party Payments","05H","Private contractors","6900","Nightly Let Plus Charges","3740518","202402",03/05/2023 00:00:00,855,"31230","Employment and Recruitment Agencies","REDACTED DATA","ACCESS UK LTD T/AS ADAM","2343760","http://opencorporates.com/companies/gb/2343760","GB 108 2213 56"
"London Borough of Redbridge","http://opendatacommunities.org/doc/london-borough-council/redbridge","5BGFHOUSING","General Fund Housing","5CHOMELESS","Homelessness","REV","Revenue","R5630","HAC Temporary Accomodation","05-THIRD","Third Party Payments","05H","Private contractors","6900","Nightly Let Plus Charges","3740518","202402",03/05/2023 00:00:00,0,"31230","Employment and Recruitment Agencies","REDACTED DATA","ACCESS UK LTD T/AS ADAM","2343760","http://opencorporates.com/companies/gb/2343760","GB 108 2213 56"
"London Borough of Redbridge","http://opendatacommunities.org/doc/london-borough-council/redbridge","5BGFHOUSING","General Fund Housing","5CHOMELESS","Homelessness","REV","Revenue","R5630","HAC Temporary Accomodation","05-THIRD","Third Party Payments","05H","Private contractors","6900","Nightly Let Plus Charges","3740518","202402",03/05/2023 00:00:00,0,"31230","Employment and Recruitment Agencies","REDACTED DATA","ACCESS UK LTD T/AS ADAM","2343760","http://opencorporates.com/companies/gb/2343760","GB 108 2213 56"
"London Borough of Redbridge","http://opendatacommunities.org/doc/london-borough-council/redbridge","5BGFHOUSING","General Fund Housing","5CHOMELESS","Homelessness","REV","Revenue","R5630","HAC Temporary Accomodation","05-THIRD","Third Party Payments","05H","Private contractors","6900","Nightly Let Plus Charges","3740518","202402",03/05/2023 00:00:00,990,"31230","Employment and Recruitment Agencies","REDACTED DATA","ACCESS UK LTD T/AS ADAM","2343760","http://opencorporates.com/companies/gb/2343760","GB 108 2213 56"
"London Borough of Redbridge","http://opendatacommunities.org/doc/london-borough-council/redbridge","5BGFHOUSING","General Fund Housing","5CHOMELESS","Homelessness","REV","Revenue","R5630","HAC Temporary Accomodation","05-THIRD","Third Party Payments","05H","Private contractors","6900","Nightly Let Plus Charges","3740518","202402",03/05/2023 00:00:00,1020,"31230","Employment and Recruitment Agencies","REDACTED DATA","ACCESS UK LTD T/AS ADAM","2343760","http://opencorporates.com/companies/gb/2343760","GB 108 2213 56"
"London Borough of Redbridge","http://opendatacommunities.org/doc/london-borough-council/redbridge","5BGFHOUSING","General Fund Housing","5CHOMELESS","Homelessness","REV","Revenue","R5630","HAC Temporary Accomodation","05-THIRD","Third Party Payments","05H","Private contractors","6900","Nightly Let Plus Charges","3740518","202402",03/05/2023 00:00:00,0,"31230","Employment and Recruitment Agencies","REDACTED DATA","ACCESS UK LTD T/AS ADAM","2343760","http://opencorporates.com/companies/gb/2343760","GB 108 2213 56"
"London Borough of Redbridge","http://opendatacommunities.org/doc/london-borough-council/redbridge","5BGFHOUSING","General Fund Housing","5CHOMELESS","Homelessness","REV","Revenue","R5630","HAC Temporary Accomodation","05-THIRD","Third Party Payments","05H","Private contractors","6900","Nightly Let Plus Charges","3740518","202402",03/05/2023 00:00:00,1380,"31230","Employment and Recruitment Agencies","REDACTED DATA","ACCESS UK LTD T/AS ADAM","2343760","http://opencorporates.com/companies/gb/2343760","GB 108 2213 56"
"London Borough of Redbridge","http://opendatacommunities.org/doc/london-borough-council/redbridge","5BGFHOUSING","General Fund Housing","5CHOMELESS","Homelessness","REV","Revenue","R5630","HAC Temporary Accomodation","05-THIRD","Third Party Payments","05H","Private contractors","6900","Nightly Let Plus Charges","3740518","202402",03/05/2023 00:00:00,1380,"31230","Employment and Recruitment Agencies","REDACTED DATA","ACCESS UK LTD T/AS ADAM","2343760","http://opencorporates.com/companies/gb/2343760","GB 108 2213 56"
"London Borough of Redbridge","http://opendatacommunities.org/doc/london-borough-council/redbridge","5BGFHOUSING","General Fund Housing","5CHOMELESS","Homelessness","REV","Revenue","R5630","HAC Temporary Accomodation","05-THIRD","Third Party Payments","05H","Private contractors","6900","Nightly Let Plus Charges","3740518","202402",03/05/2023 00:00:00,0,"31230","Employment and Recruitment Agencies","REDACTED DATA","ACCESS UK LTD T/AS ADAM","2343760","http://opencorporates.com/companies/gb/2343760","GB 108 2213 56"
"London Borough of Redbridge","http://opendatacommunities.org/doc/london-borough-council/redbridge","5BGFHOUSING","General Fund Housing","5CHOMELESS","Homelessness","REV","Revenue","R5630","HAC Temporary Accomodation","05-THIRD","Third Party Payments","05H","Private contractors","6900","Nightly Let Plus Charges","3740518","202402",03/05/2023 00:00:00,1431,"31230","Employment and Recruitment Agencies","REDACTED DATA","ACCESS UK LTD T/AS ADAM","2343760","http://opencorporates.com/companies/gb/2343760","GB 108 2213 56"
"London Borough of Redbridge","http://opendatacommunities.org/doc/london-borough-council/redbridge","5BGFHOUSING","General Fund Housing","5CHOMELESS","Homelessness","REV","Revenue","R5630","HAC Temporary Accomodation","05-THIRD","Third Party Payments","05H","Private contractors","6900","Nightly Let Plus Charges","3740518","202402",03/05/2023 00:00:00,0,"31230","Employment and Recruitment Agencies","REDACTED DATA","ACCESS UK LTD T/AS ADAM","2343760","http://opencorporates.com/companies/gb/2343760","GB 108 2213 56"
"London Borough of Redbridge","http://opendatacommunities.org/doc/london-borough-council/redbridge","5BGFHOUSING","General Fund Housing","5CHOMELESS","Homelessness","REV","Revenue","R5630","HAC Temporary Accomodation","05-THIRD","Third Party Payments","05H","Private contractors","6900","Nightly Let Plus Charges","3740518","202402",03/05/2023 00:00:00,0,"31230","Employment and Recruitment Agencies","REDACTED DATA","ACCESS UK LTD T/AS ADAM","2343760","http://opencorporates.com/companies/gb/2343760","GB 108 2213 56"
"London Borough of Redbridge","http://opendatacommunities.org/doc/london-borough-council/redbridge","5BGFHOUSING","General Fund Housing","5CHOMELESS","Homelessness","REV","Revenue","R5630","HAC Temporary Accomodation","05-THIRD","Third Party Payments","05H","Private contractors","6900","Nightly Let Plus Charges","3740518","202402",03/05/2023 00:00:00,1080,"31230","Employment and Recruitment Agencies","REDACTED DATA","ACCESS UK LTD T/AS ADAM","2343760","http://opencorporates.com/companies/gb/2343760","GB 108 2213 56"
"London Borough of Redbridge","http://opendatacommunities.org/doc/london-borough-council/redbridge","5BGFHOUSING","General Fund Housing","5CHOMELESS","Homelessness","REV","Revenue","R5630","HAC Temporary Accomodation","05-THIRD","Third Party Payments","05H","Private contractors","6900","Nightly Let Plus Charges","3740518","202402",03/05/2023 00:00:00,0,"31230","Employment and Recruitment Agencies","REDACTED DATA","ACCESS UK LTD T/AS ADAM","2343760","http://opencorporates.com/companies/gb/2343760","GB 108 2213 56"
"London Borough of Redbridge","http://opendatacommunities.org/doc/london-borough-council/redbridge","5BGFHOUSING","General Fund Housing","5CHOMELESS","Homelessness","REV","Revenue","R5630","HAC Temporary Accomodation","05-THIRD","Third Party Payments","05H","Private contractors","6900","Nightly Let Plus Charges","3740518","202402",03/05/2023 00:00:00,1050,"31230","Employment and Recruitment Agencies","REDACTED DATA","ACCESS UK LTD T/AS ADAM","2343760","http://opencorporates.com/companies/gb/2343760","GB 108 2213 56"
"London Borough of Redbridge","http://opendatacommunities.org/doc/london-borough-council/redbridge","5BGFHOUSING","General Fund Housing","5CHOMELESS","Homelessness","REV","Revenue","R5630","HAC Temporary Accomodation","05-THIRD","Third Party Payments","05H","Private contractors","6900","Nightly Let Plus Charges","3740518","202402",03/05/2023 00:00:00,855,"31230","Employment and Recruitment Agencies","REDACTED DATA","ACCESS UK LTD T/AS ADAM","2343760","http://opencorporates.com/companies/gb/2343760","GB 108 2213 56"
"London Borough of Redbridge","http://opendatacommunities.org/doc/london-borough-council/redbridge","5BGFHOUSING","General Fund Housing","5CHOMELESS","Homelessness","REV","Revenue","R5630","HAC Temporary Accomodation","05-THIRD","Third Party Payments","05H","Private contractors","6900","Nightly Let Plus Charges","3740518","202402",03/05/2023 00:00:00,0,"31230","Employment and Recruitment Agencies","REDACTED DATA","ACCESS UK LTD T/AS ADAM","2343760","http://opencorporates.com/companies/gb/2343760","GB 108 2213 56"
"London Borough of Redbridge","http://opendatacommunities.org/doc/london-borough-council/redbridge","5BGFHOUSING","General Fund Housing","5CHOMELESS","Homelessness","REV","Revenue","R5630","HAC Temporary Accomodation","05-THIRD","Third Party Payments","05H","Private contractors","6912","Bed & Breakfast Charges","3739870","202402",06/04/2023 00:00:00,1182.38,"80170","Travel Agents and Holiday Companies","REDACTED DATA","CLICK TRAVEL LTD","3770815","http://opencorporates.com/companies/gb/3770815","799566639"
"London Borough of Redbridge","http://opendatacommunities.org/doc/london-borough-council/redbridge","5BGFHOUSING","General Fund Housing","5CHOMELESS","Homelessness","REV","Revenue","R5630","HAC Temporary Accomodation","05-THIRD","Third Party Payments","05H","Private contractors","6912","Bed & Breakfast Charges","3739870","202402",11/04/2023 00:00:00,1224.05,"80170","Travel Agents and Holiday Companies","REDACTED DATA","CLICK TRAVEL LTD","3770815","http://opencorporates.com/companies/gb/3770815","799566639"
"London Borough of Redbridge","http://opendatacommunities.org/doc/london-borough-council/redbridge","5BGFHOUSING","General Fund Housing","5CHOMELESS","Homelessness","REV","Revenue","R5630","HAC Temporary Accomodation","05-THIRD","Third Party Payments","05H","Private contractors","6912","Bed & Breakfast Charges","3739870","202402",30/03/2023 00:00:00,1139.04,"80170","Travel Agents and Holiday Companies","REDACTED DATA","CLICK TRAVEL LTD","3770815","http://opencorporates.com/companies/gb/3770815","799566639"
"London Borough of Redbridge","http://opendatacommunities.org/doc/london-borough-council/redbridge","5BGFHOUSING","General Fund Housing","5CHOMELESS","Homelessness","REV","Revenue","R5630","HAC Temporary Accomodation","05-THIRD","Third Party Payments","05H","Private contractors","6912","Bed & Breakfast Charges","3739870","202402",24/04/2023 00:00:00,3,"80170","Travel Agents and Holiday Companies","REDACTED DATA","CLICK TRAVEL LTD","3770815","http://opencorporates.com/companies/gb/3770815","799566639"
"London Borough of Redbridge","http://opendatacommunities.org/doc/london-borough-council/redbridge","5BGFHOUSING","General Fund Housing","5CHOMELESS","Homelessness","REV","Revenue","R5630","HAC Temporary Accomodation","05-THIRD","Third Party Payments","05H","Private contractors","6912","Bed & Breakfast Charges","3739870","202402",27/03/2023 00:00:00,3,"80170","Travel Agents and Holiday Companies","REDACTED DATA","CLICK TRAVEL LTD","3770815","http://opencorporates.com/companies/gb/3770815","799566639"
"London Borough of Redbridge","http://opendatacommunities.org/doc/london-borough-council/redbridge","5BGFHOUSING","General Fund Housing","5CHOMELESS","Homelessness","REV","Revenue","R5630","HAC Temporary Accomodation","05-THIRD","Third Party Payments","05H","Private contractors","6912","Bed & Breakfast Charges","3739870","202402",11/04/2023 00:00:00,1662.38,"80170","Travel Agents and Holiday Companies","REDACTED DATA","CLICK TRAVEL LTD","3770815","http://opencorporates.com/companies/gb/3770815","799566639"
"London Borough of Redbridge","http://opendatacommunities.org/doc/london-borough-council/redbridge","5BGFHOUSING","General Fund Housing","5CHOMELESS","Homelessness","REV","Revenue","R5630","HAC Temporary Accomodation","05-THIRD","Third Party Payments","05H","Private contractors","6912","Bed & Breakfast Charges","3739870","202402",03/04/2023 00:00:00,736.58,"80170","Travel Agents and Holiday Companies","REDACTED DATA","CLICK TRAVEL LTD","3770815","http://opencorporates.com/companies/gb/3770815","799566639"
"London Borough of Redbridge","http://opendatacommunities.org/doc/london-borough-council/redbridge","5BGFHOUSING","General Fund Housing","5CHOMELESS","Homelessness","REV","Revenue","R5630","HAC Temporary Accomodation","05-THIRD","Third Party Payments","05H","Private contractors","6912","Bed & Breakfast Charges","3739870","202402",05/04/2023 00:00:00,1066.26,"80170","Travel Agents and Holiday Companies","REDACTED DATA","CLICK TRAVEL LTD","3770815","http://opencorporates.com/companies/gb/3770815","799566639"
"London Borough of Redbridge","http://opendatacommunities.org/doc/london-borough-council/redbridge","5BGFHOUSING","General Fund Housing","5CHOMELESS","Homelessness","REV","Revenue","R5630","HAC Temporary Accomodation","05-THIRD","Third Party Payments","05H","Private contractors","6912","Bed & Breakfast Charges","3739870","202402",04/04/2023 00:00:00,100.83,"80170","Travel Agents and Holiday Companies","REDACTED DATA","CLICK TRAVEL LTD","3770815","http://opencorporates.com/companies/gb/3770815","799566639"
"London Borough of Redbridge","http://opendatacommunities.org/doc/london-borough-council/redbridge","5BGFHOUSING","General Fund Housing","5CHOMELESS","Homelessness","REV","Revenue","R5630","HAC Temporary Accomodation","05-THIRD","Third Party Payments","05H","Private contractors","6912","Bed & Breakfast Charges","3739870","202402",14/04/2023 00:00:00,3,"80170","Travel Agents and Holiday Companies","REDACTED DATA","CLICK TRAVEL LTD","3770815","http://opencorporates.com/companies/gb/3770815","799566639"
"London Borough of Redbridge","http://opendatacommunities.org/doc/london-borough-council/redbridge","5BGFHOUSING","General Fund Housing","5CHOMELESS","Homelessness","REV","Revenue","R5630","HAC Temporary Accomodation","05-THIRD","Third Party Payments","05H","Private contractors","6912","Bed & Breakfast Charges","3739870","202402",24/03/2023 00:00:00,4267.64,"80170","Travel Agents and Holiday Companies","REDACTED DATA","CLICK TRAVEL LTD","3770815","http://opencorporates.com/companies/gb/3770815","799566639"
"London Borough of Redbridge","http://opendatacommunities.org/doc/london-borough-council/redbridge","5BGFHOUSING","General Fund Housing","5CHOMELESS","Homelessness","REV","Revenue","R5630","HAC Temporary Accomodation","05-THIRD","Third Party Payments","05H","Private contractors","6912","Bed & Breakfast Charges","3739870","202402",06/04/2023 00:00:00,3,"80170","Travel Agents and Holiday Companies","REDACTED DATA","CLICK TRAVEL LTD","3770815","http://opencorporates.com/companies/gb/3770815","799566639"
"London Borough of Redbridge","http://opendatacommunities.org/doc/london-borough-council/redbridge","5BGFHOUSING","General Fund Housing","5CHOMELESS","Homelessness","REV","Revenue","R5630","HAC Temporary Accomodation","05-THIRD","Third Party Payments","05H","Private contractors","6912","Bed & Breakfast Charges","3739870","202402",18/04/2023 00:00:00,3,"80170","Travel Agents and Holiday Companies","REDACTED DATA","CLICK TRAVEL LTD","3770815","http://opencorporates.com/companies/gb/3770815","799566639"
"London Borough of Redbridge","http://opendatacommunities.org/doc/london-borough-council/redbridge","5BGFHOUSING","General Fund Housing","5CHOMELESS","Homelessness","REV","Revenue","R5630","HAC Temporary Accomodation","05-THIRD","Third Party Payments","05H","Private contractors","6912","Bed & Breakfast Charges","3739870","202402",03/04/2023 00:00:00,2121.55,"80170","Travel Agents and Holiday Companies","REDACTED DATA","CLICK TRAVEL LTD","3770815","http://opencorporates.com/companies/gb/3770815","799566639"
"London Borough of Redbridge","http://opendatacommunities.org/doc/london-borough-council/redbridge","5BGFHOUSING","General Fund Housing","5CHOMELESS","Homelessness","REV","Revenue","R5630","HAC Temporary Accomodation","05-THIRD","Third Party Payments","05H","Private contractors","6912","Bed & Breakfast Charges","3739870","202402",17/04/2023 00:00:00,224.98,"80170","Travel Agents and Holiday Companies","REDACTED DATA","CLICK TRAVEL LTD","3770815","http://opencorporates.com/companies/gb/3770815","799566639"
"London Borough of Redbridge","http://opendatacommunities.org/doc/london-borough-council/redbridge","5BGFHOUSING","General Fund Housing","5CHOMELESS","Homelessness","REV","Revenue","R5630","HAC Temporary Accomodation","05-THIRD","Third Party Payments","05H","Private contractors","6912","Bed & Breakfast Charges","3739870","202402",20/04/2023 00:00:00,3,"80170","Travel Agents and Holiday Companies","REDACTED DATA","CLICK TRAVEL LTD","3770815","http://opencorporates.com/companies/gb/3770815","799566639"
"London Borough of Redbridge","http://opendatacommunities.org/doc/london-borough-council/redbridge","5BGFHOUSING","General Fund Housing","5CHOMELESS","Homelessness","REV","Revenue","R5630","HAC Temporary Accomodation","05-THIRD","Third Party Payments","05H","Private contractors","6912","Bed & Breakfast Charges","3739870","202402",30/03/2023 00:00:00,1133.05,"80170","Travel Agents and Holiday Companies","REDACTED DATA","CLICK TRAVEL LTD","3770815","http://opencorporates.com/companies/gb/3770815","799566639"
"London Borough of Redbridge","http://opendatacommunities.org/doc/london-borough-council/redbridge","5BGFHOUSING","General Fund Housing","5CHOMELESS","Homelessness","REV","Revenue","R5630","HAC Temporary Accomodation","05-THIRD","Third Party Payments","05H","Private contractors","6912","Bed & Breakfast Charges","3739870","202402",25/04/2023 00:00:00,10.6,"80170","Travel Agents and Holiday Companies","REDACTED DATA","CLICK TRAVEL LTD","3770815","http://opencorporates.com/companies/gb/3770815","799566639"
"London Borough of Redbridge","http://opendatacommunities.org/doc/london-borough-council/redbridge","5BGFHOUSING","General Fund Housing","5CHOMELESS","Homelessness","REV","Revenue","R5630","HAC Temporary Accomodation","05-THIRD","Third Party Payments","05H","Private contractors","6912","Bed & Breakfast Charges","3739870","202402",05/04/2023 00:00:00,3,"80170","Travel Agents and Holiday Companies","REDACTED DATA","CLICK TRAVEL LTD","3770815","http://opencorporates.com/companies/gb/3770815","799566639"
"London Borough of Redbridge","http://opendatacommunities.org/doc/london-borough-council/redbridge","5BGFHOUSING","General Fund Housing","5CHOMELESS","Homelessness","REV","Revenue","R5630","HAC Temporary Accomodation","05-THIRD","Third Party Payments","05H","Private contractors","6912","Bed & Breakfast Charges","3739870","202402",05/04/2023 00:00:00,1299.88,"80170","Travel Agents and Holiday Companies","REDACTED DATA","CLICK TRAVEL LTD","3770815","http://opencorporates.com/companies/gb/3770815","799566639"
"London Borough of Redbridge","http://opendatacommunities.org/doc/london-borough-council/redbridge","5BGFHOUSING","General Fund Housing","5CHOMELESS","Homelessness","REV","Revenue","R5640","Housing Options","03-TRANSPORT","Transport","03D","Public transport","5300","Travel Expenses","3739870","202402",24/04/2023 00:00:00,7.6,"80170","Travel Agents and Holiday Companies","REDACTED DATA","CLICK TRAVEL LTD","3770815","http://opencorporates.com/companies/gb/3770815","799566639"
"London Borough of Redbridge","http://opendatacommunities.org/doc/london-borough-council/redbridge","5BGFHOUSING","General Fund Housing","5CHOMELESS","Homelessness","REV","Revenue","R5640","Housing Options","03-TRANSPORT","Transport","03D","Public transport","5300","Travel Expenses","3739870","202402",24/04/2023 00:00:00,15.2,"80170","Travel Agents and Holiday Companies","REDACTED DATA","CLICK TRAVEL LTD","3770815","http://opencorporates.com/companies/gb/3770815","799566639"
"London Borough of Redbridge","http://opendatacommunities.org/doc/london-borough-council/redbridge","5BGFHOUSING","General Fund Housing","5CHOMELESS","Homelessness","REV","Revenue","R5640","Housing Options","03-TRANSPORT","Transport","03D","Public transport","5300","Travel Expenses","3739870","202402",24/04/2023 00:00:00,15.2,"80170","Travel Agents and Holiday Companies","REDACTED DATA","CLICK TRAVEL LTD","3770815","http://opencorporates.com/companies/gb/3770815","799566639"
"London Borough of Redbridge","http://opendatacommunities.org/doc/london-borough-council/redbridge","5BGFHOUSING","General Fund Housing","5CHOMELESS","Homelessness","REV","Revenue","R5640","Housing Options","03-TRANSPORT","Transport","03D","Public transport","5300","Travel Expenses","3739870","202402",24/04/2023 00:00:00,7.6,"80170","Travel Agents and Holiday Companies","REDACTED DATA","CLICK TRAVEL LTD","3770815","http://opencorporates.com/companies/gb/3770815","799566639"
"London Borough of Redbridge","http://opendatacommunities.org/doc/london-borough-council/redbridge","5BGFHOUSING","General Fund Housing","5CHOMELESS","Homelessness","REV","Revenue","R5640","Housing Options","05-THIRD","Third Party Payments","05H","Private contractors","6912","Bed & Breakfast Charges","3739870","202402",23/03/2023 00:00:00,71.24,"80170","Travel Agents and Holiday Companies","REDACTED DATA","CLICK TRAVEL LTD","3770815","http://opencorporates.com/companies/gb/3770815","799566639"
"London Borough of Redbridge","http://opendatacommunities.org/doc/london-borough-council/redbridge","5BGFHOUSING","General Fund Housing","5CHOMELESS","Homelessness","REV","Revenue","R5640","Housing Options","05-THIRD","Third Party Payments","05H","Private contractors","6912","Bed & Breakfast Charges","3739870","202402",03/04/2023 00:00:00,76.66,"80170","Travel Agents and Holiday Companies","REDACTED DATA","CLICK TRAVEL LTD","3770815","http://opencorporates.com/companies/gb/3770815","799566639"
"London Borough of Redbridge","http://opendatacommunities.org/doc/london-borough-council/redbridge","5BGFHOUSING","General Fund Housing","5CHOMELESS","Homelessness","REV","Revenue","R5640","Housing Options","05-THIRD","Third Party Payments","05H","Private contractors","6912","Bed & Breakfast Charges","3739870","202402",09/04/2023 00:00:00,152.5,"80170","Travel Agents and Holiday Companies","REDACTED DATA","CLICK TRAVEL LTD","3770815","http://opencorporates.com/companies/gb/3770815","799566639"
"London Borough of Redbridge","http://opendatacommunities.org/doc/london-borough-council/redbridge","5BGFHOUSING","General Fund Housing","5CHOMELESS","Homelessness","REV","Revenue","R5640","Housing Options","05-THIRD","Third Party Payments","05H","Private contractors","6912","Bed & Breakfast Charges","3739870","202402",24/04/2023 00:00:00,3,"80170","Travel Agents and Holiday Companies","REDACTED DATA","CLICK TRAVEL LTD","3770815","http://opencorporates.com/companies/gb/3770815","799566639"
"London Borough of Redbridge","http://opendatacommunities.org/doc/london-borough-council/redbridge","5BGFHOUSING","General Fund Housing","5CHOMELESS","Homelessness","REV","Revenue","R5640","Housing Options","05-THIRD","Third Party Payments","05H","Private contractors","6912","Bed & Breakfast Charges","3739870","202402",06/04/2023 00:00:00,575,"80170","Travel Agents and Holiday Companies","REDACTED DATA","CLICK TRAVEL LTD","3770815","http://opencorporates.com/companies/gb/3770815","799566639"
"London Borough of Redbridge","http://opendatacommunities.org/doc/london-borough-council/redbridge","5BGFHOUSING","General Fund Housing","5CHOMELESS","Homelessness","REV","Revenue","R5640","Housing Options","05-THIRD","Third Party Payments","05H","Private contractors","6912","Bed & Breakfast Charges","3739870","202402",03/04/2023 00:00:00,3,"80170","Travel Agents and Holiday Companies","REDACTED DATA","CLICK TRAVEL LTD","3770815","http://opencorporates.com/companies/gb/3770815","799566639"
"London Borough of Redbridge","http://opendatacommunities.org/doc/london-borough-council/redbridge","5BGFHOUSING","General Fund Housing","5CHOMELESS","Homelessness","REV","Revenue","R5640","Housing Options","05-THIRD","Third Party Payments","05H","Private contractors","6912","Bed & Breakfast Charges","3739870","202402",24/04/2023 00:00:00,1112.38,"80170","Travel Agents and Holiday Companies","REDACTED DATA","CLICK TRAVEL LTD","3770815","http://opencorporates.com/companies/gb/3770815","799566639"
"London Borough of Redbridge","http://opendatacommunities.org/doc/london-borough-council/redbridge","5BGFHOUSING","General Fund Housing","5CHOMELESS","Homelessness","REV","Revenue","R5640","Housing Options","05-THIRD","Third Party Payments","05H","Private contractors","6912","Bed & Breakfast Charges","3739870","202402",20/04/2023 00:00:00,2316.49,"80170","Travel Agents and Holiday Companies","REDACTED DATA","CLICK TRAVEL LTD","3770815","http://opencorporates.com/companies/gb/3770815","799566639"
"London Borough of Redbridge","http://opendatacommunities.org/doc/london-borough-council/redbridge","5BGFHOUSING","General Fund Housing","5CHOMELESS","Homelessness","REV","Revenue","R5640","Housing Options","05-THIRD","Third Party Payments","05H","Private contractors","6912","Bed & Breakfast Charges","3739870","202402",03/04/2023 00:00:00,3,"80170","Travel Agents and Holiday Companies","REDACTED DATA","CLICK TRAVEL LTD","3770815","http://opencorporates.com/companies/gb/3770815","799566639"
"London Borough of Redbridge","http://opendatacommunities.org/doc/london-borough-council/redbridge","5BGFHOUSING","General Fund Housing","5CHOMELESS","Homelessness","REV","Revenue","R5640","Housing Options","05-THIRD","Third Party Payments","05H","Private contractors","6912","Bed & Breakfast Charges","3739870","202402",20/04/2023 00:00:00,3,"80170","Travel Agents and Holiday Companies","REDACTED DATA","CLICK TRAVEL LTD","3770815","http://opencorporates.com/companies/gb/3770815","799566639"
"London Borough of Redbridge","http://opendatacommunities.org/doc/london-borough-council/redbridge","5BGFHOUSING","General Fund Housing","5CHOMELESS","Homelessness","REV","Revenue","R5640","Housing Options","05-THIRD","Third Party Payments","05H","Private contractors","6912","Bed & Breakfast Charges","3739870","202402",03/04/2023 00:00:00,95.79,"80170","Travel Agents and Holiday Companies","REDACTED DATA","CLICK TRAVEL LTD","3770815","http://opencorporates.com/companies/gb/3770815","799566639"
"London Borough of Redbridge","http://opendatacommunities.org/doc/london-borough-council/redbridge","6BPUBHEALTH","Public Health","6CMISCPHSERV","Miscellaneous Public Health Services","REV","Revenue","R4800","Public Health Support","04-SUPPLIES","Supplies And Services","04G","Expenses","5907","Travel & Subsistence","3739870","202402",03/03/2023 00:00:00,243.75,"80170","Travel Agents and Holiday Companies","REDACTED DATA","CLICK TRAVEL LTD","3770815","http://opencorporates.com/companies/gb/3770815","799566639"
"London Borough of Redbridge","http://opendatacommunities.org/doc/london-borough-council/redbridge","6BSOCIALSERV","Social Services","6CCHILCOMSNG","Children's Services - Commissioning & Social Work","REV","Revenue","R2186","F&A - Leaving Care Team","03-TRANSPORT","Transport","03D","Public transport","5300","Travel Expenses","3739870","202402",17/04/2023 00:00:00,21.5,"80170","Travel Agents and Holiday Companies","REDACTED DATA","CLICK TRAVEL LTD","3770815","http://opencorporates.com/companies/gb/3770815","799566639"
"London Borough of Redbridge","http://opendatacommunities.org/doc/london-borough-council/redbridge","6BSOCIALSERV","Social Services","6CCHILCOMSNG","Children's Services - Commissioning & Social Work","REV","Revenue","R2186","F&A - Leaving Care Team","03-TRANSPORT","Transport","03D","Public transport","5301","Children Services Transport Costs","3739870","202402",18/04/2023 00:00:00,140.96,"80170","Travel Agents and Holiday Companies","REDACTED DATA","CLICK TRAVEL LTD","3770815","http://opencorporates.com/companies/gb/3770815","799566639"
"London Borough of Redbridge","http://opendatacommunities.org/doc/london-borough-council/redbridge","6BSOCIALSERV","Social Services","6CCHILCOMSNG","Children's Services - Commissioning & Social Work","REV","Revenue","R2186","F&A - Leaving Care Team","04-SUPPLIES","Supplies And Services","04G","Expenses","5907","Travel & Subsistence","3739870","202402",03/04/2023 00:00:00,82.6,"80170","Travel Agents and Holiday Companies","REDACTED DATA","CLICK TRAVEL LTD","3770815","http://opencorporates.com/companies/gb/3770815","799566639"
"London Borough of Redbridge","http://opendatacommunities.org/doc/london-borough-council/redbridge","6BSOCIALSERV","Social Services","6CCHILCOMSNG","Children's Services - Commissioning & Social Work","REV","Revenue","R2186","F&A - Leaving Care Team","04-SUPPLIES","Supplies And Services","04G","Expenses","5907","Travel & Subsistence","3739870","202402",17/04/2023 00:00:00,147.2,"80170","Travel Agents and Holiday Companies","REDACTED DATA","CLICK TRAVEL LTD","3770815","http://opencorporates.com/companies/gb/3770815","799566639"
"London Borough of Redbridge","http://opendatacommunities.org/doc/london-borough-council/redbridge","6BSOCIALSERV","Social Services","6CCHILCOMSNG","Children's Services - Commissioning & Social Work","REV","Revenue","R2186","F&A - Leaving Care Team","04-SUPPLIES","Supplies And Services","04G","Expenses","5907","Travel & Subsistence","3739870","202402",17/04/2023 00:00:00,21.5,"80170","Travel Agents and Holiday Companies","REDACTED DATA","CLICK TRAVEL LTD","3770815","http://opencorporates.com/companies/gb/3770815","799566639"
"London Borough of Redbridge","http://opendatacommunities.org/doc/london-borough-council/redbridge","6BSOCIALSERV","Social Services","6CCHILCOMSNG","Children's Services - Commissioning & Social Work","REV","Revenue","R2186","F&A - Leaving Care Team","04-SUPPLIES","Supplies And Services","04G","Expenses","5907","Travel & Subsistence","3739870","202402",11/04/2023 00:00:00,48.1,"80170","Travel Agents and Holiday Companies","REDACTED DATA","CLICK TRAVEL LTD","3770815","http://opencorporates.com/companies/gb/3770815","799566639"
"London Borough of Redbridge","http://opendatacommunities.org/doc/london-borough-council/redbridge","6BSOCIALSERV","Social Services","6CCHILCOMSNG","Children's Services - Commissioning & Social Work","REV","Revenue","R2186","F&A - Leaving Care Team","04-SUPPLIES","Supplies And Services","04G","Expenses","5907","Travel & Subsistence","3739870","202402",18/04/2023 00:00:00,15.2,"80170","Travel Agents and Holiday Companies","REDACTED DATA","CLICK TRAVEL LTD","3770815","http://opencorporates.com/companies/gb/3770815","799566639"
"London Borough of Redbridge","http://opendatacommunities.org/doc/london-borough-council/redbridge","6BSOCIALSERV","Social Services","6CCHILCOMSNG","Children's Services - Commissioning & Social Work","REV","Revenue","R2186","F&A - Leaving Care Team","04-SUPPLIES","Supplies And Services","04G","Expenses","5907","Travel & Subsistence","3739870","202402",17/04/2023 00:00:00,147.2,"80170","Travel Agents and Holiday Companies","REDACTED DATA","CLICK TRAVEL LTD","3770815","http://opencorporates.com/companies/gb/3770815","799566639"
"London Borough of Redbridge","http://opendatacommunities.org/doc/london-borough-council/redbridge","6BSOCIALSERV","Social Services","6CCHILCOMSNG","Children's Services - Commissioning & Social Work","REV","Revenue","R2186","F&A - Leaving Care Team","04-SUPPLIES","Supplies And Services","04G","Expenses","5907","Travel & Subsistence","3739870","202402",17/04/2023 00:00:00,51.7,"80170","Travel Agents and Holiday Companies","REDACTED DATA","CLICK TRAVEL LTD","3770815","http://opencorporates.com/companies/gb/3770815","799566639"
"London Borough of Redbridge","http://opendatacommunities.org/doc/london-borough-council/redbridge","6BSOCIALSERV","Social Services","6CCHILCOMSNG","Children's Services - Commissioning & Social Work","REV","Revenue","R2186","F&A - Leaving Care Team","04-SUPPLIES","Supplies And Services","04G","Expenses","5907","Travel & Subsistence","3739870","202402",17/04/2023 00:00:00,95.4,"80170","Travel Agents and Holiday Companies","REDACTED DATA","CLICK TRAVEL LTD","3770815","http://opencorporates.com/companies/gb/3770815","799566639"
"London Borough of Redbridge","http://opendatacommunities.org/doc/london-borough-council/redbridge","6BSOCIALSERV","Social Services","6CCHILCOMSNG","Children's Services - Commissioning & Social Work","REV","Revenue","R2186","F&A - Leaving Care Team","04-SUPPLIES","Supplies And Services","04G","Expenses","5907","Travel & Subsistence","3739870","202402",17/04/2023 00:00:00,71.2,"80170","Travel Agents and Holiday Companies","REDACTED DATA","CLICK TRAVEL LTD","3770815","http://opencorporates.com/companies/gb/3770815","799566639"
"London Borough of Redbridge","http://opendatacommunities.org/doc/london-borough-council/redbridge","6BSOCIALSERV","Social Services","6CCHILLOOKED","Children Looked After","REV","Revenue","R2114","SEN and CD - 0-9 Integrated Team Social Care","03-TRANSPORT","Transport","03D","Public transport","5300","Travel Expenses","3739870","202402",24/03/2023 00:00:00,1680.56,"80170","Travel Agents and Holiday Companies","REDACTED DATA","CLICK TRAVEL LTD","3770815","http://opencorporates.com/companies/gb/3770815","799566639"
"London Borough of Redbridge","http://opendatacommunities.org/doc/london-borough-council/redbridge","6BSOCIALSERV","Social Services","6CCHILLOOKED","Children Looked After","REV","Revenue","R2114","SEN and CD - 0-9 Integrated Team Social Care","03-TRANSPORT","Transport","03D","Public transport","5300","Travel Expenses","3739870","202402",27/04/2023 00:00:00,28.4,"80170","Travel Agents and Holiday Companies","REDACTED DATA","CLICK TRAVEL LTD","3770815","http://opencorporates.com/companies/gb/3770815","799566639"
"London Borough of Redbridge","http://opendatacommunities.org/doc/london-borough-council/redbridge","6BSOCIALSERV","Social Services","6CCHILLOOKED","Children Looked After","REV","Revenue","R2114","SEN and CD - 0-9 Integrated Team Social Care","03-TRANSPORT","Transport","03D","Public transport","5300","Travel Expenses","3739870","202402",28/04/2023 00:00:00,3,"80170","Travel Agents and Holiday Companies","REDACTED DATA","CLICK TRAVEL LTD","3770815","http://opencorporates.com/companies/gb/3770815","799566639"
"London Borough of Redbridge","http://opendatacommunities.org/doc/london-borough-council/redbridge","6BSOCIALSERV","Social Services","6CCHILLOOKED","Children Looked After","REV","Revenue","R2114","SEN and CD - 0-9 Integrated Team Social Care","03-TRANSPORT","Transport","03D","Public transport","5300","Travel Expenses","3739870","202402",27/04/2023 00:00:00,28.4,"80170","Travel Agents and Holiday Companies","REDACTED DATA","CLICK TRAVEL LTD","3770815","http://opencorporates.com/companies/gb/3770815","799566639"
"London Borough of Redbridge","http://opendatacommunities.org/doc/london-borough-council/redbridge","6BSOCIALSERV","Social Services","6CCHILLOOKED","Children Looked After","REV","Revenue","R2114","SEN and CD - 0-9 Integrated Team Social Care","03-TRANSPORT","Transport","03D","Public transport","5300","Travel Expenses","3739870","202402",28/04/2023 00:00:00,924.95,"80170","Travel Agents and Holiday Companies","REDACTED DATA","CLICK TRAVEL LTD","3770815","http://opencorporates.com/companies/gb/3770815","799566639"
"London Borough of Redbridge","http://opendatacommunities.org/doc/london-borough-council/redbridge","6BSOCIALSERV","Social Services","6CCHILLOOKED","Children Looked After","REV","Revenue","R2114","SEN and CD - 0-9 Integrated Team Social Care","03-TRANSPORT","Transport","03D","Public transport","5301","Children Services Transport Costs","3739870","202402",05/04/2023 00:00:00,51,"80170","Travel Agents and Holiday Companies","REDACTED DATA","CLICK TRAVEL LTD","3770815","http://opencorporates.com/companies/gb/3770815","799566639"
"London Borough of Redbridge","http://opendatacommunities.org/doc/london-borough-council/redbridge","6BSOCIALSERV","Social Services","6CCHILLOOKED","Children Looked After","REV","Revenue","R2114","SEN and CD - 0-9 Integrated Team Social Care","03-TRANSPORT","Transport","03D","Public transport","5301","Children Services Transport Costs","3739870","202402",21/04/2023 00:00:00,874.11,"80170","Travel Agents and Holiday Companies","REDACTED DATA","CLICK TRAVEL LTD","3770815","http://opencorporates.com/companies/gb/3770815","799566639"
"London Borough of Redbridge","http://opendatacommunities.org/doc/london-borough-council/redbridge","6BSOCIALSERV","Social Services","6CCHILLOOKED","Children Looked After","REV","Revenue","R2114","SEN and CD - 0-9 Integrated Team Social Care","03-TRANSPORT","Transport","03D","Public transport","5301","Children Services Transport Costs","3739870","202402",06/04/2023 00:00:00,16.8,"80170","Travel Agents and Holiday Companies","REDACTED DATA","CLICK TRAVEL LTD","3770815","http://opencorporates.com/companies/gb/3770815","799566639"
"London Borough of Redbridge","http://opendatacommunities.org/doc/london-borough-council/redbridge","6BSOCIALSERV","Social Services","6CCHILLOOKED","Children Looked After","REV","Revenue","R2114","SEN and CD - 0-9 Integrated Team Social Care","03-TRANSPORT","Transport","03D","Public transport","5301","Children Services Transport Costs","3739870","202402",05/04/2023 00:00:00,102,"80170","Travel Agents and Holiday Companies","REDACTED DATA","CLICK TRAVEL LTD","3770815","http://opencorporates.com/companies/gb/3770815","799566639"
"London Borough of Redbridge","http://opendatacommunities.org/doc/london-borough-council/redbridge","6BSOCIALSERV","Social Services","6CCHILLOOKED","Children Looked After","REV","Revenue","R2114","SEN and CD - 0-9 Integrated Team Social Care","03-TRANSPORT","Transport","03D","Public transport","5301","Children Services Transport Costs","3739870","202402",21/04/2023 00:00:00,3,"80170","Travel Agents and Holiday Companies","REDACTED DATA","CLICK TRAVEL LTD","3770815","http://opencorporates.com/companies/gb/3770815","799566639"
"London Borough of Redbridge","http://opendatacommunities.org/doc/london-borough-council/redbridge","6BSOCIALSERV","Social Services","6CCHILLOOKED","Children Looked After","REV","Revenue","R2114","SEN and CD - 0-9 Integrated Team Social Care","03-TRANSPORT","Transport","03D","Public transport","5301","Children Services Transport Costs","3739870","202402",05/04/2023 00:00:00,102,"80170","Travel Agents and Holiday Companies","REDACTED DATA","CLICK TRAVEL LTD","3770815","http://opencorporates.com/companies/gb/3770815","799566639"
"London Borough of Redbridge","http://opendatacommunities.org/doc/london-borough-council/redbridge","6BSOCIALSERV","Social Services","6CCHILLOOKED","Children Looked After","REV","Revenue","R2114","SEN and CD - 0-9 Integrated Team Social Care","03-TRANSPORT","Transport","03D","Public transport","5301","Children Services Transport Costs","3739870","202402",14/04/2023 00:00:00,3,"80170","Travel Agents and Holiday Companies","REDACTED DATA","CLICK TRAVEL LTD","3770815","http://opencorporates.com/companies/gb/3770815","799566639"
"London Borough of Redbridge","http://opendatacommunities.org/doc/london-borough-council/redbridge","6BSOCIALSERV","Social Services","6CCHILLOOKED","Children Looked After","REV","Revenue","R2114","SEN and CD - 0-9 Integrated Team Social Care","03-TRANSPORT","Transport","03D","Public transport","5301","Children Services Transport Costs","3739870","202402",14/04/2023 00:00:00,1062.42,"80170","Travel Agents and Holiday Companies","REDACTED DATA","CLICK TRAVEL LTD","3770815","http://opencorporates.com/companies/gb/3770815","799566639"
"London Borough of Redbridge","http://opendatacommunities.org/doc/london-borough-council/redbridge","6BSOCIALSERV","Social Services","6CCHILLOOKED","Children Looked After","REV","Revenue","R2114","SEN and CD - 0-9 Integrated Team Social Care","04-SUPPLIES","Supplies And Services","04G","Expenses","5907","Travel & Subsistence","3739870","202402",27/04/2023 00:00:00,9.8,"80170","Travel Agents and Holiday Companies","REDACTED DATA","CLICK TRAVEL LTD","3770815","http://opencorporates.com/companies/gb/3770815","799566639"
"London Borough of Redbridge","http://opendatacommunities.org/doc/london-borough-council/redbridge","6BSOCIALSERV","Social Services","6CCHILLOOKED","Children Looked After","REV","Revenue","R2127","Fostering and Adoption","04-SUPPLIES","Supplies And Services","04G","Expenses","5907","Travel & Subsistence","3739870","202402",17/04/2023 00:00:00,24.5,"80170","Travel Agents and Holiday Companies","REDACTED DATA","CLICK TRAVEL LTD","3770815","http://opencorporates.com/companies/gb/3770815","799566639"
"London Borough of Redbridge","http://opendatacommunities.org/doc/london-borough-council/redbridge","6BSOCIALSERV","Social Services","6CCHILLOOKED","Children Looked After","REV","Revenue","R2127","Fostering and Adoption","04-SUPPLIES","Supplies And Services","04G","Expenses","5907","Travel & Subsistence","3739870","202402",18/04/2023 00:00:00,21.5,"80170","Travel Agents and Holiday Companies","REDACTED DATA","CLICK TRAVEL LTD","3770815","http://opencorporates.com/companies/gb/3770815","799566639"
"London Borough of Redbridge","http://opendatacommunities.org/doc/london-borough-council/redbridge","6BSOCIALSERV","Social Services","6CCHILLOOKED","Children Looked After","REV","Revenue","R2127","Fostering and Adoption","04-SUPPLIES","Supplies And Services","04G","Expenses","5907","Travel & Subsistence","3739870","202402",17/04/2023 00:00:00,15.2,"80170","Travel Agents and Holiday Companies","REDACTED DATA","CLICK TRAVEL LTD","3770815","http://opencorporates.com/companies/gb/3770815","799566639"
"London Borough of Redbridge","http://opendatacommunities.org/doc/london-borough-council/redbridge","6BSOCIALSERV","Social Services","6CCHILLOOKED","Children Looked After","REV","Revenue","R2127","Fostering and Adoption","04-SUPPLIES","Supplies And Services","04G","Expenses","5907","Travel & Subsistence","3739870","202402",17/04/2023 00:00:00,24.8,"80170","Travel Agents and Holiday Companies","REDACTED DATA","CLICK TRAVEL LTD","3770815","http://opencorporates.com/companies/gb/3770815","799566639"
"London Borough of Redbridge","http://opendatacommunities.org/doc/london-borough-council/redbridge","6BSOCIALSERV","Social Services","6CCHILLOOKED","Children Looked After","REV","Revenue","R2127","Fostering and Adoption","04-SUPPLIES","Supplies And Services","04G","Expenses","5907","Travel & Subsistence","3739870","202402",27/04/2023 00:00:00,21.5,"80170","Travel Agents and Holiday Companies","REDACTED DATA","CLICK TRAVEL LTD","3770815","http://opencorporates.com/companies/gb/3770815","799566639"
"London Borough of Redbridge","http://opendatacommunities.org/doc/london-borough-council/redbridge","6BSOCIALSERV","Social Services","6CCHILLOOKED","Children Looked After","REV","Revenue","R2127","Fostering and Adoption","04-SUPPLIES","Supplies And Services","04G","Expenses","5907","Travel & Subsistence","3739870","202402",24/04/2023 00:00:00,23.3,"80170","Travel Agents and Holiday Companies","REDACTED DATA","CLICK TRAVEL LTD","3770815","http://opencorporates.com/companies/gb/3770815","799566639"
"London Borough of Redbridge","http://opendatacommunities.org/doc/london-borough-council/redbridge","6BSOCIALSERV","Social Services","6CCHILLOOKED","Children Looked After","REV","Revenue","R2127","Fostering and Adoption","04-SUPPLIES","Supplies And Services","04G","Expenses","5907","Travel & Subsistence","3739870","202402",17/04/2023 00:00:00,13.4,"80170","Travel Agents and Holiday Companies","REDACTED DATA","CLICK TRAVEL LTD","3770815","http://opencorporates.com/companies/gb/3770815","799566639"
"London Borough of Redbridge","http://opendatacommunities.org/doc/london-borough-council/redbridge","6BSOCIALSERV","Social Services","6CCHILLOOKED","Children Looked After","REV","Revenue","R2158","CSW Service","03-TRANSPORT","Transport","03D","Public transport","5300","Travel Expenses","3739870","202402",17/04/2023 00:00:00,21.5,"80170","Travel Agents and Holiday Companies","REDACTED DATA","CLICK TRAVEL LTD","3770815","http://opencorporates.com/companies/gb/3770815","799566639"
"London Borough of Redbridge","http://opendatacommunities.org/doc/london-borough-council/redbridge","6BSOCIALSERV","Social Services","6CCHILLOOKED","Children Looked After","REV","Revenue","R2158","CSW Service","03-TRANSPORT","Transport","03D","Public transport","5301","Children Services Transport Costs","3739870","202402",28/04/2023 00:00:00,29.6,"80170","Travel Agents and Holiday Companies","REDACTED DATA","CLICK TRAVEL LTD","3770815","http://opencorporates.com/companies/gb/3770815","799566639"
"London Borough of Redbridge","http://opendatacommunities.org/doc/london-borough-council/redbridge","6BSOCIALSERV","Social Services","6CCHILLOOKED","Children Looked After","REV","Revenue","R2158","CSW Service","03-TRANSPORT","Transport","03D","Public transport","5301","Children Services Transport Costs","3739870","202402",28/04/2023 00:00:00,14.85,"80170","Travel Agents and Holiday Companies","REDACTED DATA","CLICK TRAVEL LTD","3770815","http://opencorporates.com/companies/gb/3770815","799566639"
"London Borough of Redbridge","http://opendatacommunities.org/doc/london-borough-council/redbridge","6BSOCIALSERV","Social Services","6CCHILLOOKED","Children Looked After","REV","Revenue","R2158","CSW Service","03-TRANSPORT","Transport","03D","Public transport","5301","Children Services Transport Costs","3739870","202402",25/04/2023 00:00:00,73.2,"80170","Travel Agents and Holiday Companies","REDACTED DATA","CLICK TRAVEL LTD","3770815","http://opencorporates.com/companies/gb/3770815","799566639"
"London Borough of Redbridge","http://opendatacommunities.org/doc/london-borough-council/redbridge","6BSOCIALSERV","Social Services","6CCHILLOOKED","Children Looked After","REV","Revenue","R2158","CSW Service","03-TRANSPORT","Transport","03D","Public transport","5301","Children Services Transport Costs","3739870","202402",04/04/2023 00:00:00,15.2,"80170","Travel Agents and Holiday Companies","REDACTED DATA","CLICK TRAVEL LTD","3770815","http://opencorporates.com/companies/gb/3770815","799566639"
"London Borough of Redbridge","http://opendatacommunities.org/doc/london-borough-council/redbridge","6BSOCIALSERV","Social Services","6CCHILLOOKED","Children Looked After","REV","Revenue","R2158","CSW Service","03-TRANSPORT","Transport","03D","Public transport","5301","Children Services Transport Costs","3739870","202402",11/04/2023 00:00:00,15.2,"80170","Travel Agents and Holiday Companies","REDACTED DATA","CLICK TRAVEL LTD","3770815","http://opencorporates.com/companies/gb/3770815","799566639"
"London Borough of Redbridge","http://opendatacommunities.org/doc/london-borough-council/redbridge","6BSOCIALSERV","Social Services","6CCHILLOOKED","Children Looked After","REV","Revenue","R2158","CSW Service","03-TRANSPORT","Transport","03D","Public transport","5301","Children Services Transport Costs","3739870","202402",21/04/2023 00:00:00,15.2,"80170","Travel Agents and Holiday Companies","REDACTED DATA","CLICK TRAVEL LTD","3770815","http://opencorporates.com/companies/gb/3770815","799566639"
"London Borough of Redbridge","http://opendatacommunities.org/doc/london-borough-council/redbridge","6BSOCIALSERV","Social Services","6CCHILLOOKED","Children Looked After","REV","Revenue","R2158","CSW Service","03-TRANSPORT","Transport","03D","Public transport","5301","Children Services Transport Costs","3739870","202402",28/04/2023 00:00:00,29.7,"80170","Travel Agents and Holiday Companies","REDACTED DATA","CLICK TRAVEL LTD","3770815","http://opencorporates.com/companies/gb/3770815","799566639"
"London Borough of Redbridge","http://opendatacommunities.org/doc/london-borough-council/redbridge","6BSOCIALSERV","Social Services","6CCHILLOOKED","Children Looked After","REV","Revenue","R2158","CSW Service","03-TRANSPORT","Transport","03D","Public transport","5301","Children Services Transport Costs","3739870","202402",06/04/2023 00:00:00,103.9,"80170","Travel Agents and Holiday Companies","REDACTED DATA","CLICK TRAVEL LTD","3770815","http://opencorporates.com/companies/gb/3770815","799566639"
"London Borough of Redbridge","http://opendatacommunities.org/doc/london-borough-council/redbridge","6BSOCIALSERV","Social Services","6CCHILLOOKED","Children Looked After","REV","Revenue","R2158","CSW Service","03-TRANSPORT","Transport","03D","Public transport","5301","Children Services Transport Costs","3739870","202402",06/04/2023 00:00:00,5,"80170","Travel Agents and Holiday Companies","REDACTED DATA","CLICK TRAVEL LTD","3770815","http://opencorporates.com/companies/gb/3770815","799566639"
"London Borough of Redbridge","http://opendatacommunities.org/doc/london-borough-council/redbridge","6BSOCIALSERV","Social Services","6CCHILLOOKED","Children Looked After","REV","Revenue","R2158","CSW Service","03-TRANSPORT","Transport","03D","Public transport","5301","Children Services Transport Costs","3739870","202402",21/04/2023 00:00:00,3,"80170","Travel Agents and Holiday Companies","REDACTED DATA","CLICK TRAVEL LTD","3770815","http://opencorporates.com/companies/gb/3770815","799566639"
"London Borough of Redbridge","http://opendatacommunities.org/doc/london-borough-council/redbridge","6BSOCIALSERV","Social Services","6CCHILLOOKED","Children Looked After","REV","Revenue","R2158","CSW Service","03-TRANSPORT","Transport","03D","Public transport","5301","Children Services Transport Costs","3739870","202402",28/04/2023 00:00:00,15.2,"80170","Travel Agents and Holiday Companies","REDACTED DATA","CLICK TRAVEL LTD","3770815","http://opencorporates.com/companies/gb/3770815","799566639"
"London Borough of Redbridge","http://opendatacommunities.org/doc/london-borough-council/redbridge","6BSOCIALSERV","Social Services","6CCHILLOOKED","Children Looked After","REV","Revenue","R2158","CSW Service","03-TRANSPORT","Transport","03D","Public transport","5301","Children Services Transport Costs","3739870","202402",06/04/2023 00:00:00,1446,"80170","Travel Agents and Holiday Companies","REDACTED DATA","CLICK TRAVEL LTD","3770815","http://opencorporates.com/companies/gb/3770815","799566639"
"London Borough of Redbridge","http://opendatacommunities.org/doc/london-borough-council/redbridge","6BSOCIALSERV","Social Services","6CCHILLOOKED","Children Looked After","REV","Revenue","R2158","CSW Service","03-TRANSPORT","Transport","03D","Public transport","5301","Children Services Transport Costs","3739870","202402",21/04/2023 00:00:00,1238.21,"80170","Travel Agents and Holiday Companies","REDACTED DATA","CLICK TRAVEL LTD","3770815","http://opencorporates.com/companies/gb/3770815","799566639"
"London Borough of Redbridge","http://opendatacommunities.org/doc/london-borough-council/redbridge","6BSOCIALSERV","Social Services","6CCHILLOOKED","Children Looked After","REV","Revenue","R2158","CSW Service","03-TRANSPORT","Transport","03D","Public transport","5301","Children Services Transport Costs","3739870","202402",13/04/2023 00:00:00,9.35,"80170","Travel Agents and Holiday Companies","REDACTED DATA","CLICK TRAVEL LTD","3770815","http://opencorporates.com/companies/gb/3770815","799566639"
"London Borough of Redbridge","http://opendatacommunities.org/doc/london-borough-council/redbridge","6BSOCIALSERV","Social Services","6CCHILLOOKED","Children Looked After","REV","Revenue","R2158","CSW Service","03-TRANSPORT","Transport","03D","Public transport","5301","Children Services Transport Costs","3739870","202402",06/04/2023 00:00:00,1112.5,"80170","Travel Agents and Holiday Companies","REDACTED DATA","CLICK TRAVEL LTD","3770815","http://opencorporates.com/companies/gb/3770815","799566639"
"London Borough of Redbridge","http://opendatacommunities.org/doc/london-borough-council/redbridge","6BSOCIALSERV","Social Services","6CCHILLOOKED","Children Looked After","REV","Revenue","R2158","CSW Service","03-TRANSPORT","Transport","03D","Public transport","5301","Children Services Transport Costs","3739870","202402",21/04/2023 00:00:00,15.2,"80170","Travel Agents and Holiday Companies","REDACTED DATA","CLICK TRAVEL LTD","3770815","http://opencorporates.com/companies/gb/3770815","799566639"
"London Borough of Redbridge","http://opendatacommunities.org/doc/london-borough-council/redbridge","6BSOCIALSERV","Social Services","6CCHILLOOKED","Children Looked After","REV","Revenue","R2158","CSW Service","03-TRANSPORT","Transport","03D","Public transport","5301","Children Services Transport Costs","3739870","202402",06/04/2023 00:00:00,1045.83,"80170","Travel Agents and Holiday Companies","REDACTED DATA","CLICK TRAVEL LTD","3770815","http://opencorporates.com/companies/gb/3770815","799566639"
"London Borough of Redbridge","http://opendatacommunities.org/doc/london-borough-council/redbridge","6BSOCIALSERV","Social Services","6CCHILLOOKED","Children Looked After","REV","Revenue","R2158","CSW Service","03-TRANSPORT","Transport","03D","Public transport","5301","Children Services Transport Costs","3739870","202402",11/04/2023 00:00:00,15.2,"80170","Travel Agents and Holiday Companies","REDACTED DATA","CLICK TRAVEL LTD","3770815","http://opencorporates.com/companies/gb/3770815","799566639"
"London Borough of Redbridge","http://opendatacommunities.org/doc/london-borough-council/redbridge","6BSOCIALSERV","Social Services","6CCHILLOOKED","Children Looked After","REV","Revenue","R2158","CSW Service","03-TRANSPORT","Transport","03D","Public transport","5301","Children Services Transport Costs","3739870","202402",21/04/2023 00:00:00,15.2,"80170","Travel Agents and Holiday Companies","REDACTED DATA","CLICK TRAVEL LTD","3770815","http://opencorporates.com/companies/gb/3770815","799566639"
"London Borough of Redbridge","http://opendatacommunities.org/doc/london-borough-council/redbridge","6BSOCIALSERV","Social Services","6CCHILLOOKED","Children Looked After","REV","Revenue","R2158","CSW Service","03-TRANSPORT","Transport","03D","Public transport","5301","Children Services Transport Costs","3739870","202402",11/04/2023 00:00:00,15.2,"80170","Travel Agents and Holiday Companies","REDACTED DATA","CLICK TRAVEL LTD","3770815","http://opencorporates.com/companies/gb/3770815","799566639"
"London Borough of Redbridge","http://opendatacommunities.org/doc/london-borough-council/redbridge","6BSOCIALSERV","Social Services","6CCHILLOOKED","Children Looked After","REV","Revenue","R2158","CSW Service","03-TRANSPORT","Transport","03D","Public transport","5301","Children Services Transport Costs","3739870","202402",21/04/2023 00:00:00,15.2,"80170","Travel Agents and Holiday Companies","REDACTED DATA","CLICK TRAVEL LTD","3770815","http://opencorporates.com/companies/gb/3770815","799566639"
"London Borough of Redbridge","http://opendatacommunities.org/doc/london-borough-council/redbridge","6BSOCIALSERV","Social Services","6CCHILLOOKED","Children Looked After","REV","Revenue","R2158","CSW Service","03-TRANSPORT","Transport","03D","Public transport","5301","Children Services Transport Costs","3739870","202402",13/04/2023 00:00:00,36.2,"80170","Travel Agents and Holiday Companies","REDACTED DATA","CLICK TRAVEL LTD","3770815","http://opencorporates.com/companies/gb/3770815","799566639"
"London Borough of Redbridge","http://opendatacommunities.org/doc/london-borough-council/redbridge","6BSOCIALSERV","Social Services","6CCHILLOOKED","Children Looked After","REV","Revenue","R2158","CSW Service","03-TRANSPORT","Transport","03D","Public transport","5301","Children Services Transport Costs","3739870","202402",06/04/2023 00:00:00,15.2,"80170","Travel Agents and Holiday Companies","REDACTED DATA","CLICK TRAVEL LTD","3770815","http://opencorporates.com/companies/gb/3770815","799566639"
"London Borough of Redbridge","http://opendatacommunities.org/doc/london-borough-council/redbridge","6BSOCIALSERV","Social Services","6CCHILLOOKED","Children Looked After","REV","Revenue","R2166","Child Protection Assmt Service Soc Care","03-TRANSPORT","Transport","03D","Public transport","5301","Children Services Transport Costs","3739870","202402",19/04/2023 00:00:00,716.62,"80170","Travel Agents and Holiday Companies","REDACTED DATA","CLICK TRAVEL LTD","3770815","http://opencorporates.com/companies/gb/3770815","799566639"
"London Borough of Redbridge","http://opendatacommunities.org/doc/london-borough-council/redbridge","6BSOCIALSERV","Social Services","6CCHILLOOKED","Children Looked After","REV","Revenue","R2166","Child Protection Assmt Service Soc Care","03-TRANSPORT","Transport","03D","Public transport","5301","Children Services Transport Costs","3739870","202402",19/04/2023 00:00:00,3,"80170","Travel Agents and Holiday Companies","REDACTED DATA","CLICK TRAVEL LTD","3770815","http://opencorporates.com/companies/gb/3770815","799566639"
"London Borough of Redbridge","http://opendatacommunities.org/doc/london-borough-council/redbridge","6BSOCIALSERV","Social Services","6CCHILLOOKED","Children Looked After","REV","Revenue","R2166","Child Protection Assmt Service Soc Care","05-THIRD","Third Party Payments","05H","Private contractors","6912","Bed & Breakfast Charges","3739870","202402",24/03/2023 00:00:00,150,"80170","Travel Agents and Holiday Companies","REDACTED DATA","CLICK TRAVEL LTD","3770815","http://opencorporates.com/companies/gb/3770815","799566639"
"London Borough of Redbridge","http://opendatacommunities.org/doc/london-borough-council/redbridge","6BSOCIALSERV","Social Services","6CCHILLOOKED","Children Looked After","REV","Revenue","R2166","Child Protection Assmt Service Soc Care","06-TRANSFER","Transfer Payments","06B","Social Services Clients","7057","Section 17 Payments","3739870","202402",27/04/2023 00:00:00,379.96,"80170","Travel Agents and Holiday Companies","REDACTED DATA","CLICK TRAVEL LTD","3770815","http://opencorporates.com/companies/gb/3770815","799566639"
"London Borough of Redbridge","http://opendatacommunities.org/doc/london-borough-council/redbridge","6BSOCIALSERV","Social Services","6CCHILLOOKED","Children Looked After","REV","Revenue","R2166","Child Protection Assmt Service Soc Care","06-TRANSFER","Transfer Payments","06B","Social Services Clients","7057","Section 17 Payments","3739870","202402",14/04/2023 00:00:00,684.11,"80170","Travel Agents and Holiday Companies","REDACTED DATA","CLICK TRAVEL LTD","3770815","http://opencorporates.com/companies/gb/3770815","799566639"
"London Borough of Redbridge","http://opendatacommunities.org/doc/london-borough-council/redbridge","6BSOCIALSERV","Social Services","6CCHILLOOKED","Children Looked After","REV","Revenue","R2166","Child Protection Assmt Service Soc Care","06-TRANSFER","Transfer Payments","06B","Social Services Clients","7057","Section 17 Payments","3739870","202402",31/03/2023 00:00:00,810.17,"80170","Travel Agents and Holiday Companies","REDACTED DATA","CLICK TRAVEL LTD","3770815","http://opencorporates.com/companies/gb/3770815","799566639"
"London Borough of Redbridge","http://opendatacommunities.org/doc/london-borough-council/redbridge","6BSOCIALSERV","Social Services","6CCHILLOOKED","Children Looked After","REV","Revenue","R2166","Child Protection Assmt Service Soc Care","06-TRANSFER","Transfer Payments","06B","Social Services Clients","7057","Section 17 Payments","3739870","202402",06/04/2023 00:00:00,3,"80170","Travel Agents and Holiday Companies","REDACTED DATA","CLICK TRAVEL LTD","3770815","http://opencorporates.com/companies/gb/3770815","799566639"
"London Borough of Redbridge","http://opendatacommunities.org/doc/london-borough-council/redbridge","6BSOCIALSERV","Social Services","6CCHILLOOKED","Children Looked After","REV","Revenue","R2166","Child Protection Assmt Service Soc Care","06-TRANSFER","Transfer Payments","06B","Social Services Clients","7057","Section 17 Payments","3739870","202402",06/04/2023 00:00:00,3,"80170","Travel Agents and Holiday Companies","REDACTED DATA","CLICK TRAVEL LTD","3770815","http://opencorporates.com/companies/gb/3770815","799566639"
"London Borough of Redbridge","http://opendatacommunities.org/doc/london-borough-council/redbridge","6BSOCIALSERV","Social Services","6CCHILLOOKED","Children Looked After","REV","Revenue","R2166","Child Protection Assmt Service Soc Care","06-TRANSFER","Transfer Payments","06B","Social Services Clients","7057","Section 17 Payments","3739870","202402",06/04/2023 00:00:00,649.17,"80170","Travel Agents and Holiday Companies","REDACTED DATA","CLICK TRAVEL LTD","3770815","http://opencorporates.com/companies/gb/3770815","799566639"
"London Borough of Redbridge","http://opendatacommunities.org/doc/london-borough-council/redbridge","6BSOCIALSERV","Social Services","6CCHILLOOKED","Children Looked After","REV","Revenue","R2166","Child Protection Assmt Service Soc Care","06-TRANSFER","Transfer Payments","06B","Social Services Clients","7057","Section 17 Payments","3739870","202402",17/04/2023 00:00:00,53.33,"80170","Travel Agents and Holiday Companies","REDACTED DATA","CLICK TRAVEL LTD","3770815","http://opencorporates.com/companies/gb/3770815","799566639"
"London Borough of Redbridge","http://opendatacommunities.org/doc/london-borough-council/redbridge","6BSOCIALSERV","Social Services","6CCHILLOOKED","Children Looked After","REV","Revenue","R2166","Child Protection Assmt Service Soc Care","06-TRANSFER","Transfer Payments","06B","Social Services Clients","7057","Section 17 Payments","3739870","202402",12/04/2023 00:00:00,53.33,"80170","Travel Agents and Holiday Companies","REDACTED DATA","CLICK TRAVEL LTD","3770815","http://opencorporates.com/companies/gb/3770815","799566639"
"London Borough of Redbridge","http://opendatacommunities.org/doc/london-borough-council/redbridge","6BSOCIALSERV","Social Services","6CCHILLOOKED","Children Looked After","REV","Revenue","R2166","Child Protection Assmt Service Soc Care","06-TRANSFER","Transfer Payments","06B","Social Services Clients","7057","Section 17 Payments","3739870","202402",14/04/2023 00:00:00,3,"80170","Travel Agents and Holiday Companies","REDACTED DATA","CLICK TRAVEL LTD","3770815","http://opencorporates.com/companies/gb/3770815","799566639"
"London Borough of Redbridge","http://opendatacommunities.org/doc/london-borough-council/redbridge","6BSOCIALSERV","Social Services","6CCHILLOOKED","Children Looked After","REV","Revenue","R2166","Child Protection Assmt Service Soc Care","06-TRANSFER","Transfer Payments","06B","Social Services Clients","7057","Section 17 Payments","3739870","202402",23/03/2023 00:00:00,784.17,"80170","Travel Agents and Holiday Companies","REDACTED DATA","CLICK TRAVEL LTD","3770815","http://opencorporates.com/companies/gb/3770815","799566639"
"London Borough of Redbridge","http://opendatacommunities.org/doc/london-borough-council/redbridge","6BSOCIALSERV","Social Services","6CCHILLOOKED","Children Looked After","REV","Revenue","R2166","Child Protection Assmt Service Soc Care","06-TRANSFER","Transfer Payments","06B","Social Services Clients","7057","Section 17 Payments","3739870","202402",04/04/2023 00:00:00,111.66,"80170","Travel Agents and Holiday Companies","REDACTED DATA","CLICK TRAVEL LTD","3770815","http://opencorporates.com/companies/gb/3770815","799566639"
"London Borough of Redbridge","http://opendatacommunities.org/doc/london-borough-council/redbridge","6BSOCIALSERV","Social Services","6CCHILLOOKED","Children Looked After","REV","Revenue","R2166","Child Protection Assmt Service Soc Care","06-TRANSFER","Transfer Payments","06B","Social Services Clients","7057","Section 17 Payments","3739870","202402",11/04/2023 00:00:00,481.61,"80170","Travel Agents and Holiday Companies","REDACTED DATA","CLICK TRAVEL LTD","3770815","http://opencorporates.com/companies/gb/3770815","799566639"
"London Borough of Redbridge","http://opendatacommunities.org/doc/london-borough-council/redbridge","6BSOCIALSERV","Social Services","6CCHILLOOKED","Children Looked After","REV","Revenue","R2166","Child Protection Assmt Service Soc Care","06-TRANSFER","Transfer Payments","06B","Social Services Clients","7057","Section 17 Payments","3739870","202402",27/03/2023 00:00:00,3,"80170","Travel Agents and Holiday Companies","REDACTED DATA","CLICK TRAVEL LTD","3770815","http://opencorporates.com/companies/gb/3770815","799566639"
"London Borough of Redbridge","http://opendatacommunities.org/doc/london-borough-council/redbridge","6BSOCIALSERV","Social Services","6CCHILLOOKED","Children Looked After","REV","Revenue","R2166","Child Protection Assmt Service Soc Care","06-TRANSFER","Transfer Payments","06B","Social Services Clients","7057","Section 17 Payments","3739870","202402",27/03/2023 00:00:00,647.44,"80170","Travel Agents and Holiday Companies","REDACTED DATA","CLICK TRAVEL LTD","3770815","http://opencorporates.com/companies/gb/3770815","799566639"
"London Borough of Redbridge","http://opendatacommunities.org/doc/london-borough-council/redbridge","6BSOCIALSERV","Social Services","6CCHILLOOKED","Children Looked After","REV","Revenue","R2166","Child Protection Assmt Service Soc Care","06-TRANSFER","Transfer Payments","06B","Social Services Clients","7057","Section 17 Payments","3739870","202402",06/04/2023 00:00:00,775.78,"80170","Travel Agents and Holiday Companies","REDACTED DATA","CLICK TRAVEL LTD","3770815","http://opencorporates.com/companies/gb/3770815","799566639"
"London Borough of Redbridge","http://opendatacommunities.org/doc/london-borough-council/redbridge","6BSOCIALSERV","Social Services","6CCHILLOOKED","Children Looked After","REV","Revenue","R2166","Child Protection Assmt Service Soc Care","06-TRANSFER","Transfer Payments","06B","Social Services Clients","7057","Section 17 Payments","3739870","202402",03/04/2023 00:00:00,829.58,"80170","Travel Agents and Holiday Companies","REDACTED DATA","CLICK TRAVEL LTD","3770815","http://opencorporates.com/companies/gb/3770815","799566639"
"London Borough of Redbridge","http://opendatacommunities.org/doc/london-borough-council/redbridge","6BSOCIALSERV","Social Services","6CCHILLOOKED","Children Looked After","REV","Revenue","R2166","Child Protection Assmt Service Soc Care","06-TRANSFER","Transfer Payments","06B","Social Services Clients","7057","Section 17 Payments","3739870","202402",03/04/2023 00:00:00,3,"80170","Travel Agents and Holiday Companies","REDACTED DATA","CLICK TRAVEL LTD","3770815","http://opencorporates.com/companies/gb/3770815","799566639"
"London Borough of Redbridge","http://opendatacommunities.org/doc/london-borough-council/redbridge","6BSOCIALSERV","Social Services","6CCHILLOOKED","Children Looked After","REV","Revenue","R2166","Child Protection Assmt Service Soc Care","06-TRANSFER","Transfer Payments","06B","Social Services Clients","7057","Section 17 Payments","3739870","202402",18/04/2023 00:00:00,475,"80170","Travel Agents and Holiday Companies","REDACTED DATA","CLICK TRAVEL LTD","3770815","http://opencorporates.com/companies/gb/3770815","799566639"
"London Borough of Redbridge","http://opendatacommunities.org/doc/london-borough-council/redbridge","6BSOCIALSERV","Social Services","6CCHILLOOKED","Children Looked After","REV","Revenue","R2166","Child Protection Assmt Service Soc Care","06-TRANSFER","Transfer Payments","06B","Social Services Clients","7057","Section 17 Payments","3739870","202402",06/04/2023 00:00:00,643.75,"80170","Travel Agents and Holiday Companies","REDACTED DATA","CLICK TRAVEL LTD","3770815","http://opencorporates.com/companies/gb/3770815","799566639"
"London Borough of Redbridge","http://opendatacommunities.org/doc/london-borough-council/redbridge","6BSOCIALSERV","Social Services","6CCHILLOOKED","Children Looked After","REV","Revenue","R2166","Child Protection Assmt Service Soc Care","06-TRANSFER","Transfer Payments","06B","Social Services Clients","7057","Section 17 Payments","3739870","202402",27/04/2023 00:00:00,3,"80170","Travel Agents and Holiday Companies","REDACTED DATA","CLICK TRAVEL LTD","3770815","http://opencorporates.com/companies/gb/3770815","799566639"
"London Borough of Redbridge","http://opendatacommunities.org/doc/london-borough-council/redbridge","6BSOCIALSERV","Social Services","6CCHILLOOKED","Children Looked After","REV","Revenue","R2166","Child Protection Assmt Service Soc Care","06-TRANSFER","Transfer Payments","06B","Social Services Clients","7057","Section 17 Payments","3739870","202402",18/04/2023 00:00:00,1658.33,"80170","Travel Agents and Holiday Companies","REDACTED DATA","CLICK TRAVEL LTD","3770815","http://opencorporates.com/companies/gb/3770815","799566639"
"London Borough of Redbridge","http://opendatacommunities.org/doc/london-borough-council/redbridge","6BSOCIALSERV","Social Services","6CCHILLOOKED","Children Looked After","REV","Revenue","R2166","Child Protection Assmt Service Soc Care","06-TRANSFER","Transfer Payments","06B","Social Services Clients","7057","Section 17 Payments","3739870","202402",17/03/2023 00:00:00,300,"80170","Travel Agents and Holiday Companies","REDACTED DATA","CLICK TRAVEL LTD","3770815","http://opencorporates.com/companies/gb/3770815","799566639"
"London Borough of Redbridge","http://opendatacommunities.org/doc/london-borough-council/redbridge","6BSOCIALSERV","Social Services","6CCHILLOOKED","Children Looked After","REV","Revenue","R2166","Child Protection Assmt Service Soc Care","06-TRANSFER","Transfer Payments","06B","Social Services Clients","7057","Section 17 Payments","3739870","202402",31/03/2023 00:00:00,3,"80170","Travel Agents and Holiday Companies","REDACTED DATA","CLICK TRAVEL LTD","3770815","http://opencorporates.com/companies/gb/3770815","799566639"
"London Borough of Redbridge","http://opendatacommunities.org/doc/london-borough-council/redbridge","6BSOCIALSERV","Social Services","6CCHILLOOKED","Children Looked After","REV","Revenue","R2166","Child Protection Assmt Service Soc Care","06-TRANSFER","Transfer Payments","06B","Social Services Clients","7057","Section 17 Payments","3739870","202402",11/04/2023 00:00:00,3,"80170","Travel Agents and Holiday Companies","REDACTED DATA","CLICK TRAVEL LTD","3770815","http://opencorporates.com/companies/gb/3770815","799566639"
"London Borough of Redbridge","http://opendatacommunities.org/doc/london-borough-council/redbridge","6BSOCIALSERV","Social Services","6CCHILLOOKED","Children Looked After","REV","Revenue","R2166","Child Protection Assmt Service Soc Care","06-TRANSFER","Transfer Payments","06B","Social Services Clients","7057","Section 17 Payments","3739870","202402",24/03/2023 00:00:00,879.17,"80170","Travel Agents and Holiday Companies","REDACTED DATA","CLICK TRAVEL LTD","3770815","http://opencorporates.com/companies/gb/3770815","799566639"
"London Borough of Redbridge","http://opendatacommunities.org/doc/london-borough-council/redbridge","6BSOCIALSERV","Social Services","6CCHILLOOKED","Children Looked After","REV","Revenue","R2166","Child Protection Assmt Service Soc Care","06-TRANSFER","Transfer Payments","06B","Social Services Clients","7057","Section 17 Payments","3739870","202402",11/04/2023 00:00:00,1109.88,"80170","Travel Agents and Holiday Companies","REDACTED DATA","CLICK TRAVEL LTD","3770815","http://opencorporates.com/companies/gb/3770815","799566639"
"London Borough of Redbridge","http://opendatacommunities.org/doc/london-borough-council/redbridge","6BSOCIALSERV","Social Services","6CCHILLOOKED","Children Looked After","REV","Revenue","R2166","Child Protection Assmt Service Soc Care","06-TRANSFER","Transfer Payments","06B","Social Services Clients","7057","Section 17 Payments","3739870","202402",03/04/2023 00:00:00,3,"80170","Travel Agents and Holiday Companies","REDACTED DATA","CLICK TRAVEL LTD","3770815","http://opencorporates.com/companies/gb/3770815","799566639"
"London Borough of Redbridge","http://opendatacommunities.org/doc/london-borough-council/redbridge","6BSOCIALSERV","Social Services","6CCHILLOOKED","Children Looked After","REV","Revenue","R2166","Child Protection Assmt Service Soc Care","06-TRANSFER","Transfer Payments","06B","Social Services Clients","7057","Section 17 Payments","3739870","202402",12/04/2023 00:00:00,3,"80170","Travel Agents and Holiday Companies","REDACTED DATA","CLICK TRAVEL LTD","3770815","http://opencorporates.com/companies/gb/3770815","799566639"
"London Borough of Redbridge","http://opendatacommunities.org/doc/london-borough-council/redbridge","6BSOCIALSERV","Social Services","6CCHILLOOKED","Children Looked After","REV","Revenue","R2166","Child Protection Assmt Service Soc Care","06-TRANSFER","Transfer Payments","06B","Social Services Clients","7057","Section 17 Payments","3739870","202402",11/04/2023 00:00:00,3,"80170","Travel Agents and Holiday Companies","REDACTED DATA","CLICK TRAVEL LTD","3770815","http://opencorporates.com/companies/gb/3770815","799566639"
"London Borough of Redbridge","http://opendatacommunities.org/doc/london-borough-council/redbridge","6BSOCIALSERV","Social Services","6CCHILLOOKED","Children Looked After","REV","Revenue","R2166","Child Protection Assmt Service Soc Care","06-TRANSFER","Transfer Payments","06B","Social Services Clients","7057","Section 17 Payments","3739870","202402",04/04/2023 00:00:00,3,"80170","Travel Agents and Holiday Companies","REDACTED DATA","CLICK TRAVEL LTD","3770815","http://opencorporates.com/companies/gb/3770815","799566639"
"London Borough of Redbridge","http://opendatacommunities.org/doc/london-borough-council/redbridge","6BSOCIALSERV","Social Services","6CCHILLOOKED","Children Looked After","REV","Revenue","R2166","Child Protection Assmt Service Soc Care","06-TRANSFER","Transfer Payments","06B","Social Services Clients","7057","Section 17 Payments","3739870","202402",03/04/2023 00:00:00,806.02,"80170","Travel Agents and Holiday Companies","REDACTED DATA","CLICK TRAVEL LTD","3770815","http://opencorporates.com/companies/gb/3770815","799566639"
"London Borough of Redbridge","http://opendatacommunities.org/doc/london-borough-council/redbridge","6BSOCIALSERV","Social Services","6CCHILLOOKED","Children Looked After","REV","Revenue","R2166","Child Protection Assmt Service Soc Care","06-TRANSFER","Transfer Payments","06B","Social Services Clients","7057","Section 17 Payments","3739870","202402",22/03/2023 00:00:00,657.5,"80170","Travel Agents and Holiday Companies","REDACTED DATA","CLICK TRAVEL LTD","3770815","http://opencorporates.com/companies/gb/3770815","799566639"
"London Borough of Redbridge","http://opendatacommunities.org/doc/london-borough-council/redbridge","6BSOCIALSERV","Social Services","6CCHILLOOKED","Children Looked After","REV","Revenue","R2166","Child Protection Assmt Service Soc Care","06-TRANSFER","Transfer Payments","06B","Social Services Clients","7057","Section 17 Payments","3739870","202402",05/04/2023 00:00:00,70,"80170","Travel Agents and Holiday Companies","REDACTED DATA","CLICK TRAVEL LTD","3770815","http://opencorporates.com/companies/gb/3770815","799566639"
"London Borough of Redbridge","http://opendatacommunities.org/doc/london-borough-council/redbridge","6BSOCIALSERV","Social Services","6CCHILLOOKED","Children Looked After","REV","Revenue","R2166","Child Protection Assmt Service Soc Care","06-TRANSFER","Transfer Payments","06B","Social Services Clients","7057","Section 17 Payments","3739870","202402",22/03/2023 00:00:00,272.92,"80170","Travel Agents and Holiday Companies","REDACTED DATA","CLICK TRAVEL LTD","3770815","http://opencorporates.com/companies/gb/3770815","799566639"
"London Borough of Redbridge","http://opendatacommunities.org/doc/london-borough-council/redbridge","6BSOCIALSERV","Social Services","6CCHILLOOKED","Children Looked After","REV","Revenue","R2166","Child Protection Assmt Service Soc Care","06-TRANSFER","Transfer Payments","06B","Social Services Clients","7057","Section 17 Payments","3739870","202402",27/04/2023 00:00:00,636.83,"80170","Travel Agents and Holiday Companies","REDACTED DATA","CLICK TRAVEL LTD","3770815","http://opencorporates.com/companies/gb/3770815","799566639"
"London Borough of Redbridge","http://opendatacommunities.org/doc/london-borough-council/redbridge","6BSOCIALSERV","Social Services","6CCHILLOOKED","Children Looked After","REV","Revenue","R2166","Child Protection Assmt Service Soc Care","06-TRANSFER","Transfer Payments","06B","Social Services Clients","7057","Section 17 Payments","3739870","202402",29/03/2023 00:00:00,50,"80170","Travel Agents and Holiday Companies","REDACTED DATA","CLICK TRAVEL LTD","3770815","http://opencorporates.com/companies/gb/3770815","799566639"
"London Borough of Redbridge","http://opendatacommunities.org/doc/london-borough-council/redbridge","6BSOCIALSERV","Social Services","6CCHILLOOKED","Children Looked After","REV","Revenue","R2166","Child Protection Assmt Service Soc Care","06-TRANSFER","Transfer Payments","06B","Social Services Clients","7057","Section 17 Payments","3739870","202402",05/04/2023 00:00:00,105,"80170","Travel Agents and Holiday Companies","REDACTED DATA","CLICK TRAVEL LTD","3770815","http://opencorporates.com/companies/gb/3770815","799566639"
"London Borough of Redbridge","http://opendatacommunities.org/doc/london-borough-council/redbridge","6BSOCIALSERV","Social Services","6CCHILLOOKED","Children Looked After","REV","Revenue","R2166","Child Protection Assmt Service Soc Care","06-TRANSFER","Transfer Payments","06B","Social Services Clients","7057","Section 17 Payments","3739870","202402",04/04/2023 00:00:00,70,"80170","Travel Agents and Holiday Companies","REDACTED DATA","CLICK TRAVEL LTD","3770815","http://opencorporates.com/companies/gb/3770815","799566639"
"London Borough of Redbridge","http://opendatacommunities.org/doc/london-borough-council/redbridge","6BSOCIALSERV","Social Services","6CCHILLOOKED","Children Looked After","REV","Revenue","R2166","Child Protection Assmt Service Soc Care","06-TRANSFER","Transfer Payments","06B","Social Services Clients","7057","Section 17 Payments","3739870","202402",05/04/2023 00:00:00,3,"80170","Travel Agents and Holiday Companies","REDACTED DATA","CLICK TRAVEL LTD","3770815","http://opencorporates.com/companies/gb/3770815","799566639"
"London Borough of Redbridge","http://opendatacommunities.org/doc/london-borough-council/redbridge","6BSOCIALSERV","Social Services","6CCHILLOOKED","Children Looked After","REV","Revenue","R2166","Child Protection Assmt Service Soc Care","06-TRANSFER","Transfer Payments","06B","Social Services Clients","7057","Section 17 Payments","3739870","202402",11/04/2023 00:00:00,74.17,"80170","Travel Agents and Holiday Companies","REDACTED DATA","CLICK TRAVEL LTD","3770815","http://opencorporates.com/companies/gb/3770815","799566639"
"London Borough of Redbridge","http://opendatacommunities.org/doc/london-borough-council/redbridge","6BSOCIALSERV","Social Services","6CCHILLOOKED","Children Looked After","REV","Revenue","R2166","Child Protection Assmt Service Soc Care","06-TRANSFER","Transfer Payments","06B","Social Services Clients","7057","Section 17 Payments","3739870","202402",12/04/2023 00:00:00,454.94,"80170","Travel Agents and Holiday Companies","REDACTED DATA","CLICK TRAVEL LTD","3770815","http://opencorporates.com/companies/gb/3770815","799566639"
"London Borough of Redbridge","http://opendatacommunities.org/doc/london-borough-council/redbridge","6BSOCIALSERV","Social Services","6CCHILLOOKED","Children Looked After","REV","Revenue","R2179","REWTS - Redbridge Emotional Well-being Team","04-SUPPLIES","Supplies And Services","04G","Expenses","5907","Travel & Subsistence","3739870","202402",05/04/2023 00:00:00,64.8,"80170","Travel Agents and Holiday Companies","REDACTED DATA","CLICK TRAVEL LTD","3770815","http://opencorporates.com/companies/gb/3770815","799566639"
"London Borough of Redbridge","http://opendatacommunities.org/doc/london-borough-council/redbridge","6BSOCIALSERV","Social Services","6CCHILLOOKED","Children Looked After","REV","Revenue","R2179","REWTS - Redbridge Emotional Well-being Team","04-SUPPLIES","Supplies And Services","04G","Expenses","5907","Travel & Subsistence","3739870","202402",05/04/2023 00:00:00,137,"80170","Travel Agents and Holiday Companies","REDACTED DATA","CLICK TRAVEL LTD","3770815","http://opencorporates.com/companies/gb/3770815","799566639"
"London Borough of Redbridge","http://opendatacommunities.org/doc/london-borough-council/redbridge","6BSOCIALSERV","Social Services","6COTHC&FSERV","Other Children's & Families' Services","REV","Revenue","R2123","LAC Service","03-TRANSPORT","Transport","03D","Public transport","5300","Travel Expenses","3739870","202402",27/04/2023 00:00:00,146.8,"80170","Travel Agents and Holiday Companies","REDACTED DATA","CLICK TRAVEL LTD","3770815","http://opencorporates.com/companies/gb/3770815","799566639"
"London Borough of Redbridge","http://opendatacommunities.org/doc/london-borough-council/redbridge","6BSOCIALSERV","Social Services","6COTHC&FSERV","Other Children's & Families' Services","REV","Revenue","R2123","LAC Service","03-TRANSPORT","Transport","03D","Public transport","5300","Travel Expenses","3739870","202402",21/04/2023 00:00:00,15.2,"80170","Travel Agents and Holiday Companies","REDACTED DATA","CLICK TRAVEL LTD","3770815","http://opencorporates.com/companies/gb/3770815","799566639"
"London Borough of Redbridge","http://opendatacommunities.org/doc/london-borough-council/redbridge","6BSOCIALSERV","Social Services","6COTHC&FSERV","Other Children's & Families' Services","REV","Revenue","R2123","LAC Service","03-TRANSPORT","Transport","03D","Public transport","5300","Travel Expenses","3739870","202402",14/04/2023 00:00:00,420.83,"80170","Travel Agents and Holiday Companies","REDACTED DATA","CLICK TRAVEL LTD","3770815","http://opencorporates.com/companies/gb/3770815","799566639"
"London Borough of Redbridge","http://opendatacommunities.org/doc/london-borough-council/redbridge","6BSOCIALSERV","Social Services","6COTHC&FSERV","Other Children's & Families' Services","REV","Revenue","R2123","LAC Service","03-TRANSPORT","Transport","03D","Public transport","5300","Travel Expenses","3739870","202402",21/04/2023 00:00:00,15.2,"80170","Travel Agents and Holiday Companies","REDACTED DATA","CLICK TRAVEL LTD","3770815","http://opencorporates.com/companies/gb/3770815","799566639"
"London Borough of Redbridge","http://opendatacommunities.org/doc/london-borough-council/redbridge","6BSOCIALSERV","Social Services","6COTHC&FSERV","Other Children's & Families' Services","REV","Revenue","R2123","LAC Service","03-TRANSPORT","Transport","03D","Public transport","5300","Travel Expenses","3739870","202402",27/04/2023 00:00:00,7.5,"80170","Travel Agents and Holiday Companies","REDACTED DATA","CLICK TRAVEL LTD","3770815","http://opencorporates.com/companies/gb/3770815","799566639"
"London Borough of Redbridge","http://opendatacommunities.org/doc/london-borough-council/redbridge","6BSOCIALSERV","Social Services","6COTHC&FSERV","Other Children's & Families' Services","REV","Revenue","R2123","LAC Service","03-TRANSPORT","Transport","03D","Public transport","5300","Travel Expenses","3739870","202402",27/04/2023 00:00:00,160,"80170","Travel Agents and Holiday Companies","REDACTED DATA","CLICK TRAVEL LTD","3770815","http://opencorporates.com/companies/gb/3770815","799566639"
"London Borough of Redbridge","http://opendatacommunities.org/doc/london-borough-council/redbridge","6BSOCIALSERV","Social Services","6COTHC&FSERV","Other Children's & Families' Services","REV","Revenue","R2123","LAC Service","03-TRANSPORT","Transport","03D","Public transport","5300","Travel Expenses","3739870","202402",17/04/2023 00:00:00,21.5,"80170","Travel Agents and Holiday Companies","REDACTED DATA","CLICK TRAVEL LTD","3770815","http://opencorporates.com/companies/gb/3770815","799566639"
"London Borough of Redbridge","http://opendatacommunities.org/doc/london-borough-council/redbridge","6BSOCIALSERV","Social Services","6COTHC&FSERV","Other Children's & Families' Services","REV","Revenue","R2123","LAC Service","03-TRANSPORT","Transport","03D","Public transport","5300","Travel Expenses","3739870","202402",21/04/2023 00:00:00,15.2,"80170","Travel Agents and Holiday Companies","REDACTED DATA","CLICK TRAVEL LTD","3770815","http://opencorporates.com/companies/gb/3770815","799566639"
"London Borough of Redbridge","http://opendatacommunities.org/doc/london-borough-council/redbridge","6BSOCIALSERV","Social Services","6COTHC&FSERV","Other Children's & Families' Services","REV","Revenue","R2123","LAC Service","03-TRANSPORT","Transport","03D","Public transport","5300","Travel Expenses","3739870","202402",27/04/2023 00:00:00,15.2,"80170","Travel Agents and Holiday Companies","REDACTED DATA","CLICK TRAVEL LTD","3770815","http://opencorporates.com/companies/gb/3770815","799566639"
"London Borough of Redbridge","http://opendatacommunities.org/doc/london-borough-council/redbridge","6BSOCIALSERV","Social Services","6COTHC&FSERV","Other Children's & Families' Services","REV","Revenue","R2123","LAC Service","03-TRANSPORT","Transport","03D","Public transport","5300","Travel Expenses","3739870","202402",21/04/2023 00:00:00,15.2,"80170","Travel Agents and Holiday Companies","REDACTED DATA","CLICK TRAVEL LTD","3770815","http://opencorporates.com/companies/gb/3770815","799566639"
"London Borough of Redbridge","http://opendatacommunities.org/doc/london-borough-council/redbridge","6BSOCIALSERV","Social Services","6COTHC&FSERV","Other Children's & Families' Services","REV","Revenue","R2123","LAC Service","03-TRANSPORT","Transport","03D","Public transport","5300","Travel Expenses","3739870","202402",21/04/2023 00:00:00,15.2,"80170","Travel Agents and Holiday Companies","REDACTED DATA","CLICK TRAVEL LTD","3770815","http://opencorporates.com/companies/gb/3770815","799566639"
"London Borough of Redbridge","http://opendatacommunities.org/doc/london-borough-council/redbridge","6BSOCIALSERV","Social Services","6COTHC&FSERV","Other Children's & Families' Services","REV","Revenue","R2123","LAC Service","03-TRANSPORT","Transport","03D","Public transport","5300","Travel Expenses","3739870","202402",27/04/2023 00:00:00,134.98,"80170","Travel Agents and Holiday Companies","REDACTED DATA","CLICK TRAVEL LTD","3770815","http://opencorporates.com/companies/gb/3770815","799566639"
"London Borough of Redbridge","http://opendatacommunities.org/doc/london-borough-council/redbridge","6BSOCIALSERV","Social Services","6COTHC&FSERV","Other Children's & Families' Services","REV","Revenue","R2123","LAC Service","03-TRANSPORT","Transport","03D","Public transport","5300","Travel Expenses","3739870","202402",21/04/2023 00:00:00,15.2,"80170","Travel Agents and Holiday Companies","REDACTED DATA","CLICK TRAVEL LTD","3770815","http://opencorporates.com/companies/gb/3770815","799566639"
"London Borough of Redbridge","http://opendatacommunities.org/doc/london-borough-council/redbridge","6BSOCIALSERV","Social Services","6COTHC&FSERV","Other Children's & Families' Services","REV","Revenue","R2123","LAC Service","03-TRANSPORT","Transport","03D","Public transport","5301","Children Services Transport Costs","3739870","202402",12/04/2023 00:00:00,15.2,"80170","Travel Agents and Holiday Companies","REDACTED DATA","CLICK TRAVEL LTD","3770815","http://opencorporates.com/companies/gb/3770815","799566639"
"London Borough of Redbridge","http://opendatacommunities.org/doc/london-borough-council/redbridge","6BSOCIALSERV","Social Services","6COTHC&FSERV","Other Children's & Families' Services","REV","Revenue","R2123","LAC Service","03-TRANSPORT","Transport","03D","Public transport","5301","Children Services Transport Costs","3739870","202402",12/04/2023 00:00:00,169.98,"80170","Travel Agents and Holiday Companies","REDACTED DATA","CLICK TRAVEL LTD","3770815","http://opencorporates.com/companies/gb/3770815","799566639"
"London Borough of Redbridge","http://opendatacommunities.org/doc/london-borough-council/redbridge","6BSOCIALSERV","Social Services","6COTHC&FSERV","Other Children's & Families' Services","REV","Revenue","R2123","LAC Service","03-TRANSPORT","Transport","03D","Public transport","5301","Children Services Transport Costs","3739870","202402",12/04/2023 00:00:00,15.2,"80170","Travel Agents and Holiday Companies","REDACTED DATA","CLICK TRAVEL LTD","3770815","http://opencorporates.com/companies/gb/3770815","799566639"
"London Borough of Redbridge","http://opendatacommunities.org/doc/london-borough-council/redbridge","6BSOCIALSERV","Social Services","6COTHC&FSERV","Other Children's & Families' Services","REV","Revenue","R2123","LAC Service","03-TRANSPORT","Transport","03D","Public transport","5301","Children Services Transport Costs","3739870","202402",05/04/2023 00:00:00,15.2,"80170","Travel Agents and Holiday Companies","REDACTED DATA","CLICK TRAVEL LTD","3770815","http://opencorporates.com/companies/gb/3770815","799566639"
"London Borough of Redbridge","http://opendatacommunities.org/doc/london-borough-council/redbridge","6BSOCIALSERV","Social Services","6COTHC&FSERV","Other Children's & Families' Services","REV","Revenue","R2123","LAC Service","03-TRANSPORT","Transport","03D","Public transport","5301","Children Services Transport Costs","3739870","202402",27/03/2023 00:00:00,500,"80170","Travel Agents and Holiday Companies","REDACTED DATA","CLICK TRAVEL LTD","3770815","http://opencorporates.com/companies/gb/3770815","799566639"
"London Borough of Redbridge","http://opendatacommunities.org/doc/london-borough-council/redbridge","6BSOCIALSERV","Social Services","6COTHC&FSERV","Other Children's & Families' Services","REV","Revenue","R2123","LAC Service","03-TRANSPORT","Transport","03D","Public transport","5301","Children Services Transport Costs","3739870","202402",12/04/2023 00:00:00,7.5,"80170","Travel Agents and Holiday Companies","REDACTED DATA","CLICK TRAVEL LTD","3770815","http://opencorporates.com/companies/gb/3770815","799566639"
"London Borough of Redbridge","http://opendatacommunities.org/doc/london-borough-council/redbridge","6BSOCIALSERV","Social Services","6COTHC&FSERV","Other Children's & Families' Services","REV","Revenue","R2123","LAC Service","03-TRANSPORT","Transport","03D","Public transport","5301","Children Services Transport Costs","3739870","202402",12/04/2023 00:00:00,15.2,"80170","Travel Agents and Holiday Companies","REDACTED DATA","CLICK TRAVEL LTD","3770815","http://opencorporates.com/companies/gb/3770815","799566639"
"London Borough of Redbridge","http://opendatacommunities.org/doc/london-borough-council/redbridge","6BSOCIALSERV","Social Services","6COTHC&FSERV","Other Children's & Families' Services","REV","Revenue","R2123","LAC Service","03-TRANSPORT","Transport","03D","Public transport","5301","Children Services Transport Costs","3739870","202402",12/04/2023 00:00:00,15.2,"80170","Travel Agents and Holiday Companies","REDACTED DATA","CLICK TRAVEL LTD","3770815","http://opencorporates.com/companies/gb/3770815","799566639"
"London Borough of Redbridge","http://opendatacommunities.org/doc/london-borough-council/redbridge","6BSOCIALSERV","Social Services","6COTHC&FSERV","Other Children's & Families' Services","REV","Revenue","R2123","LAC Service","03-TRANSPORT","Transport","03D","Public transport","5301","Children Services Transport Costs","3739870","202402",12/04/2023 00:00:00,15.2,"80170","Travel Agents and Holiday Companies","REDACTED DATA","CLICK TRAVEL LTD","3770815","http://opencorporates.com/companies/gb/3770815","799566639"
"London Borough of Redbridge","http://opendatacommunities.org/doc/london-borough-council/redbridge","6BSOCIALSERV","Social Services","6COTHC&FSERV","Other Children's & Families' Services","REV","Revenue","R2123","LAC Service","03-TRANSPORT","Transport","03D","Public transport","5301","Children Services Transport Costs","3739870","202402",12/04/2023 00:00:00,42.7,"80170","Travel Agents and Holiday Companies","REDACTED DATA","CLICK TRAVEL LTD","3770815","http://opencorporates.com/companies/gb/3770815","799566639"
"London Borough of Redbridge","http://opendatacommunities.org/doc/london-borough-council/redbridge","6BSOCIALSERV","Social Services","6COTHC&FSERV","Other Children's & Families' Services","REV","Revenue","R2123","LAC Service","04-SUPPLIES","Supplies And Services","04G","Expenses","5907","Travel & Subsistence","3739870","202402",11/04/2023 00:00:00,15.2,"80170","Travel Agents and Holiday Companies","REDACTED DATA","CLICK TRAVEL LTD","3770815","http://opencorporates.com/companies/gb/3770815","799566639"
"London Borough of Redbridge","http://opendatacommunities.org/doc/london-borough-council/redbridge","6BSOCIALSERV","Social Services","6COTHC&FSERV","Other Children's & Families' Services","REV","Revenue","R2123","LAC Service","04-SUPPLIES","Supplies And Services","04G","Expenses","5907","Travel & Subsistence","3739870","202402",28/04/2023 00:00:00,15.2,"80170","Travel Agents and Holiday Companies","REDACTED DATA","CLICK TRAVEL LTD","3770815","http://opencorporates.com/companies/gb/3770815","799566639"
"London Borough of Redbridge","http://opendatacommunities.org/doc/london-borough-council/redbridge","6BSOCIALSERV","Social Services","6COTHC&FSERV","Other Children's & Families' Services","REV","Revenue","R2123","LAC Service","04-SUPPLIES","Supplies And Services","04G","Expenses","5907","Travel & Subsistence","3739870","202402",24/04/2023 00:00:00,25.8,"80170","Travel Agents and Holiday Companies","REDACTED DATA","CLICK TRAVEL LTD","3770815","http://opencorporates.com/companies/gb/3770815","799566639"
"London Borough of Redbridge","http://opendatacommunities.org/doc/london-borough-council/redbridge","6BSOCIALSERV","Social Services","6COTHC&FSERV","Other Children's & Families' Services","REV","Revenue","R2123","LAC Service","04-SUPPLIES","Supplies And Services","04G","Expenses","5907","Travel & Subsistence","3739870","202402",24/04/2023 00:00:00,103.9,"80170","Travel Agents and Holiday Companies","REDACTED DATA","CLICK TRAVEL LTD","3770815","http://opencorporates.com/companies/gb/3770815","799566639"
"London Borough of Redbridge","http://opendatacommunities.org/doc/london-borough-council/redbridge","6BSOCIALSERV","Social Services","6COTHC&FSERV","Other Children's & Families' Services","REV","Revenue","R2123","LAC Service","04-SUPPLIES","Supplies And Services","04G","Expenses","5907","Travel & Subsistence","3739870","202402",20/04/2023 00:00:00,7.5,"80170","Travel Agents and Holiday Companies","REDACTED DATA","CLICK TRAVEL LTD","3770815","http://opencorporates.com/companies/gb/3770815","799566639"
"London Borough of Redbridge","http://opendatacommunities.org/doc/london-borough-council/redbridge","6BSOCIALSERV","Social Services","6COTHC&FSERV","Other Children's & Families' Services","REV","Revenue","R2123","LAC Service","04-SUPPLIES","Supplies And Services","04G","Expenses","5907","Travel & Subsistence","3739870","202402",18/04/2023 00:00:00,29.9,"80170","Travel Agents and Holiday Companies","REDACTED DATA","CLICK TRAVEL LTD","3770815","http://opencorporates.com/companies/gb/3770815","799566639"
"London Borough of Redbridge","http://opendatacommunities.org/doc/london-borough-council/redbridge","6BSOCIALSERV","Social Services","6COTHC&FSERV","Other Children's & Families' Services","REV","Revenue","R2123","LAC Service","04-SUPPLIES","Supplies And Services","04G","Expenses","5907","Travel & Subsistence","3739870","202402",19/04/2023 00:00:00,154.35,"80170","Travel Agents and Holiday Companies","REDACTED DATA","CLICK TRAVEL LTD","3770815","http://opencorporates.com/companies/gb/3770815","799566639"
"London Borough of Redbridge","http://opendatacommunities.org/doc/london-borough-council/redbridge","6BSOCIALSERV","Social Services","6COTHC&FSERV","Other Children's & Families' Services","REV","Revenue","R2123","LAC Service","04-SUPPLIES","Supplies And Services","04G","Expenses","5907","Travel & Subsistence","3739870","202402",19/04/2023 00:00:00,21.5,"80170","Travel Agents and Holiday Companies","REDACTED DATA","CLICK TRAVEL LTD","3770815","http://opencorporates.com/companies/gb/3770815","799566639"
"London Borough of Redbridge","http://opendatacommunities.org/doc/london-borough-council/redbridge","6BSOCIALSERV","Social Services","6COTHC&FSERV","Other Children's & Families' Services","REV","Revenue","R2123","LAC Service","04-SUPPLIES","Supplies And Services","04G","Expenses","5907","Travel & Subsistence","3739870","202402",19/04/2023 00:00:00,159,"80170","Travel Agents and Holiday Companies","REDACTED DATA","CLICK TRAVEL LTD","3770815","http://opencorporates.com/companies/gb/3770815","799566639"
"London Borough of Redbridge","http://opendatacommunities.org/doc/london-borough-council/redbridge","6BSOCIALSERV","Social Services","6COTHC&FSERV","Other Children's & Families' Services","REV","Revenue","R2123","LAC Service","04-SUPPLIES","Supplies And Services","04G","Expenses","5907","Travel & Subsistence","3739870","202402",12/04/2023 00:00:00,27.6,"80170","Travel Agents and Holiday Companies","REDACTED DATA","CLICK TRAVEL LTD","3770815","http://opencorporates.com/companies/gb/3770815","799566639"
"London Borough of Redbridge","http://opendatacommunities.org/doc/london-borough-council/redbridge","6BSOCIALSERV","Social Services","6COTHC&FSERV","Other Children's & Families' Services","REV","Revenue","R2123","LAC Service","04-SUPPLIES","Supplies And Services","04G","Expenses","5907","Travel & Subsistence","3739870","202402",14/04/2023 00:00:00,15.2,"80170","Travel Agents and Holiday Companies","REDACTED DATA","CLICK TRAVEL LTD","3770815","http://opencorporates.com/companies/gb/3770815","799566639"
"London Borough of Redbridge","http://opendatacommunities.org/doc/london-borough-council/redbridge","6BSOCIALSERV","Social Services","6COTHC&FSERV","Other Children's & Families' Services","REV","Revenue","R2123","LAC Service","04-SUPPLIES","Supplies And Services","04G","Expenses","5907","Travel & Subsistence","3739870","202402",26/04/2023 00:00:00,21.5,"80170","Travel Agents and Holiday Companies","REDACTED DATA","CLICK TRAVEL LTD","3770815","http://opencorporates.com/companies/gb/3770815","799566639"
"London Borough of Redbridge","http://opendatacommunities.org/doc/london-borough-council/redbridge","6BSOCIALSERV","Social Services","6COTHC&FSERV","Other Children's & Families' Services","REV","Revenue","R2123","LAC Service","04-SUPPLIES","Supplies And Services","04G","Expenses","5907","Travel & Subsistence","3739870","202402",12/04/2023 00:00:00,21.5,"80170","Travel Agents and Holiday Companies","REDACTED DATA","CLICK TRAVEL LTD","3770815","http://opencorporates.com/companies/gb/3770815","799566639"
"London Borough of Redbridge","http://opendatacommunities.org/doc/london-borough-council/redbridge","6BSOCIALSERV","Social Services","6COTHC&FSERV","Other Children's & Families' Services","REV","Revenue","R2123","LAC Service","04-SUPPLIES","Supplies And Services","04G","Expenses","5907","Travel & Subsistence","3739870","202402",12/04/2023 00:00:00,21.5,"80170","Travel Agents and Holiday Companies","REDACTED DATA","CLICK TRAVEL LTD","3770815","http://opencorporates.com/companies/gb/3770815","799566639"
"London Borough of Redbridge","http://opendatacommunities.org/doc/london-borough-council/redbridge","6BSOCIALSERV","Social Services","6COTHC&FSERV","Other Children's & Families' Services","REV","Revenue","R2123","LAC Service","04-SUPPLIES","Supplies And Services","04G","Expenses","5907","Travel & Subsistence","3739870","202402",12/04/2023 00:00:00,15.2,"80170","Travel Agents and Holiday Companies","REDACTED DATA","CLICK TRAVEL LTD","3770815","http://opencorporates.com/companies/gb/3770815","799566639"
"London Borough of Redbridge","http://opendatacommunities.org/doc/london-borough-council/redbridge","6BSOCIALSERV","Social Services","6COTHC&FSERV","Other Children's & Families' Services","REV","Revenue","R2123","LAC Service","04-SUPPLIES","Supplies And Services","04G","Expenses","5907","Travel & Subsistence","3739870","202402",06/04/2023 00:00:00,21.5,"80170","Travel Agents and Holiday Companies","REDACTED DATA","CLICK TRAVEL LTD","3770815","http://opencorporates.com/companies/gb/3770815","799566639"
"London Borough of Redbridge","http://opendatacommunities.org/doc/london-borough-council/redbridge","6BSOCIALSERV","Social Services","6COTHC&FSERV","Other Children's & Families' Services","REV","Revenue","R2123","LAC Service","04-SUPPLIES","Supplies And Services","04G","Expenses","5907","Travel & Subsistence","3739870","202402",17/04/2023 00:00:00,21.5,"80170","Travel Agents and Holiday Companies","REDACTED DATA","CLICK TRAVEL LTD","3770815","http://opencorporates.com/companies/gb/3770815","799566639"
"London Borough of Redbridge","http://opendatacommunities.org/doc/london-borough-council/redbridge","6BSOCIALSERV","Social Services","6COTHC&FSERV","Other Children's & Families' Services","REV","Revenue","R2123","LAC Service","04-SUPPLIES","Supplies And Services","04G","Expenses","5907","Travel & Subsistence","3739870","202402",19/04/2023 00:00:00,7.5,"80170","Travel Agents and Holiday Companies","REDACTED DATA","CLICK TRAVEL LTD","3770815","http://opencorporates.com/companies/gb/3770815","799566639"
"London Borough of Redbridge","http://opendatacommunities.org/doc/london-borough-council/redbridge","6BSOCIALSERV","Social Services","6COTHC&FSERV","Other Children's & Families' Services","REV","Revenue","R2123","LAC Service","04-SUPPLIES","Supplies And Services","04G","Expenses","5907","Travel & Subsistence","3739870","202402",12/04/2023 00:00:00,13.4,"80170","Travel Agents and Holiday Companies","REDACTED DATA","CLICK TRAVEL LTD","3770815","http://opencorporates.com/companies/gb/3770815","799566639"
"London Borough of Redbridge","http://opendatacommunities.org/doc/london-borough-council/redbridge","6BSOCIALSERV","Social Services","6COTHC&FSERV","Other Children's & Families' Services","REV","Revenue","R2123","LAC Service","04-SUPPLIES","Supplies And Services","04G","Expenses","5907","Travel & Subsistence","3739870","202402",14/04/2023 00:00:00,15.2,"80170","Travel Agents and Holiday Companies","REDACTED DATA","CLICK TRAVEL LTD","3770815","http://opencorporates.com/companies/gb/3770815","799566639"
"London Borough of Redbridge","http://opendatacommunities.org/doc/london-borough-council/redbridge","6BSOCIALSERV","Social Services","6COTHC&FSERV","Other Children's & Families' Services","REV","Revenue","R2123","LAC Service","04-SUPPLIES","Supplies And Services","04G","Expenses","5907","Travel & Subsistence","3739870","202402",19/04/2023 00:00:00,125,"80170","Travel Agents and Holiday Companies","REDACTED DATA","CLICK TRAVEL LTD","3770815","http://opencorporates.com/companies/gb/3770815","799566639"
"London Borough of Redbridge","http://opendatacommunities.org/doc/london-borough-council/redbridge","6BSOCIALSERV","Social Services","6COTHC&FSERV","Other Children's & Families' Services","REV","Revenue","R2123","LAC Service","04-SUPPLIES","Supplies And Services","04G","Expenses","5907","Travel & Subsistence","3739870","202402",14/04/2023 00:00:00,15.2,"80170","Travel Agents and Holiday Companies","REDACTED DATA","CLICK TRAVEL LTD","3770815","http://opencorporates.com/companies/gb/3770815","799566639"
"London Borough of Redbridge","http://opendatacommunities.org/doc/london-borough-council/redbridge","6BSOCIALSERV","Social Services","6COTHC&FSERV","Other Children's & Families' Services","REV","Revenue","R2123","LAC Service","04-SUPPLIES","Supplies And Services","04G","Expenses","5907","Travel & Subsistence","3739870","202402",04/04/2023 00:00:00,21.5,"80170","Travel Agents and Holiday Companies","REDACTED DATA","CLICK TRAVEL LTD","3770815","http://opencorporates.com/companies/gb/3770815","799566639"
"London Borough of Redbridge","http://opendatacommunities.org/doc/london-borough-council/redbridge","6BSOCIALSERV","Social Services","6COTHC&FSERV","Other Children's & Families' Services","REV","Revenue","R2123","LAC Service","04-SUPPLIES","Supplies And Services","04G","Expenses","5907","Travel & Subsistence","3739870","202402",24/04/2023 00:00:00,106.1,"80170","Travel Agents and Holiday Companies","REDACTED DATA","CLICK TRAVEL LTD","3770815","http://opencorporates.com/companies/gb/3770815","799566639"
"London Borough of Redbridge","http://opendatacommunities.org/doc/london-borough-council/redbridge","6BSOCIALSERV","Social Services","6COTHC&FSERV","Other Children's & Families' Services","REV","Revenue","R2123","LAC Service","04-SUPPLIES","Supplies And Services","04G","Expenses","5907","Travel & Subsistence","3739870","202402",20/04/2023 00:00:00,61.99,"80170","Travel Agents and Holiday Companies","REDACTED DATA","CLICK TRAVEL LTD","3770815","http://opencorporates.com/companies/gb/3770815","799566639"
"London Borough of Redbridge","http://opendatacommunities.org/doc/london-borough-council/redbridge","6BSOCIALSERV","Social Services","6COTHC&FSERV","Other Children's & Families' Services","REV","Revenue","R2123","LAC Service","04-SUPPLIES","Supplies And Services","04G","Expenses","5907","Travel & Subsistence","3739870","202402",12/04/2023 00:00:00,19,"80170","Travel Agents and Holiday Companies","REDACTED DATA","CLICK TRAVEL LTD","3770815","http://opencorporates.com/companies/gb/3770815","799566639"
"London Borough of Redbridge","http://opendatacommunities.org/doc/london-borough-council/redbridge","6BSOCIALSERV","Social Services","6COTHC&FSERV","Other Children's & Families' Services","REV","Revenue","R2123","LAC Service","04-SUPPLIES","Supplies And Services","04G","Expenses","5907","Travel & Subsistence","3739870","202402",24/04/2023 00:00:00,109.3,"80170","Travel Agents and Holiday Companies","REDACTED DATA","CLICK TRAVEL LTD","3770815","http://opencorporates.com/companies/gb/3770815","799566639"
"London Borough of Redbridge","http://opendatacommunities.org/doc/london-borough-council/redbridge","6BSOCIALSERV","Social Services","6COTHC&FSERV","Other Children's & Families' Services","REV","Revenue","R2123","LAC Service","04-SUPPLIES","Supplies And Services","04G","Expenses","5907","Travel & Subsistence","3739870","202402",26/04/2023 00:00:00,21.5,"80170","Travel Agents and Holiday Companies","REDACTED DATA","CLICK TRAVEL LTD","3770815","http://opencorporates.com/companies/gb/3770815","799566639"
"London Borough of Redbridge","http://opendatacommunities.org/doc/london-borough-council/redbridge","6BSOCIALSERV","Social Services","6COTHC&FSERV","Other Children's & Families' Services","REV","Revenue","R2123","LAC Service","04-SUPPLIES","Supplies And Services","04G","Expenses","5907","Travel & Subsistence","3739870","202402",26/04/2023 00:00:00,43.5,"80170","Travel Agents and Holiday Companies","REDACTED DATA","CLICK TRAVEL LTD","3770815","http://opencorporates.com/companies/gb/3770815","799566639"
"London Borough of Redbridge","http://opendatacommunities.org/doc/london-borough-council/redbridge","6BSOCIALSERV","Social Services","6COTHC&FSERV","Other Children's & Families' Services","REV","Revenue","R2123","LAC Service","05-THIRD","Third Party Payments","05H","Private contractors","6912","Bed & Breakfast Charges","3739870","202402",17/04/2023 00:00:00,466.24,"80170","Travel Agents and Holiday Companies","REDACTED DATA","CLICK TRAVEL LTD","3770815","http://opencorporates.com/companies/gb/3770815","799566639"
"London Borough of Redbridge","http://opendatacommunities.org/doc/london-borough-council/redbridge","6BSOCIALSERV","Social Services","6COTHC&FSERV","Other Children's & Families' Services","REV","Revenue","R2123","LAC Service","06-TRANSFER","Transfer Payments","06B","Social Services Clients","7057","Section 17 Payments","3739870","202402",27/04/2023 00:00:00,7.5,"80170","Travel Agents and Holiday Companies","REDACTED DATA","CLICK TRAVEL LTD","3770815","http://opencorporates.com/companies/gb/3770815","799566639"
"London Borough of Redbridge","http://opendatacommunities.org/doc/london-borough-council/redbridge","6BSOCIALSERV","Social Services","6COTHC&FSERV","Other Children's & Families' Services","REV","Revenue","R2123","LAC Service","06-TRANSFER","Transfer Payments","06B","Social Services Clients","7057","Section 17 Payments","3739870","202402",27/04/2023 00:00:00,134.98,"80170","Travel Agents and Holiday Companies","REDACTED DATA","CLICK TRAVEL LTD","3770815","http://opencorporates.com/companies/gb/3770815","799566639"
"London Borough of Redbridge","http://opendatacommunities.org/doc/london-borough-council/redbridge","6BSOCIALSERV","Social Services","6COTHC&FSERV","Other Children's & Families' Services","REV","Revenue","R2169","Emergency Duty Team (EDT)","05-THIRD","Third Party Payments","05H","Private contractors","6912","Bed & Breakfast Charges","3739870","202402",17/04/2023 00:00:00,3,"80170","Travel Agents and Holiday Companies","REDACTED DATA","CLICK TRAVEL LTD","3770815","http://opencorporates.com/companies/gb/3770815","799566639"
"London Borough of Redbridge","http://opendatacommunities.org/doc/london-borough-council/redbridge","6BSOCIALSERV","Social Services","6COTHC&FSERV","Other Children's & Families' Services","REV","Revenue","R2169","Emergency Duty Team (EDT)","05-THIRD","Third Party Payments","05H","Private contractors","6912","Bed & Breakfast Charges","3739870","202402",17/04/2023 00:00:00,66.66,"80170","Travel Agents and Holiday Companies","REDACTED DATA","CLICK TRAVEL LTD","3770815","http://opencorporates.com/companies/gb/3770815","799566639"
"London Borough of Redbridge","http://opendatacommunities.org/doc/london-borough-council/redbridge","6BSOCIALSERV","Social Services","6COTHC&FSERV","Other Children's & Families' Services","REV","Revenue","R2169","Emergency Duty Team (EDT)","05-THIRD","Third Party Payments","05H","Private contractors","6912","Bed & Breakfast Charges","3739870","202402",24/03/2023 00:00:00,575.83,"80170","Travel Agents and Holiday Companies","REDACTED DATA","CLICK TRAVEL LTD","3770815","http://opencorporates.com/companies/gb/3770815","799566639"
"London Borough of Redbridge","http://opendatacommunities.org/doc/london-borough-council/redbridge","3BINDSCHFUND","Individual School Funds","3CDELSECOND","Delegated Individual Secondary School Budgets","REV","Revenue","R3634","Oaks Park High School","05-THIRD","Third Party Payments","05G","Other establishments","7451","LMS Bank Accounts Pilot","3743353","202402",30/05/2023 00:00:00,760000,"67981","Schools - Local Authority","REDACTED DATA","OAKS PARK HIGH SCHOOL ACCOUNT NO2","",,""
"London Borough of Redbridge","http://opendatacommunities.org/doc/london-borough-council/redbridge","3BINDSCHFUND","Individual School Funds","3CDELSECOND","Delegated Individual Secondary School Budgets","REV","Revenue","R3624","Valentines High School","05-THIRD","Third Party Payments","05G","Other establishments","7451","LMS Bank Accounts Pilot","3743356","202402",30/05/2023 00:00:00,600000,"67981","Schools - Local Authority","REDACTED DATA","VALENTINES HIGH SCHOOL PAYROLL A/C","",,""
"London Borough of Redbridge","http://opendatacommunities.org/doc/london-borough-council/redbridge","3BINDSCHFUND","Individual School Funds","3CDELSECOND","Delegated Individual Secondary School Budgets","REV","Revenue","R3632","King Solomon High School","05-THIRD","Third Party Payments","05G","Other establishments","7451","LMS Bank Accounts Pilot","3743361","202402",30/05/2023 00:00:00,581114.79,"67981","Schools - Local Authority","REDACTED DATA","KING SOLOMON HIGH SCHOOL A/C","",,""
"London Borough of Redbridge","http://opendatacommunities.org/doc/london-borough-council/redbridge","6BADULTSOCIA","Adult Social Care","6COLDINCMENT","Older People (65 or over) incl. Older Mentally Ill","REV","Revenue","R4435","Sanctuary Care Residential Contracts","05-THIRD","Third Party Payments","05F","Voluntary associations","6802","Residential Homes","70129074","202402",01/05/2023 00:00:00,119049.2,"64710","Residential Care Homes","REDACTED DATA","SANCTUARY CARE LTD","4231521","http://opencorporates.com/companies/gb/4231521","732012487"
"London Borough of Redbridge","http://opendatacommunities.org/doc/london-borough-council/redbridge","6BADULTSOCIA","Adult Social Care","6COLDINCMENT","Older People (65 or over) incl. Older Mentally Ill","REV","Revenue","R4435","Sanctuary Care Residential Contracts","05-THIRD","Third Party Payments","05F","Voluntary associations","6802","Residential Homes","70129074","202402",01/05/2023 00:00:00,167019.51,"64710","Residential Care Homes","REDACTED DATA","SANCTUARY CARE LTD","4231521","http://opencorporates.com/companies/gb/4231521","732012487"
"London Borough of Redbridge","http://opendatacommunities.org/doc/london-borough-council/redbridge","6BADULTSOCIA","Adult Social Care","6COLDINCMENT","Older People (65 or over) incl. Older Mentally Ill","REV","Revenue","R4435","Sanctuary Care Residential Contracts","05-THIRD","Third Party Payments","05F","Voluntary associations","6802","Residential Homes","70129074","202402",01/05/2023 00:00:00,109663.43,"64710","Residential Care Homes","REDACTED DATA","SANCTUARY CARE LTD","4231521","http://opencorporates.com/companies/gb/4231521","732012487"
"London Borough of Redbridge","http://opendatacommunities.org/doc/london-borough-council/redbridge","6BADULTSOCIA","Adult Social Care","6COLDINCMENT","Older People (65 or over) incl. Older Mentally Ill","REV","Revenue","R4435","Sanctuary Care Residential Contracts","05-THIRD","Third Party Payments","05F","Voluntary associations","6802","Residential Homes","70129074","202402",01/05/2023 00:00:00,144299.89,"64710","Residential Care Homes","REDACTED DATA","SANCTUARY CARE LTD","4231521","http://opencorporates.com/companies/gb/4231521","732012487"
"London Borough of Redbridge","http://opendatacommunities.org/doc/london-borough-council/redbridge","3BLEACENTFND","LEA Centrally Held School Funds","3CNONSCH","Non Schools","REV","Revenue","R3321","Hatton School","05-THIRD","Third Party Payments","05G","Other establishments","7451","LMS Bank Accounts Pilot","3743349","202402",30/05/2023 00:00:00,420000,"67981","Schools - Local Authority","REDACTED DATA","HATTON SCHOOL PAYROLL A/C","",,""
"London Borough of Redbridge","http://opendatacommunities.org/doc/london-borough-council/redbridge","3BINDSCHFUND","Individual School Funds","3CDELPRIMARY","Delegated Individual Primary School Budgets","REV","Revenue","R3518","Cranbrook Primary School","05-THIRD","Third Party Payments","05G","Other establishments","7451","LMS Bank Accounts Pilot","3743344","202402",30/05/2023 00:00:00,409327.14,"67981","Schools - Local Authority","REDACTED DATA","CRANBROOK PRIMARY SCHOOL ACCOUNT 2","",,""
"London Borough of Redbridge","http://opendatacommunities.org/doc/london-borough-council/redbridge","3BLEACENTFND","LEA Centrally Held School Funds","3CNONSCH","Non Schools","REV","Revenue","R3323","Little Heath Foundation School","05-THIRD","Third Party Payments","05G","Other establishments","7451","LMS Bank Accounts Pilot","3743360","202402",30/05/2023 00:00:00,400303.05,"67981","Schools - Local Authority","REDACTED DATA","LITTLE HEATH SCHOOL A/C","",,""
"London Borough of Redbridge","http://opendatacommunities.org/doc/london-borough-council/redbridge","1BCENTRALPUB","Central Services to the Public","1CLOCALTAXCO","Local Tax Collection","REV","Revenue","R5760","Local Tax Collection","01-EMPLOYEES","Employees","01A","Direct employee expenses","4","Agency Staff - Pay","3739768","202401",26/04/2023 00:00:00,1022.4,"31230","Employment and Recruitment Agencies","REDACTED DATA","MATRIX SCM LTD","2227962","http://opencorporates.com/companies/gb/2227962","249573468"
"London Borough of Redbridge","http://opendatacommunities.org/doc/london-borough-council/redbridge","1BCENTRALPUB","Central Services to the Public","1CLOCALTAXCO","Local Tax Collection","REV","Revenue","R5760","Local Tax Collection","01-EMPLOYEES","Employees","01A","Direct employee expenses","4","Agency Staff - Pay","3739768","202401",26/04/2023 00:00:00,800.18,"31230","Employment and Recruitment Agencies","REDACTED DATA","MATRIX SCM LTD","2227962","http://opencorporates.com/companies/gb/2227962","249573468"
"London Borough of Redbridge","http://opendatacommunities.org/doc/london-borough-council/redbridge","1BCENTRALPUB","Central Services to the Public","1CLOCALTAXCO","Local Tax Collection","REV","Revenue","R5760","Local Tax Collection","01-EMPLOYEES","Employees","01A","Direct employee expenses","4","Agency Staff - Pay","3739768","202401",26/04/2023 00:00:00,195.96,"31230","Employment and Recruitment Agencies","REDACTED DATA","MATRIX SCM LTD","2227962","http://opencorporates.com/companies/gb/2227962","249573468"
"London Borough of Redbridge","http://opendatacommunities.org/doc/london-borough-council/redbridge","1BCENTRALPUB","Central Services to the Public","1CLOCALTAXCO","Local Tax Collection","REV","Revenue","R5760","Local Tax Collection","01-EMPLOYEES","Employees","01A","Direct employee expenses","4","Agency Staff - Pay","3739768","202401",26/04/2023 00:00:00,498.07,"31230","Employment and Recruitment Agencies","REDACTED DATA","MATRIX SCM LTD","2227962","http://opencorporates.com/companies/gb/2227962","249573468"
"London Borough of Redbridge","http://opendatacommunities.org/doc/london-borough-council/redbridge","1BCENTRALPUB","Central Services to the Public","1CREGBDM","Reg. of Births, Deaths & Marriages","REV","Revenue","R3970","Corporate Policy and Performance","01-EMPLOYEES","Employees","01A","Direct employee expenses","4","Agency Staff - Pay","3739768","202401",26/04/2023 00:00:00,899.41,"31230","Employment and Recruitment Agencies","REDACTED DATA","MATRIX SCM LTD","2227962","http://opencorporates.com/companies/gb/2227962","249573468"
"London Borough of Redbridge","http://opendatacommunities.org/doc/london-borough-council/redbridge","1BCENTRALPUB","Central Services to the Public","1CREGBDM","Reg. of Births, Deaths & Marriages","REV","Revenue","R3970","Corporate Policy and Performance","01-EMPLOYEES","Employees","01A","Direct employee expenses","4","Agency Staff - Pay","3739768","202401",26/04/2023 00:00:00,1430.8,"31230","Employment and Recruitment Agencies","REDACTED DATA","MATRIX SCM LTD","2227962","http://opencorporates.com/companies/gb/2227962","249573468"
"London Borough of Redbridge","http://opendatacommunities.org/doc/london-borough-council/redbridge","1BOTHEROPI&E","Other Operating Income & Expenditure","1CTRADSURDEF","Trading Account Surpluses & Deficits","REV","Revenue","R7207","Capital Team Staffing","01-EMPLOYEES","Employees","01A","Direct employee expenses","4","Agency Staff - Pay","3739768","202401",26/04/2023 00:00:00,2432.3,"31230","Employment and Recruitment Agencies","REDACTED DATA","MATRIX SCM LTD","2227962","http://opencorporates.com/companies/gb/2227962","249573468"
"London Borough of Redbridge","http://opendatacommunities.org/doc/london-borough-council/redbridge","1BOTHEROPI&E","Other Operating Income & Expenditure","1CTRADSURDEF","Trading Account Surpluses & Deficits","REV","Revenue","R7207","Capital Team Staffing","01-EMPLOYEES","Employees","01A","Direct employee expenses","4","Agency Staff - Pay","3739768","202401",26/04/2023 00:00:00,2432.3,"31230","Employment and Recruitment Agencies","REDACTED DATA","MATRIX SCM LTD","2227962","http://opencorporates.com/companies/gb/2227962","249573468"
"London Borough of Redbridge","http://opendatacommunities.org/doc/london-borough-council/redbridge","1BOTHEROPI&E","Other Operating Income & Expenditure","1CTRADSURDEF","Trading Account Surpluses & Deficits","REV","Revenue","R9152","Operational Accounting","01-EMPLOYEES","Employees","01A","Direct employee expenses","4","Agency Staff - Pay","3739768","202401",26/04/2023 00:00:00,3122.9,"31230","Employment and Recruitment Agencies","REDACTED DATA","MATRIX SCM LTD","2227962","http://opencorporates.com/companies/gb/2227962","249573468"
"London Borough of Redbridge","http://opendatacommunities.org/doc/london-borough-council/redbridge","1BOTHEROPI&E","Other Operating Income & Expenditure","1CTRADSURDEF","Trading Account Surpluses & Deficits","REV","Revenue","R9152","Operational Accounting","01-EMPLOYEES","Employees","01A","Direct employee expenses","4","Agency Staff - Pay","3739768","202401",26/04/2023 00:00:00,1715.22,"31230","Employment and Recruitment Agencies","REDACTED DATA","MATRIX SCM LTD","2227962","http://opencorporates.com/companies/gb/2227962","249573468"
"London Borough of Redbridge","http://opendatacommunities.org/doc/london-borough-council/redbridge","1BOTHEROPI&E","Other Operating Income & Expenditure","1CTRADSURDEF","Trading Account Surpluses & Deficits","REV","Revenue","R9152","Operational Accounting","01-EMPLOYEES","Employees","01A","Direct employee expenses","4","Agency Staff - Pay","3739768","202401",26/04/2023 00:00:00,2880.15,"31230","Employment and Recruitment Agencies","REDACTED DATA","MATRIX SCM LTD","2227962","http://opencorporates.com/companies/gb/2227962","249573468"
"London Borough of Redbridge","http://opendatacommunities.org/doc/london-borough-council/redbridge","1BOTHEROPI&E","Other Operating Income & Expenditure","1CTRADSURDEF","Trading Account Surpluses & Deficits","REV","Revenue","R9152","Operational Accounting","01-EMPLOYEES","Employees","01A","Direct employee expenses","4","Agency Staff - Pay","3739768","202401",26/04/2023 00:00:00,4062.4,"31230","Employment and Recruitment Agencies","REDACTED DATA","MATRIX SCM LTD","2227962","http://opencorporates.com/companies/gb/2227962","249573468"
"London Borough of Redbridge","http://opendatacommunities.org/doc/london-borough-council/redbridge","1BOTHEROPI&E","Other Operating Income & Expenditure","1CTRADSURDEF","Trading Account Surpluses & Deficits","REV","Revenue","R9255","Support","01-EMPLOYEES","Employees","01A","Direct employee expenses","4","Agency Staff - Pay","3739768","202401",26/04/2023 00:00:00,1334.6,"31230","Employment and Recruitment Agencies","REDACTED DATA","MATRIX SCM LTD","2227962","http://opencorporates.com/companies/gb/2227962","249573468"
"London Borough of Redbridge","http://opendatacommunities.org/doc/london-borough-council/redbridge","1BOTHEROPI&E","Other Operating Income & Expenditure","1CTRADSURDEF","Trading Account Surpluses & Deficits","REV","Revenue","R9350","Management Team","01-EMPLOYEES","Employees","01A","Direct employee expenses","4","Agency Staff - Pay","3739768","202401",26/04/2023 00:00:00,3350.45,"31230","Employment and Recruitment Agencies","REDACTED DATA","MATRIX SCM LTD","2227962","http://opencorporates.com/companies/gb/2227962","249573468"
"London Borough of Redbridge","http://opendatacommunities.org/doc/london-borough-council/redbridge","1BOTHEROPI&E","Other Operating Income & Expenditure","1CTRADSURDEF","Trading Account Surpluses & Deficits","REV","Revenue","R9351","Litigation Team","01-EMPLOYEES","Employees","01A","Direct employee expenses","4","Agency Staff - Pay","3739768","202401",26/04/2023 00:00:00,1326.78,"31230","Employment and Recruitment Agencies","REDACTED DATA","MATRIX SCM LTD","2227962","http://opencorporates.com/companies/gb/2227962","249573468"
"London Borough of Redbridge","http://opendatacommunities.org/doc/london-borough-council/redbridge","1BOTHEROPI&E","Other Operating Income & Expenditure","1CTRADSURDEF","Trading Account Surpluses & Deficits","REV","Revenue","R9351","Litigation Team","01-EMPLOYEES","Employees","01A","Direct employee expenses","4","Agency Staff - Pay","3739768","202401",26/04/2023 00:00:00,-647.46,"31230","Employment and Recruitment Agencies","REDACTED DATA","MATRIX SCM LTD","2227962","http://opencorporates.com/companies/gb/2227962","249573468"
"London Borough of Redbridge","http://opendatacommunities.org/doc/london-borough-council/redbridge","1BOTHEROPI&E","Other Operating Income & Expenditure","1CTRADSURDEF","Trading Account Surpluses & Deficits","REV","Revenue","R9351","Litigation Team","01-EMPLOYEES","Employees","01A","Direct employee expenses","4","Agency Staff - Pay","3739768","202401",26/04/2023 00:00:00,1769.04,"31230","Employment and Recruitment Agencies","REDACTED DATA","MATRIX SCM LTD","2227962","http://opencorporates.com/companies/gb/2227962","249573468"
"London Borough of Redbridge","http://opendatacommunities.org/doc/london-borough-council/redbridge","1BOTHEROPI&E","Other Operating Income & Expenditure","1CTRADSURDEF","Trading Account Surpluses & Deficits","REV","Revenue","R9351","Litigation Team","01-EMPLOYEES","Employees","01A","Direct employee expenses","4","Agency Staff - Pay","3739768","202401",26/04/2023 00:00:00,2211.3,"31230","Employment and Recruitment Agencies","REDACTED DATA","MATRIX SCM LTD","2227962","http://opencorporates.com/companies/gb/2227962","249573468"
"London Borough of Redbridge","http://opendatacommunities.org/doc/london-borough-council/redbridge","1BOTHEROPI&E","Other Operating Income & Expenditure","1CTRADSURDEF","Trading Account Surpluses & Deficits","REV","Revenue","R9351","Litigation Team","01-EMPLOYEES","Employees","01A","Direct employee expenses","4","Agency Staff - Pay","3739768","202401",26/04/2023 00:00:00,-1079.1,"31230","Employment and Recruitment Agencies","REDACTED DATA","MATRIX SCM LTD","2227962","http://opencorporates.com/companies/gb/2227962","249573468"
"London Borough of Redbridge","http://opendatacommunities.org/doc/london-borough-council/redbridge","1BOTHEROPI&E","Other Operating Income & Expenditure","1CTRADSURDEF","Trading Account Surpluses & Deficits","REV","Revenue","R9351","Litigation Team","01-EMPLOYEES","Employees","01A","Direct employee expenses","4","Agency Staff - Pay","3739768","202401",26/04/2023 00:00:00,1769.04,"31230","Employment and Recruitment Agencies","REDACTED DATA","MATRIX SCM LTD","2227962","http://opencorporates.com/companies/gb/2227962","249573468"
"London Borough of Redbridge","http://opendatacommunities.org/doc/london-borough-council/redbridge","1BOTHEROPI&E","Other Operating Income & Expenditure","1CTRADSURDEF","Trading Account Surpluses & Deficits","REV","Revenue","R9351","Litigation Team","01-EMPLOYEES","Employees","01A","Direct employee expenses","4","Agency Staff - Pay","3739768","202401",26/04/2023 00:00:00,1823.85,"31230","Employment and Recruitment Agencies","REDACTED DATA","MATRIX SCM LTD","2227962","http://opencorporates.com/companies/gb/2227962","249573468"
"London Borough of Redbridge","http://opendatacommunities.org/doc/london-borough-council/redbridge","1BOTHEROPI&E","Other Operating Income & Expenditure","1CTRADSURDEF","Trading Account Surpluses & Deficits","REV","Revenue","R9351","Litigation Team","01-EMPLOYEES","Employees","01A","Direct employee expenses","4","Agency Staff - Pay","3739768","202401",26/04/2023 00:00:00,2211.3,"31230","Employment and Recruitment Agencies","REDACTED DATA","MATRIX SCM LTD","2227962","http://opencorporates.com/companies/gb/2227962","249573468"
"London Borough of Redbridge","http://opendatacommunities.org/doc/london-borough-council/redbridge","1BOTHEROPI&E","Other Operating Income & Expenditure","1CTRADSURDEF","Trading Account Surpluses & Deficits","REV","Revenue","R9351","Litigation Team","01-EMPLOYEES","Employees","01A","Direct employee expenses","4","Agency Staff - Pay","3739768","202401",26/04/2023 00:00:00,2026.2,"31230","Employment and Recruitment Agencies","REDACTED DATA","MATRIX SCM LTD","2227962","http://opencorporates.com/companies/gb/2227962","249573468"
"London Borough of Redbridge","http://opendatacommunities.org/doc/london-borough-council/redbridge","1BOTHEROPI&E","Other Operating Income & Expenditure","1CTRADSURDEF","Trading Account Surpluses & Deficits","REV","Revenue","R9351","Litigation Team","01-EMPLOYEES","Employees","01A","Direct employee expenses","4","Agency Staff - Pay","3739768","202401",26/04/2023 00:00:00,1436.2,"31230","Employment and Recruitment Agencies","REDACTED DATA","MATRIX SCM LTD","2227962","http://opencorporates.com/companies/gb/2227962","249573468"
"London Borough of Redbridge","http://opendatacommunities.org/doc/london-borough-council/redbridge","1BOTHEROPI&E","Other Operating Income & Expenditure","1CTRADSURDEF","Trading Account Surpluses & Deficits","REV","Revenue","R9351","Litigation Team","01-EMPLOYEES","Employees","01A","Direct employee expenses","4","Agency Staff - Pay","3739768","202401",26/04/2023 00:00:00,1795.25,"31230","Employment and Recruitment Agencies","REDACTED DATA","MATRIX SCM LTD","2227962","http://opencorporates.com/companies/gb/2227962","249573468"
"London Borough of Redbridge","http://opendatacommunities.org/doc/london-borough-council/redbridge","1BOTHEROPI&E","Other Operating Income & Expenditure","1CTRADSURDEF","Trading Account Surpluses & Deficits","REV","Revenue","R9353","Advisory Team","01-EMPLOYEES","Employees","01A","Direct employee expenses","4","Agency Staff - Pay","3739768","202401",26/04/2023 00:00:00,1608.2,"31230","Employment and Recruitment Agencies","REDACTED DATA","MATRIX SCM LTD","2227962","http://opencorporates.com/companies/gb/2227962","249573468"
"London Borough of Redbridge","http://opendatacommunities.org/doc/london-borough-council/redbridge","1BOTHEROPI&E","Other Operating Income & Expenditure","1CTRADSURDEF","Trading Account Surpluses & Deficits","REV","Revenue","R9353","Advisory Team","01-EMPLOYEES","Employees","01A","Direct employee expenses","4","Agency Staff - Pay","3739768","202401",26/04/2023 00:00:00,1286.56,"31230","Employment and Recruitment Agencies","REDACTED DATA","MATRIX SCM LTD","2227962","http://opencorporates.com/companies/gb/2227962","249573468"
"London Borough of Redbridge","http://opendatacommunities.org/doc/london-borough-council/redbridge","1BOTHEROPI&E","Other Operating Income & Expenditure","1CTRADSURDEF","Trading Account Surpluses & Deficits","REV","Revenue","R9353","Advisory Team","01-EMPLOYEES","Employees","01A","Direct employee expenses","4","Agency Staff - Pay","3739768","202401",26/04/2023 00:00:00,-863.28,"31230","Employment and Recruitment Agencies","REDACTED DATA","MATRIX SCM LTD","2227962","http://opencorporates.com/companies/gb/2227962","249573468"
"London Borough of Redbridge","http://opendatacommunities.org/doc/london-borough-council/redbridge","1BOTHEROPI&E","Other Operating Income & Expenditure","1CTRADSURDEF","Trading Account Surpluses & Deficits","REV","Revenue","R9565","Estates Team Staffing","01-EMPLOYEES","Employees","01A","Direct employee expenses","4","Agency Staff - Pay","3739768","202401",26/04/2023 00:00:00,2676.4,"31230","Employment and Recruitment Agencies","REDACTED DATA","MATRIX SCM LTD","2227962","http://opencorporates.com/companies/gb/2227962","249573468"
"London Borough of Redbridge","http://opendatacommunities.org/doc/london-borough-council/redbridge","2BDEVCON","Development Control","","","REV","Revenue","R6510","Development Management","01-EMPLOYEES","Employees","01A","Direct employee expenses","4","Agency Staff - Pay","3739768","202401",26/04/2023 00:00:00,3060.76,"31230","Employment and Recruitment Agencies","REDACTED DATA","MATRIX SCM LTD","2227962","http://opencorporates.com/companies/gb/2227962","249573468"
"London Borough of Redbridge","http://opendatacommunities.org/doc/london-borough-council/redbridge","2BDEVCON","Development Control","","","REV","Revenue","R6510","Development Management","01-EMPLOYEES","Employees","01A","Direct employee expenses","4","Agency Staff - Pay","3739768","202401",26/04/2023 00:00:00,3454.29,"31230","Employment and Recruitment Agencies","REDACTED DATA","MATRIX SCM LTD","2227962","http://opencorporates.com/companies/gb/2227962","249573468"
"London Borough of Redbridge","http://opendatacommunities.org/doc/london-borough-council/redbridge","2BDEVCON","Development Control","","","REV","Revenue","R6510","Development Management","01-EMPLOYEES","Employees","01A","Direct employee expenses","4","Agency Staff - Pay","3739768","202401",26/04/2023 00:00:00,3935.26,"31230","Employment and Recruitment Agencies","REDACTED DATA","MATRIX SCM LTD","2227962","http://opencorporates.com/companies/gb/2227962","249573468"
"London Borough of Redbridge","http://opendatacommunities.org/doc/london-borough-council/redbridge","2BDEVCON","Development Control","","","REV","Revenue","R6510","Development Management","01-EMPLOYEES","Employees","01A","Direct employee expenses","4","Agency Staff - Pay","3739768","202401",26/04/2023 00:00:00,1307.46,"31230","Employment and Recruitment Agencies","REDACTED DATA","MATRIX SCM LTD","2227962","http://opencorporates.com/companies/gb/2227962","249573468"
"London Borough of Redbridge","http://opendatacommunities.org/doc/london-borough-council/redbridge","2BPLANPOL","Planning Policy","","","REV","Revenue","R6511","Strategic Head of Planning & Building Control","01-EMPLOYEES","Employees","01A","Direct employee expenses","4","Agency Staff - Pay","3739768","202401",26/04/2023 00:00:00,4292.25,"31230","Employment and Recruitment Agencies","REDACTED DATA","MATRIX SCM LTD","2227962","http://opencorporates.com/companies/gb/2227962","249573468"
"London Borough of Redbridge","http://opendatacommunities.org/doc/london-borough-council/redbridge","2BPLANPOL","Planning Policy","","","REV","Revenue","R6519","The Local Plan","01-EMPLOYEES","Employees","01A","Direct employee expenses","4","Agency Staff - Pay","3739768","202401",26/04/2023 00:00:00,1674.05,"31230","Employment and Recruitment Agencies","REDACTED DATA","MATRIX SCM LTD","2227962","http://opencorporates.com/companies/gb/2227962","249573468"
"London Borough of Redbridge","http://opendatacommunities.org/doc/london-borough-council/redbridge","3BLEACENTFND","LEA Centrally Held School Funds","3CNONSCH","Non Schools","REV","Revenue","R2211","SEND SALT & OT Services","01-EMPLOYEES","Employees","01A","Direct employee expenses","4","Agency Staff - Pay","3739768","202401",26/04/2023 00:00:00,71.55,"31230","Employment and Recruitment Agencies","REDACTED DATA","MATRIX SCM LTD","2227962","http://opencorporates.com/companies/gb/2227962","249573468"
"London Borough of Redbridge","http://opendatacommunities.org/doc/london-borough-council/redbridge","3BLEACENTFND","LEA Centrally Held School Funds","3CNONSCH","Non Schools","REV","Revenue","R2211","SEND SALT & OT Services","01-EMPLOYEES","Employees","01A","Direct employee expenses","4","Agency Staff - Pay","3739768","202401",26/04/2023 00:00:00,7.6,"31230","Employment and Recruitment Agencies","REDACTED DATA","MATRIX SCM LTD","2227962","http://opencorporates.com/companies/gb/2227962","249573468"
"London Borough of Redbridge","http://opendatacommunities.org/doc/london-borough-council/redbridge","3BLEACENTFND","LEA Centrally Held School Funds","3CNONSCH","Non Schools","REV","Revenue","R2211","SEND SALT & OT Services","01-EMPLOYEES","Employees","01A","Direct employee expenses","4","Agency Staff - Pay","3739768","202401",26/04/2023 00:00:00,992.88,"31230","Employment and Recruitment Agencies","REDACTED DATA","MATRIX SCM LTD","2227962","http://opencorporates.com/companies/gb/2227962","249573468"
"London Borough of Redbridge","http://opendatacommunities.org/doc/london-borough-council/redbridge","3BLEACENTFND","LEA Centrally Held School Funds","3CNONSCH","Non Schools","REV","Revenue","R2211","SEND SALT & OT Services","01-EMPLOYEES","Employees","01A","Direct employee expenses","4","Agency Staff - Pay","3739768","202401",26/04/2023 00:00:00,5.75,"31230","Employment and Recruitment Agencies","REDACTED DATA","MATRIX SCM LTD","2227962","http://opencorporates.com/companies/gb/2227962","249573468"
"London Borough of Redbridge","http://opendatacommunities.org/doc/london-borough-council/redbridge","3BLEACENTFND","LEA Centrally Held School Funds","3CNONSCH","Non Schools","REV","Revenue","R2211","SEND SALT & OT Services","01-EMPLOYEES","Employees","01A","Direct employee expenses","4","Agency Staff - Pay","3739768","202401",26/04/2023 00:00:00,1412.65,"31230","Employment and Recruitment Agencies","REDACTED DATA","MATRIX SCM LTD","2227962","http://opencorporates.com/companies/gb/2227962","249573468"
"London Borough of Redbridge","http://opendatacommunities.org/doc/london-borough-council/redbridge","3BLEACENTFND","LEA Centrally Held School Funds","3CNONSCH","Non Schools","REV","Revenue","R2211","SEND SALT & OT Services","01-EMPLOYEES","Employees","01A","Direct employee expenses","4","Agency Staff - Pay","3739768","202401",26/04/2023 00:00:00,1441.5,"31230","Employment and Recruitment Agencies","REDACTED DATA","MATRIX SCM LTD","2227962","http://opencorporates.com/companies/gb/2227962","249573468"
"London Borough of Redbridge","http://opendatacommunities.org/doc/london-borough-council/redbridge","3BLEACENTFND","LEA Centrally Held School Funds","3CNONSCH","Non Schools","REV","Revenue","R2230","Local Offer","01-EMPLOYEES","Employees","01A","Direct employee expenses","4","Agency Staff - Pay","3739768","202401",26/04/2023 00:00:00,593.25,"31230","Employment and Recruitment Agencies","REDACTED DATA","MATRIX SCM LTD","2227962","http://opencorporates.com/companies/gb/2227962","249573468"
"London Borough of Redbridge","http://opendatacommunities.org/doc/london-borough-council/redbridge","3BLEACENTFND","LEA Centrally Held School Funds","3CNONSCH","Non Schools","REV","Revenue","R2230","Local Offer","01-EMPLOYEES","Employees","01A","Direct employee expenses","4","Agency Staff - Pay","3739768","202401",26/04/2023 00:00:00,593.25,"31230","Employment and Recruitment Agencies","REDACTED DATA","MATRIX SCM LTD","2227962","http://opencorporates.com/companies/gb/2227962","249573468"
"London Borough of Redbridge","http://opendatacommunities.org/doc/london-borough-council/redbridge","3BLEACENTFND","LEA Centrally Held School Funds","3CNONSCH","Non Schools","REV","Revenue","R2230","Local Offer","01-EMPLOYEES","Employees","01A","Direct employee expenses","4","Agency Staff - Pay","3739768","202401",26/04/2023 00:00:00,1079.68,"31230","Employment and Recruitment Agencies","REDACTED DATA","MATRIX SCM LTD","2227962","http://opencorporates.com/companies/gb/2227962","249573468"
"London Borough of Redbridge","http://opendatacommunities.org/doc/london-borough-council/redbridge","3BLEACENTFND","LEA Centrally Held School Funds","3CNONSCH","Non Schools","REV","Revenue","R2230","Local Offer","01-EMPLOYEES","Employees","01A","Direct employee expenses","4","Agency Staff - Pay","3739768","202401",26/04/2023 00:00:00,775.86,"31230","Employment and Recruitment Agencies","REDACTED DATA","MATRIX SCM LTD","2227962","http://opencorporates.com/companies/gb/2227962","249573468"
"London Borough of Redbridge","http://opendatacommunities.org/doc/london-borough-council/redbridge","3BLEACENTFND","LEA Centrally Held School Funds","3CNONSCH","Non Schools","REV","Revenue","R2230","Local Offer","01-EMPLOYEES","Employees","01A","Direct employee expenses","4","Agency Staff - Pay","3739768","202401",26/04/2023 00:00:00,593.25,"31230","Employment and Recruitment Agencies","REDACTED DATA","MATRIX SCM LTD","2227962","http://opencorporates.com/companies/gb/2227962","249573468"
"London Borough of Redbridge","http://opendatacommunities.org/doc/london-borough-council/redbridge","3BLEACENTFND","LEA Centrally Held School Funds","3CNONSCH","Non Schools","REV","Revenue","R2230","Local Offer","01-EMPLOYEES","Employees","01A","Direct employee expenses","4","Agency Staff - Pay","3739768","202401",26/04/2023 00:00:00,593.25,"31230","Employment and Recruitment Agencies","REDACTED DATA","MATRIX SCM LTD","2227962","http://opencorporates.com/companies/gb/2227962","249573468"
"London Borough of Redbridge","http://opendatacommunities.org/doc/london-borough-council/redbridge","3BLEACENTFND","LEA Centrally Held School Funds","3CSCHSTRATMG","Schools Strategic Management","REV","Revenue","R3172","BSA (People)","01-EMPLOYEES","Employees","01A","Direct employee expenses","4","Agency Staff - Pay","3739768","202401",26/04/2023 00:00:00,697.9,"31230","Employment and Recruitment Agencies","REDACTED DATA","MATRIX SCM LTD","2227962","http://opencorporates.com/companies/gb/2227962","249573468"
"London Borough of Redbridge","http://opendatacommunities.org/doc/london-borough-council/redbridge","3BLEACENTFND","LEA Centrally Held School Funds","3CSCHSTRATMG","Schools Strategic Management","REV","Revenue","R3172","BSA (People)","01-EMPLOYEES","Employees","01A","Direct employee expenses","4","Agency Staff - Pay","3739768","202401",26/04/2023 00:00:00,697.9,"31230","Employment and Recruitment Agencies","REDACTED DATA","MATRIX SCM LTD","2227962","http://opencorporates.com/companies/gb/2227962","249573468"
"London Borough of Redbridge","http://opendatacommunities.org/doc/london-borough-council/redbridge","3BLEACENTFND","LEA Centrally Held School Funds","3CSCHSTRATMG","Schools Strategic Management","REV","Revenue","R3172","BSA (People)","01-EMPLOYEES","Employees","01A","Direct employee expenses","4","Agency Staff - Pay","3739768","202401",26/04/2023 00:00:00,683.55,"31230","Employment and Recruitment Agencies","REDACTED DATA","MATRIX SCM LTD","2227962","http://opencorporates.com/companies/gb/2227962","249573468"
"London Borough of Redbridge","http://opendatacommunities.org/doc/london-borough-council/redbridge","3BLEACENTFND","LEA Centrally Held School Funds","3CSCHSTRATMG","Schools Strategic Management","REV","Revenue","R3172","BSA (People)","01-EMPLOYEES","Employees","01A","Direct employee expenses","4","Agency Staff - Pay","3739768","202401",26/04/2023 00:00:00,697.9,"31230","Employment and Recruitment Agencies","REDACTED DATA","MATRIX SCM LTD","2227962","http://opencorporates.com/companies/gb/2227962","249573468"
"London Borough of Redbridge","http://opendatacommunities.org/doc/london-borough-council/redbridge","3BLEACENTFND","LEA Centrally Held School Funds","3CSCHSTRATMG","Schools Strategic Management","REV","Revenue","R3172","BSA (People)","01-EMPLOYEES","Employees","01A","Direct employee expenses","4","Agency Staff - Pay","3739768","202401",26/04/2023 00:00:00,757.05,"31230","Employment and Recruitment Agencies","REDACTED DATA","MATRIX SCM LTD","2227962","http://opencorporates.com/companies/gb/2227962","249573468"
"London Borough of Redbridge","http://opendatacommunities.org/doc/london-borough-council/redbridge","3BLEACENTFND","LEA Centrally Held School Funds","3CSCHSTRATMG","Schools Strategic Management","REV","Revenue","R3172","BSA (People)","01-EMPLOYEES","Employees","01A","Direct employee expenses","4","Agency Staff - Pay","3739768","202401",26/04/2023 00:00:00,596.75,"31230","Employment and Recruitment Agencies","REDACTED DATA","MATRIX SCM LTD","2227962","http://opencorporates.com/companies/gb/2227962","249573468"
"London Borough of Redbridge","http://opendatacommunities.org/doc/london-borough-council/redbridge","3BLEACENTFND","LEA Centrally Held School Funds","3CSCHSTRATMG","Schools Strategic Management","REV","Revenue","R3172","BSA (People)","01-EMPLOYEES","Employees","01A","Direct employee expenses","4","Agency Staff - Pay","3739768","202401",26/04/2023 00:00:00,521.92,"31230","Employment and Recruitment Agencies","REDACTED DATA","MATRIX SCM LTD","2227962","http://opencorporates.com/companies/gb/2227962","249573468"
"London Borough of Redbridge","http://opendatacommunities.org/doc/london-borough-council/redbridge","3BLEACENTFND","LEA Centrally Held School Funds","3CSCHSTRATMG","Schools Strategic Management","REV","Revenue","R3172","BSA (People)","01-EMPLOYEES","Employees","01A","Direct employee expenses","4","Agency Staff - Pay","3739768","202401",26/04/2023 00:00:00,339.9,"31230","Employment and Recruitment Agencies","REDACTED DATA","MATRIX SCM LTD","2227962","http://opencorporates.com/companies/gb/2227962","249573468"
"London Borough of Redbridge","http://opendatacommunities.org/doc/london-borough-council/redbridge","3BLEACENTFND","LEA Centrally Held School Funds","3CSCHSTRATMG","Schools Strategic Management","REV","Revenue","R3172","BSA (People)","01-EMPLOYEES","Employees","01A","Direct employee expenses","4","Agency Staff - Pay","3739768","202401",26/04/2023 00:00:00,583.25,"31230","Employment and Recruitment Agencies","REDACTED DATA","MATRIX SCM LTD","2227962","http://opencorporates.com/companies/gb/2227962","249573468"
"London Borough of Redbridge","http://opendatacommunities.org/doc/london-borough-council/redbridge","3BLEACENTFND","LEA Centrally Held School Funds","3CSCHSTRATMG","Schools Strategic Management","REV","Revenue","R3172","BSA (People)","01-EMPLOYEES","Employees","01A","Direct employee expenses","4","Agency Staff - Pay","3739768","202401",26/04/2023 00:00:00,279.16,"31230","Employment and Recruitment Agencies","REDACTED DATA","MATRIX SCM LTD","2227962","http://opencorporates.com/companies/gb/2227962","249573468"
"London Borough of Redbridge","http://opendatacommunities.org/doc/london-borough-council/redbridge","3BLEACENTFND","LEA Centrally Held School Funds","3CSCHSTRATMG","Schools Strategic Management","REV","Revenue","R3172","BSA (People)","01-EMPLOYEES","Employees","01A","Direct employee expenses","4","Agency Staff - Pay","3739768","202401",26/04/2023 00:00:00,757.05,"31230","Employment and Recruitment Agencies","REDACTED DATA","MATRIX SCM LTD","2227962","http://opencorporates.com/companies/gb/2227962","249573468"
"London Borough of Redbridge","http://opendatacommunities.org/doc/london-borough-council/redbridge","3BLEACENTFND","LEA Centrally Held School Funds","3CSCHSTRATMG","Schools Strategic Management","REV","Revenue","R3172","BSA (People)","01-EMPLOYEES","Employees","01A","Direct employee expenses","4","Agency Staff - Pay","3739768","202401",26/04/2023 00:00:00,613.81,"31230","Employment and Recruitment Agencies","REDACTED DATA","MATRIX SCM LTD","2227962","http://opencorporates.com/companies/gb/2227962","249573468"
"London Borough of Redbridge","http://opendatacommunities.org/doc/london-borough-council/redbridge","3BLEACENTFND","LEA Centrally Held School Funds","3CSCHSTRATMG","Schools Strategic Management","REV","Revenue","R3172","BSA (People)","01-EMPLOYEES","Employees","01A","Direct employee expenses","4","Agency Staff - Pay","3739768","202401",26/04/2023 00:00:00,660.9,"31230","Employment and Recruitment Agencies","REDACTED DATA","MATRIX SCM LTD","2227962","http://opencorporates.com/companies/gb/2227962","249573468"
"London Borough of Redbridge","http://opendatacommunities.org/doc/london-borough-council/redbridge","3BLEACENTFND","LEA Centrally Held School Funds","3CSCHSTRATMG","Schools Strategic Management","REV","Revenue","R3273","IT Support Unit","01-EMPLOYEES","Employees","01A","Direct employee expenses","4","Agency Staff - Pay","3739768","202401",26/04/2023 00:00:00,637.17,"31230","Employment and Recruitment Agencies","REDACTED DATA","MATRIX SCM LTD","2227962","http://opencorporates.com/companies/gb/2227962","249573468"
"London Borough of Redbridge","http://opendatacommunities.org/doc/london-borough-council/redbridge","3BLEACENTFND","LEA Centrally Held School Funds","3CSCHSTRATMG","Schools Strategic Management","REV","Revenue","R3273","IT Support Unit","01-EMPLOYEES","Employees","01A","Direct employee expenses","4","Agency Staff - Pay","3739768","202401",26/04/2023 00:00:00,637.17,"31230","Employment and Recruitment Agencies","REDACTED DATA","MATRIX SCM LTD","2227962","http://opencorporates.com/companies/gb/2227962","249573468"
"London Borough of Redbridge","http://opendatacommunities.org/doc/london-borough-council/redbridge","3BLEACENTFND","LEA Centrally Held School Funds","3CSCHSTRATMG","Schools Strategic Management","REV","Revenue","R3273","IT Support Unit","01-EMPLOYEES","Employees","01A","Direct employee expenses","4","Agency Staff - Pay","3739768","202401",26/04/2023 00:00:00,637.17,"31230","Employment and Recruitment Agencies","REDACTED DATA","MATRIX SCM LTD","2227962","http://opencorporates.com/companies/gb/2227962","249573468"
"London Borough of Redbridge","http://opendatacommunities.org/doc/london-borough-council/redbridge","3BLEACENTFND","LEA Centrally Held School Funds","3CSUPPORTSEN","Supporting Special Education Needs","REV","Revenue","R3022","Home Tuition","01-EMPLOYEES","Employees","01A","Direct employee expenses","4","Agency Staff - Pay","3739768","202401",26/04/2023 00:00:00,742.4,"31230","Employment and Recruitment Agencies","REDACTED DATA","MATRIX SCM LTD","2227962","http://opencorporates.com/companies/gb/2227962","249573468"
"London Borough of Redbridge","http://opendatacommunities.org/doc/london-borough-council/redbridge","3BOPTIONHLDG","Optional Holding Accounts","3CYOUTH","Youth Service","REV","Revenue","R3371","Youth Justice Service","01-EMPLOYEES","Employees","01A","Direct employee expenses","4","Agency Staff - Pay","3739768","202401",26/04/2023 00:00:00,1370.95,"31230","Employment and Recruitment Agencies","REDACTED DATA","MATRIX SCM LTD","2227962","http://opencorporates.com/companies/gb/2227962","249573468"
"London Borough of Redbridge","http://opendatacommunities.org/doc/london-borough-council/redbridge","3BOPTIONHLDG","Optional Holding Accounts","3CYOUTH","Youth Service","REV","Revenue","R3371","Youth Justice Service","01-EMPLOYEES","Employees","01A","Direct employee expenses","4","Agency Staff - Pay","3739768","202401",26/04/2023 00:00:00,601,"31230","Employment and Recruitment Agencies","REDACTED DATA","MATRIX SCM LTD","2227962","http://opencorporates.com/companies/gb/2227962","249573468"
"London Borough of Redbridge","http://opendatacommunities.org/doc/london-borough-council/redbridge","3BOPTIONHLDG","Optional Holding Accounts","3CYOUTH","Youth Service","REV","Revenue","R3371","Youth Justice Service","01-EMPLOYEES","Employees","01A","Direct employee expenses","4","Agency Staff - Pay","3739768","202401",26/04/2023 00:00:00,9.25,"31230","Employment and Recruitment Agencies","REDACTED DATA","MATRIX SCM LTD","2227962","http://opencorporates.com/companies/gb/2227962","249573468"
"London Borough of Redbridge","http://opendatacommunities.org/doc/london-borough-council/redbridge","3BOPTIONHLDG","Optional Holding Accounts","3CYOUTH","Youth Service","REV","Revenue","R3371","Youth Justice Service","01-EMPLOYEES","Employees","01A","Direct employee expenses","4","Agency Staff - Pay","3739768","202401",26/04/2023 00:00:00,1067.76,"31230","Employment and Recruitment Agencies","REDACTED DATA","MATRIX SCM LTD","2227962","http://opencorporates.com/companies/gb/2227962","249573468"
"London Borough of Redbridge","http://opendatacommunities.org/doc/london-borough-council/redbridge","3BOPTIONHLDG","Optional Holding Accounts","3CYOUTH","Youth Service","REV","Revenue","R3371","Youth Justice Service","01-EMPLOYEES","Employees","01A","Direct employee expenses","4","Agency Staff - Pay","3739768","202401",26/04/2023 00:00:00,592.49,"31230","Employment and Recruitment Agencies","REDACTED DATA","MATRIX SCM LTD","2227962","http://opencorporates.com/companies/gb/2227962","249573468"
"London Borough of Redbridge","http://opendatacommunities.org/doc/london-borough-council/redbridge","5BGFHOUSING","General Fund Housing","5CHOMELESS","Homelessness","REV","Revenue","R5622","The Foyer","01-EMPLOYEES","Employees","01A","Direct employee expenses","4","Agency Staff - Pay","3739768","202401",26/04/2023 00:00:00,-107.82,"31230","Employment and Recruitment Agencies","REDACTED DATA","MATRIX SCM LTD","2227962","http://opencorporates.com/companies/gb/2227962","249573468"
"London Borough of Redbridge","http://opendatacommunities.org/doc/london-borough-council/redbridge","5BGFHOUSING","General Fund Housing","5CHOMELESS","Homelessness","REV","Revenue","R5622","The Foyer","01-EMPLOYEES","Employees","01A","Direct employee expenses","4","Agency Staff - Pay","3739768","202401",26/04/2023 00:00:00,-702.52,"31230","Employment and Recruitment Agencies","REDACTED DATA","MATRIX SCM LTD","2227962","http://opencorporates.com/companies/gb/2227962","249573468"
"London Borough of Redbridge","http://opendatacommunities.org/doc/london-borough-council/redbridge","5BGFHOUSING","General Fund Housing","5CHOMELESS","Homelessness","REV","Revenue","R5622","The Foyer","01-EMPLOYEES","Employees","01A","Direct employee expenses","4","Agency Staff - Pay","3739768","202401",26/04/2023 00:00:00,945.72,"31230","Employment and Recruitment Agencies","REDACTED DATA","MATRIX SCM LTD","2227962","http://opencorporates.com/companies/gb/2227962","249573468"
"London Borough of Redbridge","http://opendatacommunities.org/doc/london-borough-council/redbridge","5BGFHOUSING","General Fund Housing","5CHOMELESS","Homelessness","REV","Revenue","R5622","The Foyer","01-EMPLOYEES","Employees","01A","Direct employee expenses","4","Agency Staff - Pay","3739768","202401",26/04/2023 00:00:00,972.72,"31230","Employment and Recruitment Agencies","REDACTED DATA","MATRIX SCM LTD","2227962","http://opencorporates.com/companies/gb/2227962","249573468"
"London Borough of Redbridge","http://opendatacommunities.org/doc/london-borough-council/redbridge","5BGFHOUSING","General Fund Housing","5CHOMELESS","Homelessness","REV","Revenue","R5642","Perth Terrace Hostel","01-EMPLOYEES","Employees","01A","Direct employee expenses","4","Agency Staff - Pay","3739768","202401",26/04/2023 00:00:00,498.36,"31230","Employment and Recruitment Agencies","REDACTED DATA","MATRIX SCM LTD","2227962","http://opencorporates.com/companies/gb/2227962","249573468"
"London Borough of Redbridge","http://opendatacommunities.org/doc/london-borough-council/redbridge","5BGFHOUSING","General Fund Housing","5CHOMELESS","Homelessness","REV","Revenue","R5642","Perth Terrace Hostel","01-EMPLOYEES","Employees","01A","Direct employee expenses","4","Agency Staff - Pay","3739768","202401",26/04/2023 00:00:00,492.78,"31230","Employment and Recruitment Agencies","REDACTED DATA","MATRIX SCM LTD","2227962","http://opencorporates.com/companies/gb/2227962","249573468"
"London Borough of Redbridge","http://opendatacommunities.org/doc/london-borough-council/redbridge","5BGFHOUSING","General Fund Housing","5CHOMELESS","Homelessness","REV","Revenue","R5642","Perth Terrace Hostel","01-EMPLOYEES","Employees","01A","Direct employee expenses","4","Agency Staff - Pay","3739768","202401",26/04/2023 00:00:00,825.12,"31230","Employment and Recruitment Agencies","REDACTED DATA","MATRIX SCM LTD","2227962","http://opencorporates.com/companies/gb/2227962","249573468"
"London Borough of Redbridge","http://opendatacommunities.org/doc/london-borough-council/redbridge","5BGFHOUSING","General Fund Housing","5CHOMELESS","Homelessness","REV","Revenue","R5654","St Georgio","01-EMPLOYEES","Employees","01A","Direct employee expenses","4","Agency Staff - Pay","3739768","202401",26/04/2023 00:00:00,509.16,"31230","Employment and Recruitment Agencies","REDACTED DATA","MATRIX SCM LTD","2227962","http://opencorporates.com/companies/gb/2227962","249573468"
"London Borough of Redbridge","http://opendatacommunities.org/doc/london-borough-council/redbridge","5BGFHOUSING","General Fund Housing","5CHOUMGTSUPP","Housing Management & Support Services","REV","Revenue","R5601","Housing Service Administration","01-EMPLOYEES","Employees","01A","Direct employee expenses","4","Agency Staff - Pay","3739768","202401",26/04/2023 00:00:00,858.3,"31230","Employment and Recruitment Agencies","REDACTED DATA","MATRIX SCM LTD","2227962","http://opencorporates.com/companies/gb/2227962","249573468"
"London Borough of Redbridge","http://opendatacommunities.org/doc/london-borough-council/redbridge","5BGFHOUSING","General Fund Housing","5CHOUMGTSUPP","Housing Management & Support Services","REV","Revenue","R5601","Housing Service Administration","01-EMPLOYEES","Employees","01A","Direct employee expenses","4","Agency Staff - Pay","3739768","202401",26/04/2023 00:00:00,858.3,"31230","Employment and Recruitment Agencies","REDACTED DATA","MATRIX SCM LTD","2227962","http://opencorporates.com/companies/gb/2227962","249573468"
"London Borough of Redbridge","http://opendatacommunities.org/doc/london-borough-council/redbridge","5BGFHOUSING","General Fund Housing","5CHOUMGTSUPP","Housing Management & Support Services","REV","Revenue","R5601","Housing Service Administration","01-EMPLOYEES","Employees","01A","Direct employee expenses","4","Agency Staff - Pay","3739768","202401",26/04/2023 00:00:00,428.94,"31230","Employment and Recruitment Agencies","REDACTED DATA","MATRIX SCM LTD","2227962","http://opencorporates.com/companies/gb/2227962","249573468"
"London Borough of Redbridge","http://opendatacommunities.org/doc/london-borough-council/redbridge","5BGFHOUSING","General Fund Housing","5CHOUMGTSUPP","Housing Management & Support Services","REV","Revenue","R5619","One Plan Programme","01-EMPLOYEES","Employees","01A","Direct employee expenses","4","Agency Staff - Pay","3739768","202401",26/04/2023 00:00:00,968.62,"31230","Employment and Recruitment Agencies","REDACTED DATA","MATRIX SCM LTD","2227962","http://opencorporates.com/companies/gb/2227962","249573468"
"London Borough of Redbridge","http://opendatacommunities.org/doc/london-borough-council/redbridge","5BGFHOUSING","General Fund Housing","5CHOUMGTSUPP","Housing Management & Support Services","REV","Revenue","R5619","One Plan Programme","01-EMPLOYEES","Employees","01A","Direct employee expenses","4","Agency Staff - Pay","3739768","202401",26/04/2023 00:00:00,1311.14,"31230","Employment and Recruitment Agencies","REDACTED DATA","MATRIX SCM LTD","2227962","http://opencorporates.com/companies/gb/2227962","249573468"
"London Borough of Redbridge","http://opendatacommunities.org/doc/london-borough-council/redbridge","5BGFHOUSING","General Fund Housing","5CHOUMGTSUPP","Housing Management & Support Services","REV","Revenue","R5619","One Plan Programme","01-EMPLOYEES","Employees","01A","Direct employee expenses","4","Agency Staff - Pay","3739768","202401",26/04/2023 00:00:00,1037.52,"31230","Employment and Recruitment Agencies","REDACTED DATA","MATRIX SCM LTD","2227962","http://opencorporates.com/companies/gb/2227962","249573468"
"London Borough of Redbridge","http://opendatacommunities.org/doc/london-borough-council/redbridge","5BGFHOUSING","General Fund Housing","5CHOUMGTSUPP","Housing Management & Support Services","REV","Revenue","R5619","One Plan Programme","01-EMPLOYEES","Employees","01A","Direct employee expenses","4","Agency Staff - Pay","3739768","202401",26/04/2023 00:00:00,1137.6,"31230","Employment and Recruitment Agencies","REDACTED DATA","MATRIX SCM LTD","2227962","http://opencorporates.com/companies/gb/2227962","249573468"
"London Borough of Redbridge","http://opendatacommunities.org/doc/london-borough-council/redbridge","5BGFHOUSING","General Fund Housing","5CHOUMGTSUPP","Housing Management & Support Services","REV","Revenue","R5619","One Plan Programme","01-EMPLOYEES","Employees","01A","Direct employee expenses","4","Agency Staff - Pay","3739768","202401",26/04/2023 00:00:00,1428.09,"31230","Employment and Recruitment Agencies","REDACTED DATA","MATRIX SCM LTD","2227962","http://opencorporates.com/companies/gb/2227962","249573468"
"London Borough of Redbridge","http://opendatacommunities.org/doc/london-borough-council/redbridge","5BGFHOUSING","General Fund Housing","5CHOUMGTSUPP","Housing Management & Support Services","REV","Revenue","R5619","One Plan Programme","01-EMPLOYEES","Employees","01A","Direct employee expenses","4","Agency Staff - Pay","3739768","202401",26/04/2023 00:00:00,1008.37,"31230","Employment and Recruitment Agencies","REDACTED DATA","MATRIX SCM LTD","2227962","http://opencorporates.com/companies/gb/2227962","249573468"
"London Borough of Redbridge","http://opendatacommunities.org/doc/london-borough-council/redbridge","5BGFHOUSING","General Fund Housing","5CHOUSBENADM","Housing Benefits Administration","REV","Revenue","R5771","Benefits Administration","01-EMPLOYEES","Employees","01A","Direct employee expenses","4","Agency Staff - Pay","3739768","202401",26/04/2023 00:00:00,1092.96,"31230","Employment and Recruitment Agencies","REDACTED DATA","MATRIX SCM LTD","2227962","http://opencorporates.com/companies/gb/2227962","249573468"
"London Borough of Redbridge","http://opendatacommunities.org/doc/london-borough-council/redbridge","5BGFHOUSING","General Fund Housing","5CHOUSBENADM","Housing Benefits Administration","REV","Revenue","R5771","Benefits Administration","01-EMPLOYEES","Employees","01A","Direct employee expenses","4","Agency Staff - Pay","3739768","202401",26/04/2023 00:00:00,1214.4,"31230","Employment and Recruitment Agencies","REDACTED DATA","MATRIX SCM LTD","2227962","http://opencorporates.com/companies/gb/2227962","249573468"
"London Borough of Redbridge","http://opendatacommunities.org/doc/london-borough-council/redbridge","5BGFHOUSING","General Fund Housing","5CPRIVSECREN","Private Sector Housing Renewal","REV","Revenue","R5620","Private Sector Housing Standards","01-EMPLOYEES","Employees","01A","Direct employee expenses","4","Agency Staff - Pay","3739768","202401",26/04/2023 00:00:00,1984.5,"31230","Employment and Recruitment Agencies","REDACTED DATA","MATRIX SCM LTD","2227962","http://opencorporates.com/companies/gb/2227962","249573468"
"London Borough of Redbridge","http://opendatacommunities.org/doc/london-borough-council/redbridge","5BGFHOUSING","General Fund Housing","5CPRIVSECREN","Private Sector Housing Renewal","REV","Revenue","R5620","Private Sector Housing Standards","01-EMPLOYEES","Employees","01A","Direct employee expenses","4","Agency Staff - Pay","3739768","202401",26/04/2023 00:00:00,1764,"31230","Employment and Recruitment Agencies","REDACTED DATA","MATRIX SCM LTD","2227962","http://opencorporates.com/companies/gb/2227962","249573468"
"London Borough of Redbridge","http://opendatacommunities.org/doc/london-borough-council/redbridge","5BGFHOUSING","General Fund Housing","5CPRIVSECREN","Private Sector Housing Renewal","REV","Revenue","R5620","Private Sector Housing Standards","01-EMPLOYEES","Employees","01A","Direct employee expenses","4","Agency Staff - Pay","3739768","202401",26/04/2023 00:00:00,2128.25,"31230","Employment and Recruitment Agencies","REDACTED DATA","MATRIX SCM LTD","2227962","http://opencorporates.com/companies/gb/2227962","249573468"
"London Borough of Redbridge","http://opendatacommunities.org/doc/london-borough-council/redbridge","5BGFHOUSING","General Fund Housing","5CPRIVSECREN","Private Sector Housing Renewal","REV","Revenue","R5621","Property Licencing Scheme","01-EMPLOYEES","Employees","01A","Direct employee expenses","4","Agency Staff - Pay","3739768","202401",26/04/2023 00:00:00,2503.28,"31230","Employment and Recruitment Agencies","REDACTED DATA","MATRIX SCM LTD","2227962","http://opencorporates.com/companies/gb/2227962","249573468"
"London Borough of Redbridge","http://opendatacommunities.org/doc/london-borough-council/redbridge","5BGFHOUSING","General Fund Housing","5CPRIVSECREN","Private Sector Housing Renewal","REV","Revenue","R5621","Property Licencing Scheme","01-EMPLOYEES","Employees","01A","Direct employee expenses","4","Agency Staff - Pay","3739768","202401",26/04/2023 00:00:00,1251.64,"31230","Employment and Recruitment Agencies","REDACTED DATA","MATRIX SCM LTD","2227962","http://opencorporates.com/companies/gb/2227962","249573468"
"London Borough of Redbridge","http://opendatacommunities.org/doc/london-borough-council/redbridge","5BGFHOUSING","General Fund Housing","5CPRIVSECREN","Private Sector Housing Renewal","REV","Revenue","R5621","Property Licencing Scheme","01-EMPLOYEES","Employees","01A","Direct employee expenses","4","Agency Staff - Pay","3739768","202401",26/04/2023 00:00:00,3129.1,"31230","Employment and Recruitment Agencies","REDACTED DATA","MATRIX SCM LTD","2227962","http://opencorporates.com/companies/gb/2227962","249573468"
"London Borough of Redbridge","http://opendatacommunities.org/doc/london-borough-council/redbridge","5BGFHOUSING","General Fund Housing","5CPRIVSECREN","Private Sector Housing Renewal","REV","Revenue","R5621","Property Licencing Scheme","01-EMPLOYEES","Employees","01A","Direct employee expenses","4","Agency Staff - Pay","3739768","202401",26/04/2023 00:00:00,2182.85,"31230","Employment and Recruitment Agencies","REDACTED DATA","MATRIX SCM LTD","2227962","http://opencorporates.com/companies/gb/2227962","249573468"
"London Borough of Redbridge","http://opendatacommunities.org/doc/london-borough-council/redbridge","5BGFHOUSING","General Fund Housing","5CPRIVSECREN","Private Sector Housing Renewal","REV","Revenue","R5621","Property Licencing Scheme","01-EMPLOYEES","Employees","01A","Direct employee expenses","4","Agency Staff - Pay","3739768","202401",26/04/2023 00:00:00,663.44,"31230","Employment and Recruitment Agencies","REDACTED DATA","MATRIX SCM LTD","2227962","http://opencorporates.com/companies/gb/2227962","249573468"
"London Borough of Redbridge","http://opendatacommunities.org/doc/london-borough-council/redbridge","5BGFHOUSING","General Fund Housing","5CPRIVSECREN","Private Sector Housing Renewal","REV","Revenue","R5623","Housing Improvement Team","01-EMPLOYEES","Employees","01A","Direct employee expenses","4","Agency Staff - Pay","3739768","202401",26/04/2023 00:00:00,794.16,"31230","Employment and Recruitment Agencies","REDACTED DATA","MATRIX SCM LTD","2227962","http://opencorporates.com/companies/gb/2227962","249573468"
"London Borough of Redbridge","http://opendatacommunities.org/doc/london-borough-council/redbridge","5BGFHOUSING","General Fund Housing","5CPRIVSECREN","Private Sector Housing Renewal","REV","Revenue","R5624","ELRP Handy Person Scheme","01-EMPLOYEES","Employees","01A","Direct employee expenses","4","Agency Staff - Pay","3739768","202401",26/04/2023 00:00:00,1395.13,"31230","Employment and Recruitment Agencies","REDACTED DATA","MATRIX SCM LTD","2227962","http://opencorporates.com/companies/gb/2227962","249573468"
"London Borough of Redbridge","http://opendatacommunities.org/doc/london-borough-council/redbridge","5BGFHOUSING","General Fund Housing","5CPRIVSECREN","Private Sector Housing Renewal","REV","Revenue","R5624","ELRP Handy Person Scheme","01-EMPLOYEES","Employees","01A","Direct employee expenses","4","Agency Staff - Pay","3739768","202401",26/04/2023 00:00:00,1599.59,"31230","Employment and Recruitment Agencies","REDACTED DATA","MATRIX SCM LTD","2227962","http://opencorporates.com/companies/gb/2227962","249573468"
"London Borough of Redbridge","http://opendatacommunities.org/doc/london-borough-council/redbridge","6BADULTSOCIA","Adult Social Care","6CADMENHLTH","Adults Under 65 with Mental Health Needs","REV","Revenue","R4254","Community Mental Health Team AMHP Base","01-EMPLOYEES","Employees","01A","Direct employee expenses","4","Agency Staff - Pay","3739768","202401",26/04/2023 00:00:00,1672.58,"31230","Employment and Recruitment Agencies","REDACTED DATA","MATRIX SCM LTD","2227962","http://opencorporates.com/companies/gb/2227962","249573468"
"London Borough of Redbridge","http://opendatacommunities.org/doc/london-borough-council/redbridge","6BADULTSOCIA","Adult Social Care","6CADMENHLTH","Adults Under 65 with Mental Health Needs","REV","Revenue","R4370","Access and Assessment Brief Intervention Team","01-EMPLOYEES","Employees","01A","Direct employee expenses","4","Agency Staff - Pay","3739768","202401",26/04/2023 00:00:00,1535.65,"31230","Employment and Recruitment Agencies","REDACTED DATA","MATRIX SCM LTD","2227962","http://opencorporates.com/companies/gb/2227962","249573468"
"London Borough of Redbridge","http://opendatacommunities.org/doc/london-borough-council/redbridge","6BADULTSOCIA","Adult Social Care","6CADMENHLTH","Adults Under 65 with Mental Health Needs","REV","Revenue","R4370","Access and Assessment Brief Intervention Team","01-EMPLOYEES","Employees","01A","Direct employee expenses","4","Agency Staff - Pay","3739768","202401",26/04/2023 00:00:00,1212.12,"31230","Employment and Recruitment Agencies","REDACTED DATA","MATRIX SCM LTD","2227962","http://opencorporates.com/companies/gb/2227962","249573468"
"London Borough of Redbridge","http://opendatacommunities.org/doc/london-borough-council/redbridge","6BADULTSOCIA","Adult Social Care","6CADMENHLTH","Adults Under 65 with Mental Health Needs","REV","Revenue","R4370","Access and Assessment Brief Intervention Team","01-EMPLOYEES","Employees","01A","Direct employee expenses","4","Agency Staff - Pay","3739768","202401",26/04/2023 00:00:00,1461.35,"31230","Employment and Recruitment Agencies","REDACTED DATA","MATRIX SCM LTD","2227962","http://opencorporates.com/companies/gb/2227962","249573468"
"London Borough of Redbridge","http://opendatacommunities.org/doc/london-borough-council/redbridge","6BADULTSOCIA","Adult Social Care","6CADMENHLTH","Adults Under 65 with Mental Health Needs","REV","Revenue","R4370","Access and Assessment Brief Intervention Team","01-EMPLOYEES","Employees","01A","Direct employee expenses","4","Agency Staff - Pay","3739768","202401",26/04/2023 00:00:00,1003.14,"31230","Employment and Recruitment Agencies","REDACTED DATA","MATRIX SCM LTD","2227962","http://opencorporates.com/companies/gb/2227962","249573468"
"London Borough of Redbridge","http://opendatacommunities.org/doc/london-borough-council/redbridge","6BADULTSOCIA","Adult Social Care","6CADMENHLTH","Adults Under 65 with Mental Health Needs","REV","Revenue","R4379","Redbridge Community Recovery Services","01-EMPLOYEES","Employees","01A","Direct employee expenses","4","Agency Staff - Pay","3739768","202401",26/04/2023 00:00:00,11.43,"31230","Employment and Recruitment Agencies","REDACTED DATA","MATRIX SCM LTD","2227962","http://opencorporates.com/companies/gb/2227962","249573468"
"London Borough of Redbridge","http://opendatacommunities.org/doc/london-borough-council/redbridge","6BADULTSOCIA","Adult Social Care","6CADMENHLTH","Adults Under 65 with Mental Health Needs","REV","Revenue","R4379","Redbridge Community Recovery Services","01-EMPLOYEES","Employees","01A","Direct employee expenses","4","Agency Staff - Pay","3739768","202401",26/04/2023 00:00:00,1422.13,"31230","Employment and Recruitment Agencies","REDACTED DATA","MATRIX SCM LTD","2227962","http://opencorporates.com/companies/gb/2227962","249573468"
"London Borough of Redbridge","http://opendatacommunities.org/doc/london-borough-council/redbridge","6BADULTSOCIA","Adult Social Care","6CADMENHLTH","Adults Under 65 with Mental Health Needs","REV","Revenue","R4379","Redbridge Community Recovery Services","01-EMPLOYEES","Employees","01A","Direct employee expenses","4","Agency Staff - Pay","3739768","202401",26/04/2023 00:00:00,1404,"31230","Employment and Recruitment Agencies","REDACTED DATA","MATRIX SCM LTD","2227962","http://opencorporates.com/companies/gb/2227962","249573468"
"London Borough of Redbridge","http://opendatacommunities.org/doc/london-borough-council/redbridge","6BADULTSOCIA","Adult Social Care","6CADMENHLTH","Adults Under 65 with Mental Health Needs","REV","Revenue","R4379","Redbridge Community Recovery Services","01-EMPLOYEES","Employees","01A","Direct employee expenses","4","Agency Staff - Pay","3739768","202401",26/04/2023 00:00:00,1137.84,"31230","Employment and Recruitment Agencies","REDACTED DATA","MATRIX SCM LTD","2227962","http://opencorporates.com/companies/gb/2227962","249573468"
"London Borough of Redbridge","http://opendatacommunities.org/doc/london-borough-council/redbridge","6BADULTSOCIA","Adult Social Care","6CADMENHLTH","Adults Under 65 with Mental Health Needs","REV","Revenue","R4379","Redbridge Community Recovery Services","01-EMPLOYEES","Employees","01A","Direct employee expenses","4","Agency Staff - Pay","3739768","202401",26/04/2023 00:00:00,1523.9,"31230","Employment and Recruitment Agencies","REDACTED DATA","MATRIX SCM LTD","2227962","http://opencorporates.com/companies/gb/2227962","249573468"
"London Borough of Redbridge","http://opendatacommunities.org/doc/london-borough-council/redbridge","6BADULTSOCIA","Adult Social Care","6CADMENHLTH","Adults Under 65 with Mental Health Needs","REV","Revenue","R4463","Mental Health Capacity Act and Safeguarding Adults","01-EMPLOYEES","Employees","01A","Direct employee expenses","4","Agency Staff - Pay","3739768","202401",26/04/2023 00:00:00,1474.21,"31230","Employment and Recruitment Agencies","REDACTED DATA","MATRIX SCM LTD","2227962","http://opencorporates.com/companies/gb/2227962","249573468"
"London Borough of Redbridge","http://opendatacommunities.org/doc/london-borough-council/redbridge","6BADULTSOCIA","Adult Social Care","6CADMENHLTH","Adults Under 65 with Mental Health Needs","REV","Revenue","R4463","Mental Health Capacity Act and Safeguarding Adults","01-EMPLOYEES","Employees","01A","Direct employee expenses","4","Agency Staff - Pay","3739768","202401",26/04/2023 00:00:00,1685.54,"31230","Employment and Recruitment Agencies","REDACTED DATA","MATRIX SCM LTD","2227962","http://opencorporates.com/companies/gb/2227962","249573468"
"London Borough of Redbridge","http://opendatacommunities.org/doc/london-borough-council/redbridge","6BADULTSOCIA","Adult Social Care","6CADMENHLTH","Adults Under 65 with Mental Health Needs","REV","Revenue","R4463","Mental Health Capacity Act and Safeguarding Adults","01-EMPLOYEES","Employees","01A","Direct employee expenses","4","Agency Staff - Pay","3739768","202401",26/04/2023 00:00:00,645.44,"31230","Employment and Recruitment Agencies","REDACTED DATA","MATRIX SCM LTD","2227962","http://opencorporates.com/companies/gb/2227962","249573468"
"London Borough of Redbridge","http://opendatacommunities.org/doc/london-borough-council/redbridge","6BADULTSOCIA","Adult Social Care","6CADMENHLTH","Adults Under 65 with Mental Health Needs","REV","Revenue","R4463","Mental Health Capacity Act and Safeguarding Adults","01-EMPLOYEES","Employees","01A","Direct employee expenses","4","Agency Staff - Pay","3739768","202401",26/04/2023 00:00:00,1379.57,"31230","Employment and Recruitment Agencies","REDACTED DATA","MATRIX SCM LTD","2227962","http://opencorporates.com/companies/gb/2227962","249573468"
"London Borough of Redbridge","http://opendatacommunities.org/doc/london-borough-council/redbridge","6BADULTSOCIA","Adult Social Care","6CADMENHLTH","Adults Under 65 with Mental Health Needs","REV","Revenue","R4463","Mental Health Capacity Act and Safeguarding Adults","01-EMPLOYEES","Employees","01A","Direct employee expenses","4","Agency Staff - Pay","3739768","202401",26/04/2023 00:00:00,1421.28,"31230","Employment and Recruitment Agencies","REDACTED DATA","MATRIX SCM LTD","2227962","http://opencorporates.com/companies/gb/2227962","249573468"
"London Borough of Redbridge","http://opendatacommunities.org/doc/london-borough-council/redbridge","6BADULTSOCIA","Adult Social Care","6CADMENHLTH","Adults Under 65 with Mental Health Needs","REV","Revenue","R4473","Lifelines","01-EMPLOYEES","Employees","01A","Direct employee expenses","4","Agency Staff - Pay","3739768","202401",26/04/2023 00:00:00,45.11,"31230","Employment and Recruitment Agencies","REDACTED DATA","MATRIX SCM LTD","2227962","http://opencorporates.com/companies/gb/2227962","249573468"
"London Borough of Redbridge","http://opendatacommunities.org/doc/london-borough-council/redbridge","6BADULTSOCIA","Adult Social Care","6CADMENHLTH","Adults Under 65 with Mental Health Needs","REV","Revenue","R4473","Lifelines","01-EMPLOYEES","Employees","01A","Direct employee expenses","4","Agency Staff - Pay","3739768","202401",26/04/2023 00:00:00,114.7,"31230","Employment and Recruitment Agencies","REDACTED DATA","MATRIX SCM LTD","2227962","http://opencorporates.com/companies/gb/2227962","249573468"
"London Borough of Redbridge","http://opendatacommunities.org/doc/london-borough-council/redbridge","6BADULTSOCIA","Adult Social Care","6CADMENHLTH","Adults Under 65 with Mental Health Needs","REV","Revenue","R4473","Lifelines","01-EMPLOYEES","Employees","01A","Direct employee expenses","4","Agency Staff - Pay","3739768","202401",26/04/2023 00:00:00,270.65,"31230","Employment and Recruitment Agencies","REDACTED DATA","MATRIX SCM LTD","2227962","http://opencorporates.com/companies/gb/2227962","249573468"
"London Borough of Redbridge","http://opendatacommunities.org/doc/london-borough-council/redbridge","6BADULTSOCIA","Adult Social Care","6CADMENHLTH","Adults Under 65 with Mental Health Needs","REV","Revenue","R4473","Lifelines","01-EMPLOYEES","Employees","01A","Direct employee expenses","4","Agency Staff - Pay","3739768","202401",26/04/2023 00:00:00,959.76,"31230","Employment and Recruitment Agencies","REDACTED DATA","MATRIX SCM LTD","2227962","http://opencorporates.com/companies/gb/2227962","249573468"
"London Borough of Redbridge","http://opendatacommunities.org/doc/london-borough-council/redbridge","6BADULTSOCIA","Adult Social Care","6CADMENHLTH","Adults Under 65 with Mental Health Needs","REV","Revenue","R4473","Lifelines","01-EMPLOYEES","Employees","01A","Direct employee expenses","4","Agency Staff - Pay","3739768","202401",26/04/2023 00:00:00,66.65,"31230","Employment and Recruitment Agencies","REDACTED DATA","MATRIX SCM LTD","2227962","http://opencorporates.com/companies/gb/2227962","249573468"
"London Borough of Redbridge","http://opendatacommunities.org/doc/london-borough-council/redbridge","6BADULTSOCIA","Adult Social Care","6CADMENHLTH","Adults Under 65 with Mental Health Needs","REV","Revenue","R4473","Lifelines","01-EMPLOYEES","Employees","01A","Direct employee expenses","4","Agency Staff - Pay","3739768","202401",26/04/2023 00:00:00,166.8,"31230","Employment and Recruitment Agencies","REDACTED DATA","MATRIX SCM LTD","2227962","http://opencorporates.com/companies/gb/2227962","249573468"
"London Borough of Redbridge","http://opendatacommunities.org/doc/london-borough-council/redbridge","6BADULTSOCIA","Adult Social Care","6CADMENHLTH","Adults Under 65 with Mental Health Needs","REV","Revenue","R4473","Lifelines","01-EMPLOYEES","Employees","01A","Direct employee expenses","4","Agency Staff - Pay","3739768","202401",26/04/2023 00:00:00,40.28,"31230","Employment and Recruitment Agencies","REDACTED DATA","MATRIX SCM LTD","2227962","http://opencorporates.com/companies/gb/2227962","249573468"
"London Borough of Redbridge","http://opendatacommunities.org/doc/london-borough-council/redbridge","6BADULTSOCIA","Adult Social Care","6CADMENHLTH","Adults Under 65 with Mental Health Needs","REV","Revenue","R4473","Lifelines","01-EMPLOYEES","Employees","01A","Direct employee expenses","4","Agency Staff - Pay","3739768","202401",26/04/2023 00:00:00,196.95,"31230","Employment and Recruitment Agencies","REDACTED DATA","MATRIX SCM LTD","2227962","http://opencorporates.com/companies/gb/2227962","249573468"
"London Borough of Redbridge","http://opendatacommunities.org/doc/london-borough-council/redbridge","6BADULTSOCIA","Adult Social Care","6CADMENHLTH","Adults Under 65 with Mental Health Needs","REV","Revenue","R4473","Lifelines","01-EMPLOYEES","Employees","01A","Direct employee expenses","4","Agency Staff - Pay","3739768","202401",26/04/2023 00:00:00,429.62,"31230","Employment and Recruitment Agencies","REDACTED DATA","MATRIX SCM LTD","2227962","http://opencorporates.com/companies/gb/2227962","249573468"
"London Borough of Redbridge","http://opendatacommunities.org/doc/london-borough-council/redbridge","6BADULTSOCIA","Adult Social Care","6CADMENHLTH","Adults Under 65 with Mental Health Needs","REV","Revenue","R4484","Multi- Disciplinary Team (Fairlop)","01-EMPLOYEES","Employees","01A","Direct employee expenses","4","Agency Staff - Pay","3739768","202401",26/04/2023 00:00:00,336.87,"31230","Employment and Recruitment Agencies","REDACTED DATA","MATRIX SCM LTD","2227962","http://opencorporates.com/companies/gb/2227962","249573468"
"London Borough of Redbridge","http://opendatacommunities.org/doc/london-borough-council/redbridge","6BADULTSOCIA","Adult Social Care","6CADMENHLTH","Adults Under 65 with Mental Health Needs","REV","Revenue","R4484","Multi- Disciplinary Team (Fairlop)","01-EMPLOYEES","Employees","01A","Direct employee expenses","4","Agency Staff - Pay","3739768","202401",26/04/2023 00:00:00,1610.29,"31230","Employment and Recruitment Agencies","REDACTED DATA","MATRIX SCM LTD","2227962","http://opencorporates.com/companies/gb/2227962","249573468"
"London Borough of Redbridge","http://opendatacommunities.org/doc/london-borough-council/redbridge","6BADULTSOCIA","Adult Social Care","6CADMENHLTH","Adults Under 65 with Mental Health Needs","REV","Revenue","R4484","Multi- Disciplinary Team (Fairlop)","01-EMPLOYEES","Employees","01A","Direct employee expenses","4","Agency Staff - Pay","3739768","202401",26/04/2023 00:00:00,1337.4,"31230","Employment and Recruitment Agencies","REDACTED DATA","MATRIX SCM LTD","2227962","http://opencorporates.com/companies/gb/2227962","249573468"
"London Borough of Redbridge","http://opendatacommunities.org/doc/london-borough-council/redbridge","6BADULTSOCIA","Adult Social Care","6CADMENHLTH","Adults Under 65 with Mental Health Needs","REV","Revenue","R4484","Multi- Disciplinary Team (Fairlop)","01-EMPLOYEES","Employees","01A","Direct employee expenses","4","Agency Staff - Pay","3739768","202401",26/04/2023 00:00:00,1421.33,"31230","Employment and Recruitment Agencies","REDACTED DATA","MATRIX SCM LTD","2227962","http://opencorporates.com/companies/gb/2227962","249573468"
"London Borough of Redbridge","http://opendatacommunities.org/doc/london-borough-council/redbridge","6BADULTSOCIA","Adult Social Care","6CADMENHLTH","Adults Under 65 with Mental Health Needs","REV","Revenue","R4484","Multi- Disciplinary Team (Fairlop)","01-EMPLOYEES","Employees","01A","Direct employee expenses","4","Agency Staff - Pay","3739768","202401",26/04/2023 00:00:00,796.67,"31230","Employment and Recruitment Agencies","REDACTED DATA","MATRIX SCM LTD","2227962","http://opencorporates.com/companies/gb/2227962","249573468"
"London Borough of Redbridge","http://opendatacommunities.org/doc/london-borough-council/redbridge","6BADULTSOCIA","Adult Social Care","6CADMENHLTH","Adults Under 65 with Mental Health Needs","REV","Revenue","R4484","Multi- Disciplinary Team (Fairlop)","01-EMPLOYEES","Employees","01A","Direct employee expenses","4","Agency Staff - Pay","3739768","202401",26/04/2023 00:00:00,1347.49,"31230","Employment and Recruitment Agencies","REDACTED DATA","MATRIX SCM LTD","2227962","http://opencorporates.com/companies/gb/2227962","249573468"
"London Borough of Redbridge","http://opendatacommunities.org/doc/london-borough-council/redbridge","6BADULTSOCIA","Adult Social Care","6CADMENHLTH","Adults Under 65 with Mental Health Needs","REV","Revenue","R4484","Multi- Disciplinary Team (Fairlop)","01-EMPLOYEES","Employees","01A","Direct employee expenses","4","Agency Staff - Pay","3739768","202401",26/04/2023 00:00:00,807.14,"31230","Employment and Recruitment Agencies","REDACTED DATA","MATRIX SCM LTD","2227962","http://opencorporates.com/companies/gb/2227962","249573468"
"London Borough of Redbridge","http://opendatacommunities.org/doc/london-borough-council/redbridge","6BADULTSOCIA","Adult Social Care","6CADMENHLTH","Adults Under 65 with Mental Health Needs","REV","Revenue","R4484","Multi- Disciplinary Team (Fairlop)","01-EMPLOYEES","Employees","01A","Direct employee expenses","4","Agency Staff - Pay","3739768","202401",26/04/2023 00:00:00,1068.47,"31230","Employment and Recruitment Agencies","REDACTED DATA","MATRIX SCM LTD","2227962","http://opencorporates.com/companies/gb/2227962","249573468"
"London Borough of Redbridge","http://opendatacommunities.org/doc/london-borough-council/redbridge","6BADULTSOCIA","Adult Social Care","6CADMENHLTH","Adults Under 65 with Mental Health Needs","REV","Revenue","R4484","Multi- Disciplinary Team (Fairlop)","01-EMPLOYEES","Employees","01A","Direct employee expenses","4","Agency Staff - Pay","3739768","202401",26/04/2023 00:00:00,7.03,"31230","Employment and Recruitment Agencies","REDACTED DATA","MATRIX SCM LTD","2227962","http://opencorporates.com/companies/gb/2227962","249573468"
"London Borough of Redbridge","http://opendatacommunities.org/doc/london-borough-council/redbridge","6BADULTSOCIA","Adult Social Care","6CADMENHLTH","Adults Under 65 with Mental Health Needs","REV","Revenue","R4484","Multi- Disciplinary Team (Fairlop)","01-EMPLOYEES","Employees","01A","Direct employee expenses","4","Agency Staff - Pay","3739768","202401",26/04/2023 00:00:00,1390.32,"31230","Employment and Recruitment Agencies","REDACTED DATA","MATRIX SCM LTD","2227962","http://opencorporates.com/companies/gb/2227962","249573468"
"London Borough of Redbridge","http://opendatacommunities.org/doc/london-borough-council/redbridge","6BADULTSOCIA","Adult Social Care","6CADMENHLTH","Adults Under 65 with Mental Health Needs","REV","Revenue","R4484","Multi- Disciplinary Team (Fairlop)","01-EMPLOYEES","Employees","01A","Direct employee expenses","4","Agency Staff - Pay","3739768","202401",26/04/2023 00:00:00,1337.41,"31230","Employment and Recruitment Agencies","REDACTED DATA","MATRIX SCM LTD","2227962","http://opencorporates.com/companies/gb/2227962","249573468"
"London Borough of Redbridge","http://opendatacommunities.org/doc/london-borough-council/redbridge","6BADULTSOCIA","Adult Social Care","6CADMENHLTH","Adults Under 65 with Mental Health Needs","REV","Revenue","R4484","Multi- Disciplinary Team (Fairlop)","01-EMPLOYEES","Employees","01A","Direct employee expenses","4","Agency Staff - Pay","3739768","202401",26/04/2023 00:00:00,1010.61,"31230","Employment and Recruitment Agencies","REDACTED DATA","MATRIX SCM LTD","2227962","http://opencorporates.com/companies/gb/2227962","249573468"
"London Borough of Redbridge","http://opendatacommunities.org/doc/london-borough-council/redbridge","6BADULTSOCIA","Adult Social Care","6CADMENHLTH","Adults Under 65 with Mental Health Needs","REV","Revenue","R4484","Multi- Disciplinary Team (Fairlop)","01-EMPLOYEES","Employees","01A","Direct employee expenses","4","Agency Staff - Pay","3739768","202401",26/04/2023 00:00:00,1348.58,"31230","Employment and Recruitment Agencies","REDACTED DATA","MATRIX SCM LTD","2227962","http://opencorporates.com/companies/gb/2227962","249573468"
